Workbook

Sheet BD (hidden)
A1: Variable | B1: Français | C1: English | D1: Nederlands | E1: Deutsch | F1: Magyar | G1: Polski | H1: русский | I1: Česky | S1: Références | T1: Traduction | U1: version | V1: couleur | W1: francais | X1: anglais | Y1: Nederlands | Z1: allemand | AA1: hungarian | AB1: POLISH | AC1: russian | AD1: czech | AL1: Références Nav | AN1: Plaque | AO1: ref | AP1: prix | AV1: Plaque config XL/2c Aber=1 Aber jonction=1 | AW1: Plaque non compatible kit specifique | BA1: index | BB1: kit | BC1: epaisseur | BD1: Ab D | BE1: AB G | BF1: DPO Ab D | BG1: DPO Ab G | BH1: Raccord | BI1: Bande etanchéité | BL1: 0 | BM1: 1640 | BN1: =BM1+10 -> 1650 | BO1: =BN1+10 -> 1660 | BP1: 1670 | BQ1: 1680 | BR1: 1690 | BS1: 1700 | BT1: 1710 | BU1: 1720 | BV1: 1730 | BW1: 1740 | BX1: 1750 | BY1: 1760 | BZ1: 1770 | CA1: 1780 | CB1: 1790 | CC1: 1800 | CD1: 1810 | CE1: 1820 | CF1: 1830 | CG1: 1840 | CH1: 1850 | CI1: 1860 | CJ1: 1870 | CK1: 1880 | CL1: 1890 | CM1: 1900 | CN1: 1910 | CO1: 1920 | CP1: 1930 | CQ1: 1940 | CR1: 1950 | CS1: 1960 | CT1: 1970 | CU1: 1980 | CV1: 1990
A2: HomeT1 | B2: BIENVENUE DANS L'OUTIL DE DIMENSIONNEMENT ET COMMANDE | C2: WELCOME TO THE SIZING AND CONTROL TOOL | D2: WELKOM IN HET DIMENSIONERINGS- EN BESTELTOOL | E2: WILLKOMMEN BEIM AUSLEGUNGS- UND BESTELLTOOL | F2: Üdvözöljük a méretező és gyors tervező programban | G2: ZAPRASZAMY DO SKORZYSTANIA Z NARZĘDZIA DO WYMIAROWANIA I KALKULACJI | H2: ДОБРО ПОЖАЛОВАТЬ В ИНСТРУМЕНТ ПЛАНИРОВАНИЯ И РАСЧЁТА | I2: VÍTEJTE V KONFIGURÁTORU PLÁNOVÁNÍ A VÝPOČTU | S2: COINDALUATEC | T2: AberFaitDATEC | U2: v.TS-1 | V2: ALU | W2: Abergement Angle DROIT Gris-v.TS-1 | X2: Top RIGHT Angle Flashing Grey-v.TS-1 | Z2: Winkelverblechung rechts v.TS-1 ALU | AA2: Felső JOBB Szögzáró Burkolat Szürke-v.TS-1 | AB2: Górna PRAWA obróbka kątowa Szary-v.TS-1 | AC2: Верхняя правая угловая планка v.TS-1 Серая | AD2: Pravá horní rohová lišta v.TS-1 Šedá | AL2: ART101379 | AN2: Pa 1559 / 1046 | AO2: ART100401 | AP2: 50.16 | AV2: Po 1580 / 808 | AW2: Dpo 1650 / 995 | BA2: 2 | BB2: MK06 | BC2: 0 | BD2: ART103629 | BE2: ART103622 | BF2: ART105498 | BG2: ART105512 | BH2: ART101590 | BK2: Po 1640 / 992 | BL2: 3/5 | BM2: 3/5 | BN2: 3/5 | BO2: 3/5 | BP2: 3/6 | BQ2: 4/6 | BR2: 4/6 | BS2: 4/6 | BT2: 4/6
A3: HomeT2 | B3: DU GSE INTEGRATION IN-ROOF SYSTEM | C3: OF GSE INTEGRATION IN-ROOF SYSTEM | D3: VAN HET GSE INTEGRATION IN-ROOF SYSTEM | E3: FÜR DAS GSE INTEGRATION IN-ROOF SYSTEM | F3: A GSE Tetőszerkezetbe Építhető Rendszeréhez | G3: SYSTEMU IN-ROOF GSE INTEGRATION | H3: ИНТЕГРАЦИИ GSE IN-ROOF SYSTEM | I3: INTEGRAČNÍHO SYSTÉMU GSE INTEGRATION IN-ROOF SYSTEM | S3: COINDNOIRATEC | T3: AberFaitDATEC | U3: v.TS-1 | V3: NOIR | W3: Abergement Angle DROIT Noir-v.TS-1 | X3: Top RIGHT Angle Flashing Black-v.TS-1 | Y3: Hoekafdekplaat RECHTS boven Zwart TS1 | Z3: Winkelverblechung rechts v.TS-1 Schwarz | AA3: Felső JOBB Szögzáró Burkolat Fekete-v.TS-1 | AB3: Górna PRAWA obróbka kątowa Czarny-v.TS-1 | AC3: Верхняя правая угловая планка v.TS-1 Чёрная | AD3: Pravá horní rohová lišta v.TS-1 Černá | AL3: ART101295 | AN3: Pa 1575 / 1082 | AO3: ART100048 | AP3: 50.16 | AV3: Po 1640 / 992 | AW3: Dpo 1650 / 1070 | BA3: 3 | BB3: MK06 | BC3: 330 | BD3: ART103629 | BE3: ART103622 | BF3: ART105498 | BG3: ART105512 | BH3: ART101590 | BI3: BANDE_FLEXALU_330 | BK3: Po 1640 / 1001 | BL3: 3/5 | BM3: 3/5 | BN3: 3/5 | BO3: 3/5 | BP3: 3/6 | BQ3: 4/6 | BR3: 4/6 | BS3: 4/6 | BT3: 4/6
A4: HomeT3 | B4: Vous trouverez à travers cette application l'outil qui vous permettra de calculer et de dimensionner vos commandes | C4: You will find through this application the tool that will allow you to calculate and size your orders | D4: Via deze toepassing vindt u het hulpmiddel waarmee u uw bestellingen kunt berekenen en de grootte ervan kunt bepalen | E4: Mit dieser Anwendung erhalten Sie ein Werkzeug, das es Ihnen erlaubt, Ihre Aufträge auszulegen und zu berechnen. | F4: Ez az eszköz segít meghatározni a szükséges paramétereket és rendelési listát | G4: W tej aplikacji znajdziesz narzędzie, które pozwoli Ci obliczyć i określić wielkość zamówień | H4: Это приложение позволит вам рассчитать размеры и определить стоимость вашего проекта | I4: Tato aplikace vám umožní vypočítat rozměry a určit náklady na váš projekt | S4: ANGL_COIN_DROIT_AR | T4: AberFaitDATEC | U4: v.A-1 | V4: Noir | W4: Abergement Angle DROIT Noir-v.A-1 | X4: Top RIGHT Angle Flashing Black-v.A-1 | Y4: Hoekafdekplaat RECHTS boven Zwart A1 | Z4: Winkelverblechung rechts v.A-1 Schwarz | AA4: Felső JOBB Szögzáró Burkolat Fekete-v.A-1 | AB4: Górna PRAWA obróbka kątowa Czarny-v.A-1 | AC4: Верхняя правая угловая планка v.А-1 Чёрная | AD4: Pravá horní rohová lišta v.A-1 Černá | AL4: ART100195 | AN4: Pa 1580 / 808 | AO4: ART100713 | AP4: 38.28 | AV4: Po 1640 / 1001 | AW4: Dpo 1650 / 1100 | BA4: 4 | BB4: MK06 | BC4: 500 | BD4: ART103629 | BE4: ART103622 | BF4: ART105498 | BG4: ART105512 | BH4: ART101590 | BI4: BANDE_FLEXALU_500 | BK4: Po 1640 / 1001 P33 | BL4: 3/5 | BM4: 3/5 | BN4: 3/5 | BO4: 3/5 | BP4: 3/6 | BQ4: 4/6 | BR4: 4/6 | BS4: 4/6 | BT4: 4/6
A5: Dim | B5: Dimensionner | C5: Size | D5: Maat | E5: Auslegen | F5: Méret | G5: Wymiar | H5: Размер | I5: Velikost | S5: COINGALUATEC | T5: AberFaitGATEC | U5: v.TS-1 | V5: ALU | W5: Abergement Angle GAUCHE Gris-v.TS-1 | X5: Top LEFT Angle Flashing Grey-v.TS-1 | Z5: Winkelverblechung links v.TS-1 ALU | AA5: Felső BAL Szögzáró Burkolat Szürke-v.TS-1 | AB5: Górna LEWA obróbka kątowa Szary-v.TS-1 | AC5: Верхняя левая угловая планка v.TS-1 Серая | AD5: Levá horní rohová lišta v.TS-1 Šedá | AL5: ART100785 | AN5: Pa 1640 / 992 | AO5: ART100356 | AP5: 50.16 | AV5: Po 1640 / 1001 P33 | AW5: Dpo 1650 / 1135 | BA5: 5 | BB5: MK08 | BC5: 0 | BD5: ART103629 | BE5: ART103622 | BF5: ART105498 | BG5: ART105512 | BH5: ART101589 | BK5: Po 1710 / 995 | BL5: 4/6 | BM5: 4/6 | BN5: 4/6 | BO5: 4/6 | BP5: 4/6 | BQ5: 4/6 | BR5: 4/6 | BS5: 4/6 | BT5: 4/6 | BU5: 4/6 | BV5: 4/6 | BW5: 4/6 | BX5: 4/6 | BY5: 4/6 | BZ5: 4/6 | CA5: 6
A6: RefCmpPV | B6: Référence du projet | C6: Project reference | D6: Project referentie | E6: Projekt-Modulfeldreferenz | F6: Project szám | G6: Nr referencyjny projektu | H6: Ссылка на проект | I6: Reference projektu | S6: COINGNOIRATEC | T6: AberFaitGATEC | U6: v.TS-1 | V6: NOIR | W6: Abergement Angle GAUCHE Noir-v.TS-1 | X6: Top LEFT Angle Flashing Black-v.TS-1 | Y6: Hoekafdekplaat LINKS boven Zwart TS1 | Z6: Winkelverblechung links v.TS-1 Schwarz | AA6: Felső BAL Szögzáró Burkolat Fekete-v.TS-1 | AB6: Górna LEWA obróbka kątowa Czarny-v.TS-1 | AC6: Верхняя левая угловая планка v.TS-1 Чёрная | AD6: Levá horní rohová lišta v.TS-1 Černá | AL6: ART100285 | AN6: Pa 1650 / 992 | AO6: ART101488 | AP6: 50.16 | AV6: Po 1685 / 1016 | AW6: Dpo 1650 / 1140 | BA6: 6 | BB6: MK08 | BC6: 330 | BD6: ART103629 | BE6: ART103622 | BF6: ART105498 | BG6: ART105512 | BH6: ART101589 | BI6: BANDE_FLEXALU_330 | BK6: Po 1710 / 1000 | BL6: 4/6 | BM6: 4/6 | BN6: 4/6 | BO6: 4/6 | BP6: 4/6 | BQ6: 4/6 | BR6: 4/6 | BS6: 4/6 | BT6: 4/6 | BU6: 4/6 | BV6: 4/6 | BW6: 4/6 | BX6: 4/6 | BY6: 4/6 | BZ6: 4/6 | CA6: 6
A7: DimToit | B7: Caractéristiques du toit | C7: Roof Dimensions | D7: Dakafmetingen | E7: Dachabmessungen | F7: Tető méretei | G7: Wymiary dachu | H7: Размеры крыши | I7: Rozměry střechy | S7: ANGL_COIN_GAUCH_AR | T7: AberFaitGATEC | U7: v.A-1 | V7: Noir | W7: Abergement Angle GAUCHE Noir-v.A-1 | X7: Top LEFT Angle Flashing Black-v.A-1 | Y7: Hoekafdekplaat LINKS boven Zwart-A1 | Z7: Winkelverblechung links v.A-1 Schwarz | AA7: Felső BAL Szögzáró Burkolat Fekete-v.A-1 | AB7: Górna LEWA obróbka kątowa Czarny-v.A-1 | AC7: Верхняя правая угловая планка v.А-1 Серая | AD7: Pravá horní rohová lišta v.A-1 Šedá | AL7: ART101291 | AN7: Pa 1660 / 992 | AO7: ART101502 | AP7: 50.16 | AV7: Po 1710 / 995 | AW7: Dpo 1650 / 1145 | BA7: 7 | BB7: MK08 | BC7: 500 | BD7: ART103629 | BE7: ART103622 | BF7: ART105498 | BG7: ART105512 | BH7: ART101589 | BI7: BANDE_FLEXALU_500 | BK7: Po 1710 / 1005 | BL7: 4/6 | BM7: 4/6 | BN7: 4/6 | BO7: 4/6 | BP7: 4/6 | BQ7: 4/6 | BR7: 4/6 | BS7: 4/6 | BT7: 4/6 | BU7: 4/6 | BV7: 4/6 | BW7: 4/6 | BX7: 4/6 | BY7: 4/6 | BZ7: 4/6 | CA7: 6
A8: Calepinage | B8: Calepinage | C8: Layout | D8: Layout | E8: Lattenplan | F8: Elrendezés | G8: Układ | H8: Раскладка | I8: Rozložení | S8: AFSA2013 | T8: AberFaitCATEC | U8: LG 1.50 m | V8: ALU | W8: Abergement Haut Central Universel Gris L 1500mm | X8: Universal Top Centre Flashing - Grey L 1500mm | Z8: First-Hauptverblechung LG 1.50 m ALU | AA8: Univerzális Felső Közép Burkolat - Szürke L 1500mm | AB8: Uniwersalna górna śodkowa obróbka - Szary L 1500mm | AC8: Универсальная верхняя центральная планка L 1500мм Серая | AD8: Univerzální horní středová lišta L 1500mm Šedá | AL8: ART100695 | AN8: Pa 1670 / 992 | AO8: ART101266 | AP8: 50.16 | AV8: Po 1710 / 1000 | AW8: Dpo 1650 / 1160 | BA8: 8 | BB8: MK10 | BC8: 0 | BF8: ART105505 | BG8: ART105519 | BH8: RMK10 | BK8: Po 1710 / 1010 | BL8: 4/6 | BM8: 4/6 | BN8: 4/6 | BO8: 4/6 | BP8: 4/6 | BQ8: 4/6 | BR8: 4/6 | BS8: 4/6 | BT8: 4/6 | BU8: 4/6 | BV8: 4/6 | BW8: 4/6 | BX8: 4/6 | BY8: 4/6 | BZ8: 4/6 | CA8: 6
A9: DimMod | B9: Caractéristiques du module | C9: Module Dimensions | D9: Module afmetingen | E9: Modulabmessungen | F9: Modul méretek | G9: Wymiary modułu | H9: Размеры модуля | I9: Rozměry modulu | S9: AFCUNL1500 | T9: AberFaitCATEC | U9: LG 1.50 m | V9: NOIR | W9: Abergement Haut Central Universel Noir L 1500mm | X9: Universal Top Centre Flashing - Black L 1500mm | Y9: Universele afdekplaat midden boven - Zwart L 1500mm | Z9: First-Hauptverblechung LG 1.50 m Schwarz | AA9: Univerzális Felső Közép Burkolat - Fekete L 1500mm | AB9: Uniwersalna górna środkowa obróbka - Czarny L 1500mm | AC9: Универсальная верхняя центральная планка L 1500мм Чёрная | AD9: Univerzální horní středová lišta L 1500mm Černá | AL9: ART101041 | AN9: Pa 1675 / 992 P33 | AO9: ART100675 | AP9: 50.16 | AV9: Po 1710 / 1005 | AW9: Dpo 1840 / 995 | BA9: 9 | BB9: MK10 | BC9: 330 | BF9: ART105505 | BG9: ART105519 | BH9: RMK10 | BI9: BANDE_FLEXALU_330 | BK9: Po 1710 / 1020 | BL9: 4/6 | BM9: 4/6 | BN9: 4/6 | BO9: 4/6 | BP9: 4/6 | BQ9: 4/6 | BR9: 4/6 | BS9: 4/6 | BT9: 4/6 | BU9: 4/6 | BV9: 4/6 | BW9: 4/6 | BX9: 4/6 | BY9: 4/6 | BZ9: 4/6 | CA9: 6
A10: Long | B10: Longueur (L) | C10: Length (L) | D10: Lengte (L) | E10: Länge (L) | F10: Hossz (L) | G10: Długość (L) | H10: Длина (L) | I10: Délka (L) | S10: COINDALU2014_15 | T10: AberFaitD | V10: ALU | W10: Abergement Angle Haut Droit Universel Gris | X10: Top Right Corner Flashing - Grey | Z10: Eckverblechung rechts ALU | AA10: Felső Jobb Sarok Burkolat - Szürke | AB10: Obróbka górna prawy narożnik - Szary | AC10: Планка верхнего правого угла - Серая | AD10: Lišta pravého horního rohu - Šedá | AL10: ART101340 | AN10: Pa 1680 / 992 | AO10: ART100761 | AP10: 50.16 | AV10: Po 1710 / 1010 | AW10: Dpo 1840 / 1020 | BA10: 10 | BB10: MK10 | BC10: 500 | BF10: ART105505 | BG10: ART105519 | BH10: RMK10 | BI10: BANDE_FLEXALU_500 | BK10: Po 1710 / 1025 | BL10: 4/6 | BM10: 4/6 | BN10: 4/6 | BO10: 4/6 | BP10: 4/6 | BQ10: 4/6 | BR10: 4/6 | BS10: 4/6 | BT10: 4/6 | BU10: 4/6 | BV10: 4/6 | BW10: 4/6 | BX10: 4/6 | BY10: 4/6 | BZ10: 4/6 | CA10: 6
A11: Ramp | B11: Rampant (R) | C11: Roof Width (R) | D11: Dakbreedte (R) | E11: Länge der Dachschräge (R) | F11: Tető szélesség (R) | G11: Szerokość dachu (R) | H11: Ширина крыши (R) | I11: Šířka střechy (R) | S11: COINDNOIR2014_15 | T11: AberFaitD | V11: NOIR | W11: Abergement Angle Haut Droit Universel Noir | X11: Top Right Corner Flashing - Black | Y11: Universele hoekafdekplaat RECHTS boven Zwart | Z11: Eckverblechung rechts Schwarz | AA11: Felső Jobb Sarok Burkolat - Fekete | AB11: Obróbka górna prawy narożnik - Czarny | AC11: Планка верхнего правого угла - Чёрная | AD11: Lišta pravého horního rohu - Černá | AL11: ART100574 | AN11: Pa 1686 / 1016 | AO11: ART100252 | AP11: 50.16 | AV11: Po 1710 / 1020 | AW11: Dpo 1840 / 1030 | BA11: 11 | BB11: PK08 | BC11: 0 | BF11: ART105498 | BG11: ART105512 | BH11: ART104616 | BK11: Po 1710 / 1030 | BL11: 4/6 | BM11: 4/6 | BN11: 4/6 | BO11: 4/6 | BP11: 4/6 | BQ11: 4/6 | BR11: 4/6 | BS11: 4/6 | BT11: 4/6 | BU11: 4/6 | BV11: 4/6 | BW11: 4/6 | BX11: 4/6 | BY11: 4/6 | BZ11: 4/6 | CA11: 6
A12: Haut | B12: Hauteur (H) | C12: Height (H) | D12: Hoogte (H) | E12: Höhe (H) | F12: Magasság (H) | G12: Wysokość (H) | H12: Высота (H) | I12: Výška (H) | S12: COINGALU2014_15 | T12: AberFaitG | V12: ALU | W12: Abergement Angle Haut Gauche Universel Gris | X12: Top Left Corner Flashing - Grey | Z12: Eckverblechung links ALU | AA12: Felső Bal Sarok Burkolat - Szürke | AB12: Obróbka górna lewy narożnik - Szary | AC12: Планка верхнего левого угла - Серая | AD12: Lišta levého horního rohu - Šedá | AL12: ART100862 | AN12: Pa 1700 / 1016 | AO12: ART100092 | AP12: 50.16 | AV12: Po 1710 / 1025 | AW12: Dpo 1840 / 1040 | BA12: 12 | BB12: PK08 | BC12: 330 | BF12: ART105498 | BG12: ART105512 | BH12: ART104616 | BI12: BANDE_FLEXALU_330 | BK12: Po 1710 / 1040 | BL12: 4/6 | BM12: 4/6 | BN12: 4/6 | BO12: 4/6 | BP12: 4/6 | BQ12: 4/6 | BR12: 4/6 | BS12: 4/6 | BT12: 4/6 | BU12: 4/6 | BV12: 4/6 | BW12: 4/6 | BX12: 4/6 | BY12: 4/6 | BZ12: 4/6 | CA12: 6
A13: Larg | B13: Largeur (W) | C13: House Width (W) | D13: Breedte (W) | E13: Breite (W) | F13: Ház szélesség (W) | G13: Szerokość budynku (W) | H13: Ширина здания (W) | I13: Šířka budovy (W) | S13: COINGNOIR2014_15 | T13: AberFaitG | V13: NOIR | W13: Abergement Angle Haut Gauche Universel Noir | X13: Top Left Corner Flashing - Black | Y13: Universele hoekafdekplaat LINKS boven Zwart | Z13: Eckverblechung links Schwarz | AA13: Felső Bal Sarok Burkolat - Fekete | AB13: Obróbka górna lewy narożnik - Czarny | AC13: Планка верхнего левого угла - Чёрная | AD13: Lišta levého horního rohu - Černá | AL13: ART100945 | AN13: Pa 1665 / 1020 | AO13: ART102153 | AP13: 50.16 | AV13: Po 1710 / 1030 | AW13: Dpo 1840 / 1045 | BA13: 13 | BB13: PK08 | BC13: 500 | BF13: ART105498 | BG13: ART105512 | BH13: ART104616 | BI13: BANDE_FLEXALU_500 | BK13: Po 1710 / 1045 | BL13: 4/6 | BM13: 4/6 | BN13: 4/6 | BO13: 4/6 | BP13: 4/6 | BQ13: 4/6 | BR13: 4/6 | BS13: 4/6 | BT13: 4/6 | BU13: 4/6 | BV13: 4/6 | BW13: 4/6 | BX13: 4/6 | BY13: 4/6 | BZ13: 4/6 | CA13: 6
A14: Epai | B14: Epaisseur (E) | C14: Thickness (E) | D14: Dikte (E) | E14: Dicke (E) | F14: Vastagság (E) | G14: Grubość (E) | H14: Толщина (E) | I14: Tloušťka (E) | S14: AFJA2013 | T14: AberFaitJonc | V14: ALU | W14: Abergement Haut Jonction Universel Gris L 375mm | X14: Top Junction Flashing - Grey L 375mm | Z14: Verbindungsblech Firstverblechung ALU | AA14: Felső Csatlakozás Burkolat - Szürke L 375mm | AB14: Obróbka łącząca górna- Szary L 375mm | AC14: Соеденитель верхнего отлива L 375мм Серый | AD14: Spojka připojení horní lišty L 375mm Šedá | AL14: ART100558 | AN14: Pa 1675 / 1020 | AO14: ART102160 | AP14: 50.16 | AV14: Dpo 1650 / 995 | AW14: Dpo 1840 / 1050 | BA14: 14 | BB14: PK10 | BC14: 0 | BF14: ART105505 | BG14: ART105519 | BH14: RPK10 | BK14: Po 1710 / 1050 | BL14: 4/6 | BM14: 4/6 | BN14: 4/6 | BO14: 4/6 | BP14: 4/6 | BQ14: 4/6 | BR14: 4/6 | BS14: 4/6 | BT14: 4/6 | BU14: 4/6 | BV14: 4/6 | BW14: 4/6 | BX14: 4/6 | BY14: 4/6 | BZ14: 4/6 | CA14: 6
A15: CalPort | B15: Calepinage portrait | C15: Portrait Layout | D15: Portrait opstelling | E15: Lattenplan für hochkant-Montage | F15: Álló tájolás | G15: Układ pionowy | H15: Вертикальная раскладка | I15: Rozložení na výšku | S15: AFJUNL375 | T15: AberFaitJonc | V15: NOIR | W15: Abergement Haut Jonction Universel Noir L 375mm | X15: Top Junction Flashing - Black L 375mm | Y15: Universele verbinding bovenste afdekplaat Zwart L 375mm | Z15: Verbindungsblech Firstverblechung Schwarz | AA15: Felső Csatlakozás Burkolat - Fekete L 375mm | AB15: Obróbka łącząca górna - Czarny L 375mm | AC15: Соеденитель верхнего отлива L 375мм Чёрный | AD15: Spojka připojení horní lišty L 375mm černá | AL15: ART100039 | AN15: Pa 1680 / 1020 | AO15: ART102167 | AP15: 50.16 | AV15: Dpo 1840 / 995 | AW15: Dpo 1840 / 1070 | BA15: 15 | BB15: PK10 | BC15: 330 | BF15: ART105505 | BG15: ART105519 | BH15: RPK10 | BI15: BANDE_FLEXALU_330 | BK15: Po 1710 / 1055 | BL15: 4/6 | BM15: 4/6 | BN15: 4/6 | BO15: 4/6 | BP15: 4/6 | BQ15: 4/6 | BR15: 4/6 | BS15: 4/6 | BT15: 4/6 | BU15: 4/6 | BV15: 4/6 | BW15: 4/6 | BX15: 4/6 | BY15: 4/6 | BZ15: 4/6 | CA15: 6
A16: CalPays | B16: Calepinage paysage | C16: Landscape Layout | D16: Landscape opstelling | E16: Lattenplan für Querformat-Montage | F16: Fekvő tájolás | G16: Układ poziomy | H16: Горизонтальная раскладка | I16: Rozložení na šířku | S16: ABER_HAUT_ATEC_ALU | T16: AberFaitC | U16: v.TS-1 | V16: ALU | W16: Abergement haut Gris 1001-v.TS-1 | X16: Top Centre Flashing Grey 1001-v.TS-1 | Z16: First-Hauptverblechung 1001-v.TS-1 ALU | AA16: Felső Közép Burkolat Szürke 1001-v.TS-1 | AB16: Górna środkowa obróbka blacharska Szary 1001-v.TS-1 | AC16: Верхняя центральная планка 1001-v.TS-1 Серая | AD16: Horní středová lišta 1001-v.TS-1 Šedá | AL16: ART100441 | AN16: Pa 1685 / 1020 | AO16: ART102174 | AP16: 50.16 | AV16: Dpo 1840 / 1020 | AW16: Dpo 1840 / 1090 | BA16: 16 | BB16: PK10 | BC16: 500 | BF16: ART105505 | BG16: ART105519 | BH16: RPK10 | BI16: BANDE_FLEXALU_500 | BK16: Dpo 1650 / 995 | BL16: 3/5 | BM16: 3/5 | BN16: 3/5 | BO16: 3/5 | BP16: 3/5 | BQ16: 3/6 | BR16: 4/6 | BS16: 4/6 | BT16: 4/6 | BU16: 4/6 | BV16: 4/6 | BW16: 4/6 | BX16: 4/6 | BY16: 4/6 | BZ16: 4/6 | CA16: 4/6 | CB16: 4/6 | CC16: 6
A17: CorPlakGSE | B17: Plaque GSE correspondante | C17: Corresponding GSE Frame | D17: Overeenkomstige GSE-plaat | E17: Entsprechende GSE-Wanne | F17: Megfelelő GSE keret | G17: Odpowiednia rama GSE | H17: Соответствующая рама GSE | I17: Odpovídající rám GSE | S17: ABER_HAUT_ATEC_NOI | T17: AberFaitC | U17: v.TS-1 | V17: NOIR | W17: Abergement haut Noir 1001-v.TS-1 | X17: Top Centre Flashing Black 1001-v.TS-1 | Y17: Afdekplaat midden boven Zwart 1001-TS1 | Z17: First-Hauptverblechung 1001-v.TS-1 Schwarz | AA17: Felső Közép Burkolat Fekete 1001-v.TS-1 | AB17: Górna środkowa obróbka blacharska Czarny 1001-v.TS-1 | AC17: Верхняя центральная планка 1001-v.TS-1 Чёрная | AD17: Horní středová lišta 1001-v.TS-1 Černá | AL17: ART100557 | AN17: Pa 1690 / 1020 | AO17: ART102181 | AP17: 50.16 | AV17: Dpo 1840 / 1030 | AW17: Dpo 1840 / 1100 | BK17: Dpo 1650 / 1070 | BL17: 3/5 | BM17: 3/5 | BN17: 3/5 | BO17: 3/5 | BP17: 3/5 | BQ17: 3/6 | BR17: 4/6 | BS17: 4/6 | BT17: 4/6 | BU17: 4/6 | BV17: 4/6 | BW17: 4/6 | BX17: 4/6 | BY17: 4/6 | BZ17: 4/6 | CA17: 4/6 | CB17: 4/6 | CC17: 6
A18: FeatCmpPV | B18: Composants du kit | C18: Kit components | D18: Onderdelen van de installatie | E18: Eigenschaften der Installation des Modulfeldes | F18: Csomag elemei | G18: Elementy zestawu | H18: Компоненты комплекта | I18: Součásti soupravy | S18: AB_HAUT_1001_VA1 | T18: AberFaitC | U18: v.A-1 | V18: NOIR | W18: Abergement haut 1001-v.A-1 | X18: Top Centre Flashing 1001-v.A-1 | Y18: Afdekplaat midden boven 1001-A1 | Z18: First-Hauptverblechung 1001-v.A-1 ATEC Schiefer | AA18: Felső Közép Burkolat 1001-v.A-1 | AB18: Górna środkowa obróbka blacharska 1001-v.A-1 | AC18: Верхняя центральная планка 1001-v.A-1 | AD18: Horní středová lišta 1001-v.A-1 | AL18: ART101014 | AN18: Pa 1695 / 1020 | AO18: ART104182 | AP18: 50.16 | AV18: Dpo 2030 / 995 | AW18: Dpo 1840 / 1135 | BK18: Dpo 1650 / 1100 | BL18: 3/5 | BM18: 3/5 | BN18: 3/5 | BO18: 3/5 | BP18: 3/5 | BQ18: 3/6 | BR18: 4/6 | BS18: 4/6 | BT18: 4/6 | BU18: 4/6 | BV18: 4/6 | BW18: 4/6 | BX18: 4/6 | BY18: 4/6 | BZ18: 4/6 | CA18: 4/6 | CB18: 4/6 | CC18: 6
A19: TypeCov | B19: Type de couverture | C19: Roof covering | D19: Type dakbedekking | E19: Art der Dachbedeckung | F19: Tetőfedés típusa | G19: Rodzaj pokrycia dachu | H19: Кровельное покрытие | I19: Střešní krytina | S19: AB_HAUT_1046_VA1 | T19: AberFaitC | U19: v.A-1 | V19: NOIR | W19: Abergement haut 1046-v.A-1 | X19: Top Centre Flashing 1046-v.A-1 | Y19: Afdekplaat midden boven 1046-A1 | Z19: First-Hauptverblechung 1046-v.A-1 ATEC Schiefer | AA19: Felső Közép Burkolat 1046-v.A-1 | AB19: Górna środkowa obróbka blacharska 1046-v.A-1 | AC19: Верхняя центральная планка 1046-v.A-1 | AD19: Horní středová lišta 1046-v.A-1 | AL19: ART101567 | AN19: Pa 1700 / 1020 | AO19: ART102188 | AP19: 50.16 | AW19: Dpo 2030 / 995 | BK19: Dpo 1650 / 1135 | BL19: 3/5/11 | BM19: 3/5/11 | BN19: 3/5/11 | BO19: 3/5/11 | BP19: 3/5/11 | BQ19: 3/6/12 | BR19: 4/6/12 | BS19: 4/6/12 | BT19: 4/6/12 | BU19: 4/6/12 | BV19: 4/6/12 | BW19: 4/6/12 | BX19: 4/6/12 | BY19: 4/6/12 | BZ19: 4/6/12 | CA19: 4/6/12 | CB19: 4/6/12 | CC19: 6/12
A20: Ardoise | B20: Ardoise | C20: Slate | D20: Leien | E20: Schiefer | F20: Pala | G20: Łupek | H20: Шифер | I20: Břidlice | S20: AB_HAUT_992_VA1 | T20: AberFaitC | U20: v.A-1 | V20: NOIR | W20: Abergement haut 992-v.A-1 | X20: Top Centre Flashing 992-v.A-1 | Y20: Afdekplaat midden boven 992-A1 | Z20: First-Hauptverblechung 992-v.A-1 ATEC Schiefer | AA20: Felső Közép Burkolat 992-v.A-1 | AB20: Górna środkowa obróbka blacharska 992-v.A-1 | AC20: Верхняя центральная планка 992-v.A-1 | AD20: Horní středová lišta 992-v.A-1 | AL20: ART100820 | AN20: Pa 1705 / 1020 | AO20: ART104189 | AP20: 50.16 | AW20: Dpo 2030 / 1050 | BK20: Dpo 1650 / 1140 | BL20: 3/5/11 | BM20: 3/5/11 | BN20: 3/5/11 | BO20: 3/5/11 | BP20: 3/5/11 | BQ20: 3/6/12 | BR20: 4/6/12 | BS20: 4/6/12 | BT20: 4/6/12 | BU20: 4/6/12 | BV20: 4/6/12 | BW20: 4/6/12 | BX20: 4/6/12 | BY20: 4/6/12 | BZ20: 4/6/12 | CA20: 4/6/12 | CB20: 4/6/12 | CC20: 6/12
A21: TuileC | B21: Tuile à fort galbe | C21: Curved Tiles | D21: Gebogen dakpannen | E21: Kanalziegel | F21: Hullámcserép | G21: Dachówka falista | H21: Изогнутая черепица | I21: Střešní zakřivená taška | S21: AB_HAUT_SPEC_ALU | T21: AberFaitC | U21: v.TS-1 | V21: ALU | W21: Abergement Faîtage central zzz ALU | X21: Top Centre Flashing zzz ALU | Z21: First-Hauptverblechung zzz ALU | AA21: Felső Közép Burkolat zzz ALU | AB21: Górna środkowa obróbka blacharska zzz ALU | AC21: Верхняя центральная планка zzz - Серая | AD21: Horní středová lišta zzz - Šedá | AN21: Pa 1720 / 1020 | AO21: ART104196 | AP21: 50.16 | AW21: Dpo 2030 / 1055 | BK21: Dpo 1650 / 1145 | BL21: 3/5/11 | BM21: 3/5/11 | BN21: 3/5/11 | BO21: 3/5/11 | BP21: 3/5/11 | BQ21: 3/6/12 | BR21: 4/6/12 | BS21: 4/6/12 | BT21: 4/6/12 | BU21: 4/6/12 | BV21: 4/6/12 | BW21: 4/6/12 | BX21: 4/6/12 | BY21: 4/6/12 | BZ21: 4/6/12 | CA21: 4/6/12 | CB21: 4/6/12 | CC21: 6/12
A22: Tuile | B22: Tuile plate | C22: Flat tiles | D22: Platte dakpannen | E22: Ziegel | F22: Lapos cserép | G22: Dachówka płaska | H22: Плоская черепица | I22: Ploché střešní taška | S22: AB_HAUT_SPEC_NOIR | T22: AberFaitC | U22: v.TS-1 | V22: NOIR | W22: Abergement Faîtage central zzz NOIR | X22: Top Centre Flashing zzz BLACK | Y22: Afdekplaat midden boven zzz ZWART | Z22: First-Hauptverblechung zzz Schwarz | AA22: Felső Közép Burkolat zzz FEKETE | AB22: Górna środkowa obróbka blacharska zzz Czarny | AC22: Верхняя центральная планка zzz - Чёрная | AD22: Horní středová lišta zzz - Černá | AN22: Pa 1740 / 1020 | AO22: ART102195 | AP22: 50.16 | AW22: Dpo 2030 / 1135 | BK22: Dpo 1650 / 1160 | BL22: 3/5/11 | BM22: 3/5/11 | BN22: 3/5/11 | BO22: 3/5/11 | BP22: 3/5/11 | BQ22: 3/6/12 | BR22: 4/6/12 | BS22: 4/6/12 | BT22: 4/6/12 | BU22: 4/6/12 | BV22: 4/6/12 | BW22: 4/6/12 | BX22: 4/6/12 | BY22: 4/6/12 | BZ22: 4/6/12 | CA22: 4/6/12 | CB22: 4/6/12 | CC22: 6/12
A23: PlaqueN | B23: Plaque nervurée | C23: Trapezoidal sheet | D23: Trapeziumvormige plaat | E23: Trapezblech | F23: Trapézlemez | G23: Blacha trapezowa | H23: Трапециевидный лист | I23: Trapézový plech | S23: RACC_ABER_HAUT_ARD | T23: AberFaitJonc | U23: v.A-1 | V23: NOIR | W23: Jonction haute Noir-v.A-1 | X23: Junction for Top Flashing Black-v.A-1 | Y23: Verbinding voor bovenste afdekplaat Zwart-A1 | Z23: Verbindungsblech Firstverblechung v.A-1 Schwarz | AA23: Csatlakozás Felső Burkolathoz Fekete-v.A-1 | AB23: Łącznik do obróbki górnej Czarny-v.A-1 | AC23: Соеденитель для верхнего отлива v.A-1 - Чёрный | AD23: Spojka pro horní lištu v. A1 - Černá | AL23: ART100110 | AN23: Po 1559 / 1046 | AO23: ART100826 | AP23: 50.16 | AW23: Dpo 2030 / 1305 | BK23: Dpo 1840 / 995 | BL23: 4/6/8 | BM23: 4/6/8 | BN23: 4/6/8 | BO23: 4/6/8 | BP23: 4/6/8 | BQ23: 4/6/8 | BR23: 4/6/8 | BS23: 4/6/8 | BT23: 4/6/8 | BU23: 4/6/8 | BV23: 4/6/8 | BW23: 4/6/8 | BX23: 4/6/8 | BY23: 4/6/8 | BZ23: 4/6/8 | CA23: 4/6/8 | CB23: 4/6/8 | CC23: 4/6/8 | CD23: 4/6/8 | CE23: 4/6/8 | CF23: 4/6/8 | CG23: 4/6/8 | CH23: 4/6/8 | CI23: 4/6/8 | CJ23: 6/8 | CK23: 6/9 | CL23: 6/9 | CM23: 7/9 | CN23: 7/9 | CO23: 7/9 | CP23: 7/9 | CQ23: 7/9 | CR23: 7/9 | CS23: 7/9 | CT23: 7/9 | CU23: 7/9 | CV23: 7/9
A24: TuileM | B24: Tuile mécanique | C24: Interlocking tile | D24: In elkaar grijpende dakpan | E24: Falzziegel | F24: Reteszelő tetőcserép | G24: Dachówka zakładkowa | H24: Сцепляющаяся черепица | I24: Zámková taška | S24: ALAALUDROITATEC | T24: AberLatATEC | U24: v.TS-1 | V24: ALU | W24: Abergement latéral DROIT Gris-v.TS-1 | X24: RIGHT Lateral Flashing Grey-v.TS-1 | Z24: Seitliche Verblechung Rechts v.TS-1 ALU | AA24: JOBB Oldalsó Burkolat Szürke-v.TS-1 | AB24: PRAWA Obróbka boczna Szary-v.TS-1 | AC24: Правая торцевая планка v.TS-1 - Серая | AD24: Pravá koncová lišta v.TS-1 -Šedá | AL24: ART100079 | AN24: Po 1575 / 1053 | AO24: ART101493 | AP24: 50.16 | BK24: Dpo 1840 / 1020 | BL24: 4/6/8 | BM24: 4/6/8 | BN24: 4/6/8 | BO24: 4/6/8 | BP24: 4/6/8 | BQ24: 4/6/8 | BR24: 4/6/8 | BS24: 4/6/8 | BT24: 4/6/8 | BU24: 4/6/8 | BV24: 4/6/8 | BW24: 4/6/8 | BX24: 4/6/8 | BY24: 4/6/8 | BZ24: 4/6/8 | CA24: 4/6/8 | CB24: 4/6/8 | CC24: 4/6/8 | CD24: 4/6/8 | CE24: 4/6/8 | CF24: 4/6/8 | CG24: 4/6/8 | CH24: 4/6/8 | CI24: 4/6/8 | CJ24: 6/8 | CK24: 6/9 | CL24: 6/9 | CM24: 7/9 | CN24: 7/9 | CO24: 7/9 | CP24: 7/9 | CQ24: 7/9 | CR24: 7/9 | CS24: 7/9 | CT24: 7/9 | CU24: 7/9 | CV24: 7/9
A25: PlaqueO | B25: Plaque ondulée | C25: Corrugated sheet | D25: Golfplaat | E25: Wellblech | F25: Hullámlemez | G25: Blacha falista | H25: Гофрированный лист | I25: Vlnitý plech | S25: ALABLKDROITATEC | T25: AberLatATEC | U25: v.TS-1 | V25: NOIR | W25: Abergement latéral DROIT Noir-v.TS-1 | X25: RIGHT Lateral Flashing Black-v.TS-1 | Y25: Zijafdekplaat RECHTS Zwart-TS1 | Z25: Seitliche Verblechung Rechts v.TS-1 Black | AA25: JOBB Oldalsó Burkolat Fekete-v.TS-1 | AB25: PRAWA Obróbka boczna Czarny-v.TS-1 | AC25: Правая торцевая планка v.TS-1 - Чёрная | AD25: Pravá koncová lišta v.TS-1 - Černá | AL25: ART100973 | AN25: Po 1575 / 1082 | AO25: ART101465 | AP25: 50.16 | BK25: Dpo 1840 / 1030 | BL25: 4/6/8 | BM25: 4/6/8 | BN25: 4/6/8 | BO25: 4/6/8 | BP25: 4/6/8 | BQ25: 4/6/8 | BR25: 4/6/8 | BS25: 4/6/8 | BT25: 4/6/8 | BU25: 4/6/8 | BV25: 4/6/8 | BW25: 4/6/8 | BX25: 4/6/8 | BY25: 4/6/8 | BZ25: 4/6/8 | CA25: 4/6/8 | CB25: 4/6/8 | CC25: 4/6/8 | CD25: 4/6/8 | CE25: 4/6/8 | CF25: 4/6/8 | CG25: 4/6/8 | CH25: 4/6/8 | CI25: 4/6/8 | CJ25: 6/8 | CK25: 6/9 | CL25: 6/9 | CM25: 7/9 | CN25: 7/9 | CO25: 7/9 | CP25: 7/9 | CQ25: 7/9 | CR25: 7/9 | CS25: 7/9 | CT25: 7/9 | CU25: 7/9 | CV25: 7/9
A26: InclT | B26: Inclinaison (α) | C26: Roof Slope (α) | D26: Dakhelling (α) | E26: Dachneigung (α) | F26: Tető lejtése (α) | G26: Kąt nachylenia dachu (α) | H26: Наклон крыши (α) | I26: Sklon střechy (α) | S26: ABER_LAT_DROIT_ARD | T26: AberLatATEC | U26: v.A-1 | V26: NOIR | W26: Abergement latéral DROIT Noir-v.A-1 | X26: RIGHT Lateral Flashing Black-v.A-1 | Y26: Zijafdekplaat RECHTS Zwart-A1 | Z26: Seitliche Verblechung Rechts v.A-1 Black | AA26: JOBB Oldalsó Burkolat Fekete-v.A-1 | AB26: PRAWA Obróbka boczna Czarny-v.A-1 | AC26: Правая торцевая планка v.A-1 - Чёрная | AD26: Pravá koncová lišta v.A-1 - Černá | AL26: ART100429 | AN26: Po 1580 / 808 | AO26: ART100450 | AP26: 38.28 | BK26: Dpo 1840 / 1040 | BL26: 4/6/8 | BM26: 4/6/8 | BN26: 4/6/8 | BO26: 4/6/8 | BP26: 4/6/8 | BQ26: 4/6/8 | BR26: 4/6/8 | BS26: 4/6/8 | BT26: 4/6/8 | BU26: 4/6/8 | BV26: 4/6/8 | BW26: 4/6/8 | BX26: 4/6/8 | BY26: 4/6/8 | BZ26: 4/6/8 | CA26: 4/6/8 | CB26: 4/6/8 | CC26: 4/6/8 | CD26: 4/6/8 | CE26: 4/6/8 | CF26: 4/6/8 | CG26: 4/6/8 | CH26: 4/6/8 | CI26: 4/6/8 | CJ26: 6/8 | CK26: 6/9 | CL26: 6/9 | CM26: 7/9 | CN26: 7/9 | CO26: 7/9 | CP26: 7/9 | CQ26: 7/9 | CR26: 7/9 | CS26: 7/9 | CT26: 7/9 | CU26: 7/9 | CV26: 7/9
A27: RacFait | B27: Raccord haut | C27: Top connection | D27: Bovenste aansluiting | E27: Firstanbindung | F27: Felső csatlakozás | G27: Połączenie na górze | H27: Верхнее соединение | I27: Horní připojení | S27: ALAALUGAUCHEATEC | T27: AberLatATEC | U27: v.TS-1 | V27: ALU | W27: Abergement latéral GAUCHE Gris-v.TS-1 | X27: LEFT Lateral Flashing Grey-v.TS-1 | Z27: Seitliche Verblechung Links v.TS-1 ALU | AA27: BAL Oldalsó Burkolat Szürke-v.TS-1 | AB27: LEWA Obróbka boczna Szary-v.TS-1 | AC27: Левая торцевая планка v.TS-1 - Серая | AD27: Levá koncová lišta v.TS-1 - Šedá | AL27: ART100057 | AN27: Po 1640 / 992 | AO27: ART100220 | AP27: 50.16 | BK27: Dpo 1840 / 1045 | BL27: 4/6/8 | BM27: 4/6/8 | BN27: 4/6/8 | BO27: 4/6/8 | BP27: 4/6/8 | BQ27: 4/6/8 | BR27: 4/6/8 | BS27: 4/6/8 | BT27: 4/6/8 | BU27: 4/6/8 | BV27: 4/6/8 | BW27: 4/6/8 | BX27: 4/6/8 | BY27: 4/6/8 | BZ27: 4/6/8 | CA27: 4/6/8 | CB27: 4/6/8 | CC27: 4/6/8 | CD27: 4/6/8 | CE27: 4/6/8 | CF27: 4/6/8 | CG27: 4/6/8 | CH27: 4/6/8 | CI27: 4/6/8 | CJ27: 6/8 | CK27: 6/9 | CL27: 6/9 | CM27: 7/9 | CN27: 7/9 | CO27: 7/9 | CP27: 7/9 | CQ27: 7/9 | CR27: 7/9 | CS27: 7/9 | CT27: 7/9 | CU27: 7/9 | CV27: 7/9
A28: None1 | B28: Aucun | C28: None | D28: Geen | E28: Keine | F28: Nincs | G28: Brak | H28: Никакой | I28: Nic | S28: ALABLKGAUCHEATEC | T28: AberLatATEC | U28: v.TS-1 | V28: NOIR | W28: Abergement latéral GAUCHE Noir-v.TS-1 | X28: LEFT Lateral Flashing Black-v.TS-1 | Y28: Zijafdekplaat LINKS Zwart-TS1 | Z28: Seitliche Verblechung Links v.TS-1 Black | AA28: BAL Oldalsó Burkolat Fekete-v.TS-1 | AB28: LEWA Obróbka boczna Czarny-v.TS-1 | AC28: Левая торцевая планка v.TS-1 - Чёрная | AD28: Levá koncová lišta v.TS-1 - Černá | AL28: ART101030 | AN28: Po 1640 / 1001 | AO28: ART100700 | AP28: 50.16 | BK28: Dpo 1840 / 1050 | BL28: 4/6/8 | BM28: 4/6/8 | BN28: 4/6/8 | BO28: 4/6/8 | BP28: 4/6/8 | BQ28: 4/6/8 | BR28: 4/6/8 | BS28: 4/6/8 | BT28: 4/6/8 | BU28: 4/6/8 | BV28: 4/6/8 | BW28: 4/6/8 | BX28: 4/6/8 | BY28: 4/6/8 | BZ28: 4/6/8 | CA28: 4/6/8 | CB28: 4/6/8 | CC28: 4/6/8 | CD28: 4/6/8 | CE28: 4/6/8 | CF28: 4/6/8 | CG28: 4/6/8 | CH28: 4/6/8 | CI28: 4/6/8 | CJ28: 6/8 | CK28: 6/9 | CL28: 6/9 | CM28: 7/9 | CN28: 7/9 | CO28: 7/9 | CP28: 7/9 | CQ28: 7/9 | CR28: 7/9 | CS28: 7/9 | CT28: 7/9 | CU28: 7/9 | CV28: 7/9
A29: AberFait | B29: Abergement | C29: Flashing | D29: Afdekplaat | E29: Firstverblechung | F29: Burkolat | G29: Obróbka blacharska | H29: Доборный элемент | I29: Krycí lišty | S29: ABER_LAT_GAUCH_AR | T29: AberLatATEC | U29: v.A-1 | V29: NOIR | W29: Abergement latéral GAUCHE Noir-v.A-1 | X29: LEFT Lateral Flashing Black-v.A-1 | Y29: Zijafdekplaat LINKS Zwart-A1 | Z29: Seitliche Verblechung Links v.A-1 Black | AA29: BAL Oldalsó Burkolat Fekete-v.A-1 | AB29: LEWA Obróbka boczna Czarny-v.A-1 | AC29: Левая торцевая планка v.A-1 - Чёрная | AD29: Levá koncová lišta v.A-1 - Černá | AL29: ART100568 | AN29: Po 1640 / 1001 P33 | AO29: ART100230 | AP29: 50.16 | BK29: Dpo 1840 / 1070 | BL29: 4/6/8 | BM29: 4/6/8 | BN29: 4/6/8 | BO29: 4/6/8 | BP29: 4/6/8 | BQ29: 4/6/8 | BR29: 4/6/8 | BS29: 4/6/8 | BT29: 4/6/8 | BU29: 4/6/8 | BV29: 4/6/8 | BW29: 4/6/8 | BX29: 4/6/8 | BY29: 4/6/8 | BZ29: 4/6/8 | CA29: 4/6/8 | CB29: 4/6/8 | CC29: 4/6/8 | CD29: 4/6/8 | CE29: 4/6/8 | CF29: 4/6/8 | CG29: 4/6/8 | CH29: 4/6/8 | CI29: 4/6/8 | CJ29: 6/8 | CK29: 6/9 | CL29: 6/9 | CM29: 7/9 | CN29: 7/9 | CO29: 7/9 | CP29: 7/9 | CQ29: 7/9 | CR29: 7/9 | CS29: 7/9 | CT29: 7/9 | CU29: 7/9 | CV29: 7/9
A30: RacEgout | B30: Raccord bas | C30: Eaves connection | D30: Dakrandaansluiting | E30: Dichtigkeitsanbindung traufeseitig | F30: Eresz csatlakozás | G30: Dolne połączenie | H30: Соединение карниза | I30: Okapové spojení | S30: ALUAP30TUILBRUTRE3 | T30: AberLatUniv | U30: P30 | V30: ALU | W30: Abergement Latéral Universel P30 Tuile Gris | X30: Lateral Flashing P30 - Grey | Z30: Seitliche Verblechung Universal P30 ALU | AA30: Oldalsó Burkolat P30 - Szürke | AB30: Obróbka boczna P30 - Szary | AC30: Торцевая планка Р30 - Серая | AD30: Koncová lišta P30 - Šedá | AL30: ART100703 | AN30: Po 1686 / 1016 | AO30: ART100702 | AP30: 50.16 | BK30: Dpo 1840 / 1090 | BL30: 4/6/8 | BM30: 4/6/8 | BN30: 4/6/8 | BO30: 4/6/8 | BP30: 4/6/8 | BQ30: 4/6/8 | BR30: 4/6/8 | BS30: 4/6/8 | BT30: 4/6/8 | BU30: 4/6/8 | BV30: 4/6/8 | BW30: 4/6/8 | BX30: 4/6/8 | BY30: 4/6/8 | BZ30: 4/6/8 | CA30: 4/6/8 | CB30: 4/6/8 | CC30: 4/6/8 | CD30: 4/6/8 | CE30: 4/6/8 | CF30: 4/6/8 | CG30: 4/6/8 | CH30: 4/6/8 | CI30: 4/6/8 | CJ30: 6/8 | CK30: 6/9 | CL30: 6/9 | CM30: 7/9 | CN30: 7/9 | CO30: 7/9 | CP30: 7/9 | CQ30: 7/9 | CR30: 7/9 | CS30: 7/9 | CT30: 7/9 | CU30: 7/9 | CV30: 7/9
A31: PowerMod | B31: Puissance | C31: Module Power | D31: Module vermogen | E31: Modulleistung | F31: Modul teljesítménye | G31: Moc modułu | H31: Модуль питания | I31: Modul napájení | S31: ALUNP30TUILNOIRRE3 | T31: AberLatUniv | U31: P30 | V31: NOIR | W31: Abergement Latéral Universel P30 Tuile Noir | X31: Lateral Flashing P30 - Black | Y31: Universele zijafdekplaat P30 - Zwart | Z31: Seitliche Verblechung Universal P30 Schwarz | AA31: Oldalsó Burkolat P30 - Fekete | AB31: Obróbka boczna P30 - Czarny | AC31: Торцевая планка Р30 - Чёрная | AD31: Koncová lišta P30 - Černá | AL31: ART100927 | AN31: Po 1710 / 995 | AO31: ART104168 | AP31: 50.16 | BK31: Dpo 1840 / 1100 | BL31: 4/6/8 | BM31: 4/6/8 | BN31: 4/6/8 | BO31: 4/6/8 | BP31: 4/6/8 | BQ31: 4/6/8 | BR31: 4/6/8 | BS31: 4/6/8 | BT31: 4/6/8 | BU31: 4/6/8 | BV31: 4/6/8 | BW31: 4/6/8 | BX31: 4/6/8 | BY31: 4/6/8 | BZ31: 4/6/8 | CA31: 4/6/8 | CB31: 4/6/8 | CC31: 4/6/8 | CD31: 4/6/8 | CE31: 4/6/8 | CF31: 4/6/8 | CG31: 4/6/8 | CH31: 4/6/8 | CI31: 4/6/8 | CJ31: 6/8 | CK31: 6/9 | CL31: 6/9 | CM31: 7/9 | CN31: 7/9 | CO31: 7/9 | CP31: 7/9 | CQ31: 7/9 | CR31: 7/9 | CS31: 7/9 | CT31: 7/9 | CU31: 7/9 | CV31: 7/9
A32: AberLat | B32: Raccord latéral | C32: Lateral connection | D32: Zij aansluiting | E32: Seitliche Verblechung | F32: Oldalsó csatlakozás | G32: Połączenie boczne | H32: Боковое соединение | I32: Boční spojení | S32: ALUA | T32: AberLatUniv | V32: ALU | W32: Abergement Latéral Universel Gris | X32: Lateral Flashing - Grey | Z32: Seitliche Verblechung Universal ALU | AA32: Oldalsó Burkolat - Szürke | AB32: Obróbka boczna - Szary | AC32: Торцевая планка - Серая | AD32: Koncová lišta - Šedá | AL32: ART100673 | AN32: Po 1710 / 1000 | AO32: ART102265 | AP32: 50.16 | BK32: Dpo 1840 / 1135 | BL32: 4/6/8/12/14 | BM32: 4/6/8/12/14 | BN32: 4/6/8/12/14 | BO32: 4/6/8/12/14 | BP32: 4/6/8/12/14 | BQ32: 4/6/8/12/14 | BR32: 4/6/8/12/14 | BS32: 4/6/8/12/14 | BT32: 4/6/8/12/14 | BU32: 4/6/8/12/14 | BV32: 4/6/8/12/14 | BW32: 4/6/8/12/14 | BX32: 4/6/8/12/14 | BY32: 4/6/8/12/14 | BZ32: 4/6/8/12/14 | CA32: 4/6/8/12/14 | CB32: 4/6/8/12/14 | CC32: 4/6/8/12/14 | CD32: 4/6/8/12/14 | CE32: 4/6/8/12/14 | CF32: 4/6/8/12/14 | CG32: 4/6/8/12/14 | CH32: 4/6/8/12/14 | CI32: 4/6/8/12/14 | CJ32: 6/8/12/14 | CK32: 6/9/12/15 | CL32: 6/9/12/15 | CM32: 7/9/13/15 | CN32: 7/9/13/15 | CO32: 7/9/13/15 | CP32: 7/9/13/15 | CQ32: 7/9/13/15 | CR32: 7/9/13/15 | CS32: 7/9/13/15 | CT32: 7/9/13/15 | CU32: 7/9/13/15 | CV32: 7/9/13/15
A33: NbrEtrier | B33: Nombre d'étriers | C33: Number of Clamps | D33: Aantal klemmen | E33: Anzahl Klemmen | F33: Rögzítőbilincsek száma | G33: Liczba zacisków | H33: Количество зажимов | I33: Počet svorek | S33: ALUN | T33: AberLatUniv | V33: NOIR | W33: Abergement Latéral Universel Noir | X33: Lateral Flashing - Black | Y33: Universele zijafdekplaat - Zwart | Z33: Seitliche Verblechung Universal Schwarz | AA33: Oldalsó Burkolat - Fekete | AB33: Obróbka boczna - Czarny | AC33: Торцевая планка - Чёрная | AD33: Koncová lišta - Černá | AL33: ART100494 | AN33: Po 1710 / 1005 | AO33: ART102272 | AP33: 50.16
A34: LargRooflex | B34: Largeur FLEXALU | C34: FLEXALU Width | D34: Breedte FLEXALU | E34: Breite FLEXALU | F34: FLEXALU szélessége | G34: Szerokość taśmy hydroizolacyjnej | H34: Ширина FLEXALU | I34: Šířka FLEXALU | S34: CORNIERELAQUEB | T34: Corniere | V34: NOIR | W34: Abergement Haut Cornière Laquée Noire L1400mm (pour la fixation des abergements centraux) | X34: Top Corner Piece Flashing - Black L1400mm (To Join Module to Top Centre Flashings) | Y34: Hoekstuk Zwart L1400 mm om de module te verbinden met de afdekplaat midden boven | Z34: Verbindungsstück (zur Befestigung der zentralen Verblechung) Schwarz | AA34: Felső Sarok Elem Burkolat - Fekete L1400mm (Modul csatlakoztatásához a Felső Közép Burkolathoz) | AB34: Narożnik górny czarny L1400mm (do mocowania środkowych obróbek blacharskich) | AC34: Верхняя угловая крышка L1400мм (для крепления модуля к верхней центральной планке) Чёрная | AD34: Horní rohový kryt L1400mm (pro upevnění modulu na horní středovou lištu) černý | AL34: ART101409 | AN34: Po 1710 / 1010 | AO34: ART104175 | AP34: 50.16
A35: Noir | B35: Noir | C35: Black | D35: Zwart | E35: Schwarz | F35: Fekete | G35: Czarny | H35: Чёрный | I35: Černý | S35: CORNIERE | T35: Corniere | V35: ALU | W35: Abergement Haut Cornière Grise L1400mm (pour la fixation des abergements centraux) | X35: Top Corner Piece Flashing - Grey L1400mm (To Join Module to Top Centre Flashings) | Z35: Verbindungsstück (zur Befestigung der zentralen Verblechung) ALU | AA35: Felső Sarok Elem Burkolat - Szürke L1400mm (Modul csatlakoztatásához a Felső Közép Burkolathoz) | AB35: Narożnik górny szary L1400mm (do mocowania środkowych obróbek blacharskich) | AC35: Верхняя угловая крышка L1400мм (для крепления модуля к верхней центральной планке) Серая | AD35: Horní rohový kryt L1400mm (pro upevnění modulu na horní středovou lištu) šedý | AL35: ART100867 | AN35: Po 1710 / 1020 | AO35: ART102279 | AP35: 50.16
A36: Rouge | B36: Rouge | C36: Red | D36: Rood | E36: Rot | F36: Piros | G36: Czerwony | H36: Красный | I36: Červený | S36: CROCHET | T36: Crochet | W36: Crochet de Fixation d'Abergement In Roof | X36: GSE Flashing Hook | Y36: GSE bevestigingshaakjes afdekplaten | Z36: Hafte zur Befestigung der Verblechung | AA36: GSE Burkoló Bilincs | AB36: GSE Hak do obróbki blacharskiej | AC36: Зажим GSE | AD36: Svorka GSE | AL36: ART100633 | AN36: Po 1710 / 1025 | AO36: ART102286 | AP36: 50.16
A37: RoofDisplay | B37: Afficher le toit | C37: View the Roof | D37: Bekijk het dak | E37: Dach anzeigen | F37: Tetőnézet | G37: Widok dachu | H37: Посмотреть крышу | I37: Pohled na střechu | R37: EtrDblH14NOIR | S37: ART105575 | T37: EtrDbl | U37: H14 | V37: NOIR | W37: Etrier Double H14 - Acier Inox - Noir - In Roof | X37: Double Clamp H14 - Steel - Black - In Roof | Y37: H14 Middenklem - Inox - Zwart - In Roof | Z37: Verstärkte Mittel-Klemme H14 Schwarz | AA37: Középkapocs H4 - Acél - Fekete - Tetőszerkezetbe építő r. | AB37: Podwójny zacisk H14 - Stal - Czarny - In Roof | AC37: Двухсторонний зажим Н14 - Стальной - Чёрный - In Roof | AD37: Oboustranná svorka H14 - ocel - černá - in Roof | AL37: ART105575 | AN37: Po 1710 / 1030 | AO37: ART102293 | AP37: 50.16
A38: HomeBt | B38: Accueil | C38: Home | D38: Homepage | E38: Startseite | F38: Főoldal | G38: Home | H38: Домой | I38: Domů | R38: EtrDblH16ALU | S38: EDH162014ALU (ASV09-35G) | T38: EtrDbl | U38: H16 | V38: ALU | W38: Etrier Double H16 - Acier Inox - Gris - In Roof | X38: Double Clamp H16 - Steel - Grey - In Roof | Z38: Verstärkte Mittel-Klemme H16 | AA38: Középkapocs H16 - Acél - Szürke - Tetőszerkezetbe építő r. | AB38: Podwójny zacisk H16 - Stal - Szary - In Roof | AC38: Двухсторонний зажим Н16 - Стальной - Серый - In Roof | AD38: Oboustranná svorka H16 - ocel - šedá - in Roof | AL38: ART100045 | AN38: Po 1710 / 1040 | AO38: ART103174 | AP38: 50.16
A39: CalInstr | B39: Colorier le toit (surface encadrée ci-dessous) à l'aide de la souris, en selectionnant les cellules/cases correspondant aux modules, pour créer le champ PV souhaité. | C39: Color the roof (framed surface below) using the mouse, by selecting the cells / boxes corresponding to the modules, to create the desired PV Plant. | D39: Kleur het dak (omkaderd oppervlak hieronder) met behulp van de muis en slecteer de cellen/vakjes die overeenkomen met de modules om het gewenste PV-veld te creëren | E39: das Dach (untenstehende, gerahmte Fläche) mit Hilfe der Maus markieren und über das Auswählen der einzelnen Zellen das entsprechende PV-Modulfeld erstellen | F39: Az egér használatával adja meg a kívánt napelem panel elrendezést, a következő cellák kiválasztásával. | G39: Pokoloruj dach (obszar w ramce poniżej) za pomocą myszy, wybierając komórki / pola odpowiadające modułom, aby utworzyć żądaną instalację fotowoltaiczną. | H39: Используйте мышь, чтобы указать желаемую схему расположения солнечных панелей, выбрав следующие ячейки. | I39: Vybarvěte střechu (dole zarámovaný povrch) pomocí myši výběrem buněk / polí odpovídajících modulům a vytvořte požadovaný FV systém. | R39: EtrDblH16NOIR | S39: EDH162014N (ASV09-35V) | T39: EtrDbl | U39: H16 | V39: NOIR | W39: Etrier Double H16 - Acier Inox - Noir - In Roof | X39: Double Clamp H16 - Steel - Black - In Roof | Y39: H16 Middenklem - Inox - Zwart - In Roof | Z39: Verstärkte Mittel-Klemme H16 Schwarz | AA39: Középkapocs H16 - Acél - Fekete - Tetőszerkezetbe építő r. | AB39: Podwójny zacisk H16 - Stal - Czarny - In Roof | AC39: Двухсторонний зажим Н16 - Стальной - Чёрный - In Roof | AD39: Oboustranná svorka H16 - ocel - černá - in Roof | AL39: ART100482 | AN39: Po 1710 / 1045 | AO39: ART104728 | AP39: 50.16
A40: NbrRows | B40: Nombres de lignes | C40: Number of Lines | D40: Aantal rijen | E40: Anzahl der Zeilen | F40: Sorok száma | G40: Ilość linii | H40: Количество рядов | I40: Počet řádků | R40: EtrDblH19ALU | S40: EDH192014ALU (ASV-38G) | T40: EtrDbl | U40: H19 | V40: ALU | W40: Etrier Double H19 - Acier Inox - Gris - In Roof | X40: Double Clamp H19 - Steel - Grey - In Roof | Z40: Verstärkte Mittel-Klemme H19 | AA40: Középkapocs H19 - Acél - Szürke - Tetőszerkezetbe építő r. | AB40: Podwójny zacisk H19 - Stal - Szary - In Roof | AC40: Двухсторонний зажим Н19 - Стальной - Серый - In Roof | AD40: Oboustranná svorka H19 - ocel - šedá - in Roof | AL40: ART100171 | AN40: Po 1710 / 1050 | AO40: ART102300 | AP40: 50.16
A41: NbrCol | B41: Nombres de colonnes | C41: Number of Columns | D41: Aantal kolommen | E41: Anzahl der Spalten | F41: Oszlopok száma | G41: Ilość kolumn | H41: Количество столбцов | I41: Počet sloupců | R41: EtrDblH19NOIR | S41: EDH192014N (ASV-38V) | T41: EtrDbl | U41: H19 | V41: NOIR | W41: Etrier Double H19 - Acier Inox - Noir - In Roof | X41: Double Clamp H19 - Steel - Black - In Roof | Y41: H19 Middenklem - Inox - Zwart - In Roof | Z41: Verstärkte Mittel-Klemme H19 Schwarz | AA41: Középkapocs H19 - Acél - Fekete - Tetőszerkezetbe építő r. | AB41: Podwójny zacisk H19 - Stal - Czarny - In Roof | AC41: Двухсторонний зажим Н19 - Стальной - Чёрный - In Roof | AD41: Oboustranná svorka H19 - ocel - černá - in Roof | AL41: ART100548 | AN41: Po 1710 / 1055 | AO41: ART104413 | AP41: 50.16
A42: NbrMod | B42: Nombres modules | C42: Number of Modules | D42: Aantal zonnepanelen | E42: Anzahl der Module | F42: Modulok száma | G42: Ilość modułów | H42: Количество модулей | I42: Počet modulů | R42: EtrDblH21ALU | S42: EDH212014ALU (ASV09-40G) | T42: EtrDbl | U42: H21 | V42: ALU | W42: Etrier Double H21 - Acier Inox - Gris - In Roof | X42: Double Clamp H21 - Steel - Grey - In Roof | Z42: Verstärkte Mittel-Klemme H21 | AA42: Középkapocs H21 - Acél - Szürke - Tetőszerkezetbe építő r. | AB42: Podwójny zacisk H21 - Stal - Szary - In Roof | AC42: Двухсторонний зажим Н21 - Стальной - Серый - In Roof | AD42: Oboustranná svorka H21 - ocel - šedá - in Roof | AL42: ART100597 | AN42: Po 1710 / 1060 | AO42: ART102307 | AP42: 50.16
A43: Ernergy | B43: Energie | C43: Energy | D43: Energie | E43: Energie | F43: Energia | G43: Energia | H43: Мощность | I43: Napájení | R43: EtrDblH21NOIR | S43: EDH212014N (ASV09-40V) | T43: EtrDbl | U43: H21 | V43: NOIR | W43: Etrier Double H21 - Acier Inox - Noir - In Roof | X43: Double Clamp H21 - Steel - Black - In Roof | Y43: H21 Middenklem - Inox - Zwart - In Roof | Z43: Verstärkte Mittel-Klemme H21 Schwarz | AA43: Középkapocs H21 - Acél - Fekete - Tetőszerkezetbe építő r. | AB43: Podwójny zacisk H21 - Stal - Czarny - In Roof | AC43: Двухсторонний зажим Н21 - Стальной - Чёрный - In Roof | AD43: Oboustranná svorka H21 - ocel - černá - in Roof | AL43: ART100744 | AN43: Dpo 1650 / 995 | AO43: ART105141 | AP43: 27.72
A44: ResetCPV | B44: Effacer champ PV | C44: Erase PV Array | D44: Verwijder het PV-veld | E44: Modulfeld löschen | F44: Elrendezés törlése | G44: Usuń macierz PV | H44: Стереть раскладку PV-модулей | I44: Erase PV Array | R44: EtrDblH23ALU | S44: EDH232014ALU (ASV09-42G) | T44: EtrDbl | U44: H23 | V44: ALU | W44: Etrier Double H23 - Acier Inox - Gris - In Roof | X44: Double Clamp H23 - Steel - Grey - In Roof | Z44: Verstärkte Mittel-Klemme H23 | AA44: Középkapocs H23 - Acél - Szürke - Tetőszerkezetbe építő r. | AB44: Podwójny zacisk H23 - Stal - Szary - In Roof | AC44: Двухсторонний зажим Н23 - Стальной - Серый - In Roof | AD44: Oboustranná svorka H23 - ocel - šedá - in Roof | AL44: ART101192 | AN44: Dpo 1650 / 1070 | AO44: ART105148 | AP44: 27.72
A45: Purchase | B45: Devis | C45: Cost Estimate | D45: Kostenraming | E45: Zitat | F45: Becsült költség | G45: Szacowanie kosztów | H45: Смета расходов | I45: Odhad nákladů | R45: EtrDblH23NOIR | S45: EDH232014N (ASV9-42V) | T45: EtrDbl | U45: H23 | V45: NOIR | W45: Etrier Double H23 - Acier Inox - Noir - In Roof | X45: Double Clamp H23 - Steel - Black - In Roof | Y45: H23 Middenklem - Inox - Zwart - In Roof | Z45: Verstärkte Mittel-Klemme H23 Schwarz | AA45: Középkapocs H23 - Acél - Fekete - Tetőszerkezetbe építő r. | AB45: Podwójny zacisk H23 - Stal - Czarny - In Roof | AC45: Двухсторонний зажим Н23 - Стальной - Чёрный - In Roof | AD45: Oboustranná svorka H23 - ocel - černá - in Roof | AL45: ART100658 | AN45: Dpo 1650 / 1100 | AO45: ART105155 | AP45: 27.72
A46: NbrPiece | B46: Nombre de pièces | C46: Number of Pieces | D46: Aantal onderdelen | E46: Menge pro Artikel | F46: Elemek száma | G46: Ilość sztuk | H46: Количество штук | I46: Počet kusů | R46: EtrDblH26ALU | S46: EDH262014ALU (ASV09-46G) | T46: EtrDbl | U46: H26 | V46: ALU | W46: Etrier Double H26 - Acier Inox - Gris - In Roof | X46: Double Clamp H26 - Steel - Grey - In Roof | Z46: Verstärkte Mittel-Klemme H26 | AA46: Középkapocs H26 - Acél - Szürke - Tetőszerkezetbe építő r. | AB46: Podwójny zacisk H26 - Stal - Szary - In Roof | AC46: Двухсторонний зажим Н26 - Стальной - Серый - In Roof | AD46: Oboustranná svorka H26 - ocel - šedá - in Roof | AL46: ART102202 | AN46: Dpo 1650 / 1135 | AO46: ART105162 | AP46: 27.72
A47: PlakGSEPays | B47: Plaques GSE Paysage | C47: GSE Frames Landscape | D47: GSE Landscape plaat | E47: GSE-Wanne Querformat | F47: GSE Fekvő tájolású keret | G47: Ramy GSE Poziome | H47: Горизонтальная рама GSE | I47: GSE rámy na šířku | R47: EtrDblH26NOIR | S47: EDH262014N (ASV09-46V) | T47: EtrDbl | U47: H26 | V47: NOIR | W47: Etrier Double H26 - Acier Inox - Noir - In Roof | X47: Double Clamp H26 - Steel - Black - In Roof | Y47: H26 Middenklem - Inox - Zwart - In Roof | Z47: Verstärkte Mittel-Klemme H26 Schwarz | AA47: Középkapocs H26 - Acél - Fekete - Tetőszerkezetbe építő r. | AB47: Podwójny zacisk H26 - Stal - Czarny - In Roof | AC47: Двухсторонний зажим Н26 - Стальной - Чёрный - In Roof | AD47: Oboustranná svorka H26 - ocel - černá - in Roof | AL47: ART102335 | AN47: Dpo 1650 / 1140 | AO47: ART105169 | AP47: 27.72
A48: PlakGSEPort | B48: Plaques GSE Portrait | C48: GSE Frames Portrait | D48: GSE Portrait plaat | E48: GSE-Wanne Hochkant | F48: GSE Álló tájolású keret | G48: Ramy GSE Pionowe | H48: Вертикальная рама GSE | I48: GSE svislý rámy | R48: EtrDblH27ALU | S48: EDH272014ALU (ASV09-46G) | T48: EtrDbl | U48: H27 | V48: ALU | W48: Etrier Double H27 - Acier Inox - Gris - In Roof | X48: Double Clamp H27 - Steel - Grey - In Roof | Z48: Verstärkte Mittel-Klemme H27 | AA48: Középkapocs H27 - Acél - Szürke - Tetőszerkezetbe építő r. | AB48: Podwójny zacisk H27 - Stal - Szary - In Roof | AC48: Двухсторонний зажим Н27 - Стальной - Серый - In Roof | AD48: Oboustranná svorka H27 - ocel - šedá - in Roof | AL48: ART100006 | AN48: Dpo 1650 / 1145 | AO48: ART105722 | AP48: 27.72
A49: AberLatUniv | B49: Abergement latéral Universel | C49: Universal Lateral Flashing | D49: Universele zijafdekplaat | E49: Seitliche Verblechung Universal | F49: Univerzális oldalsó/laterális burkolat | G49: Uniwersalna obróbka do bocznej krawędzi dachu | H49: Универсальная торцевая планка | I49: Univerzální koncová lišta | R49: EtrDblH27NOIR | S49: EDH272014N (ASV09-46V) | T49: EtrDbl | U49: H27 | V49: NOIR | W49: Etrier Double H27 - Acier Inox - Noir - In Roof | X49: Double Clamp H27 - Steel - Black - In Roof | Y49: H27 Middenklem - Inox - Zwart - In Roof | Z49: Verstärkte Mittel-Klemme H27 Schwarz | AA49: Középkapocs H27 - Acél - Fekete - Tetőszerkezetbe építő r. | AB49: Podwójny zacisk H27 - Stal - Czarny - In Roof | AC49: Двухсторонний зажим Н27 - Стальной - Чёрный - In Roof | AD49: Oboustranná svorka H27 - ocel - černá - in Roof | AL49: ART100242 | AN49: Dpo 1650 / 1160 | AO49: ART105176 | AP49: 27.72
A50: AberLatATEC | B50: Abergement latéral | C50: Lateral Flashing | D50: Zijafdekplaat | E50: Seitliche Verblechung | F50: Oldalsó burkolat | G50: Obróbka do bocznej krawędzi dachu | H50: Торцевая планка | I50: Koncová lišta | R50: EtrDblH31ALU | S50: EDH312014ALU (ASV09-50G) | T50: EtrDbl | U50: H31 | V50: ALU | W50: Etrier Double H31 - Acier Inox - Gris - In Roof | X50: Double Clamp H31 - Steel - Grey - In Roof | Z50: Verstärkte Mittel-Klemme H31 | AA50: Középkapocs H31 - Acél - Szürke - Tetőszerkezetbe építő r. | AB50: Podwójny zacisk H31 - Stal - Szary - In Roof | AC50: Двухсторонний зажим Н31 - Стальной - Серый - In Roof | AD50: Oboustranná svorka H31 - ocel - šedá - in Roof | AL50: ART101326 | AN50: Dpo 1840 / 995 | AO50: ART105183 | AP50: 29.04
A51: AberFaitD | B51: Abergement Faîtage Droit | C51: Top Right Corner Flashing | D51: Hoekstuk rechtsboven | E51: Eckverblechung rechts | F51: Jobb felső sarok burkolat | G51: Obróbka blacharska - prawy narożnik | H51: Планка верхнего правого угла | I51: Lišta pravého horního rohu | R51: EtrDblH31NOIR | S51: EDH312014N (ASV09-50V) | T51: EtrDbl | U51: H31 | V51: NOIR | W51: Etrier Double H31 - Acier Inox - Noir - In Roof | X51: Double Clamp H31 - Steel - Black - In Roof | Y51: H31 Middenklem - Inox - Zwart - In Roof | Z51: Verstärkte Mittel-Klemme H31 Schwarz | AA51: Középkapocs H31 - Acél - Fekete - Tetőszerkezetbe építő r. | AB51: Podwójny zacisk H31 - Stal - Czarny - In Roof | AC51: Двухсторонний зажим Н31 - Стальной - Чёрный - In Roof | AD51: Oboustranná svorka H31 - ocel - černá - in Roof | AL51: ART101288 | AN51: Dpo 1840 / 1020 | AO51: ART105190 | AP51: 29.04
A52: AberFaitG | B52: Abergement Faîtage Gauche | C52: Top Left Corner Flashing | D52: Hoekstuk linksboven | E52: Eckverblechung links | F52: Bal felső sarok burkolat | G52: Obróbka blacharska - lewy narożnik | H52: Планка верхнего левого угла | I52: Lišta levého horního rohu | R52: EtrSplH16ALU | S52: ESH162014ALU (ASV08-35G) | T52: EtrSpl | U52: H16 | V52: ALU | W52: Etrier Simple H16 - Acier Inox - Gris - In Roof | X52: Simple Clamp H16 - Steel - Grey - In Roof | Z52: Verstärkte Rand-Klemme H16 | AA52: Végkapocs H16 - Acél - Szürke - Tetőszerkezetbe építő r. | AB52: Prosty zacisk H16 - Stal - Szary - In Roof | AC52: Односторонний зажим Н16 - Стальной - Серый - In Roof | AD52: Jednostranná svorka H16 - ocel - šedá - in Roof | AL52: ART100376 | AN52: Dpo 1840 / 1030 | AO52: ART105197 | AP52: 29.04
A53: AberFaitDATEC | B53: Abergement Angle Droit | C53: Top Right Angle Flashing | D53: Hoekafdekplaat rechtsboven | E53: Winkelverblechung rechts | F53: Jobb oldali szög burkolat | G53: Obróbka kątowa - góra, prawa strona | H53: Верхняя правая угловая планка | I53: Pravá horní rohová lišta | R53: EtrSplH16NOIR | S53: ESH162014N (ASV08-35V) | T53: EtrSpl | U53: H16 | V53: NOIR | W53: Etrier Simple H16 - Acier Inox - Noir - In Roof | X53: Simple Clamp H16 - Steel - Black - In Roof | Y53: H16 Eindklem - Inox - Zwart - In Roof | Z53: Verstärkte Rand-Klemme H16 Schwarz | AA53: Végkapocs H16 - Acél - Fekete - Tetőszerkezetbe építő r. | AB53: Prosty zacisk H16 - Stal - Czarny - In Roof | AC53: Односторонний зажим Н16 - Стальной - Чёрный - In Roof | AD53: Jednostranná svorka H16 - ocel - černá - in Roof | AL53: ART100814 | AN53: Dpo 1840 / 1040 | AO53: ART105729 | AP53: 29.04
A54: AberFaitGATEC | B54: Abergement Angle Gauche | C54: Top Left Angle Flashing | D54: Hoekafdekplaat linksboven | E54: Winkelverblechung links | F54: Bal oldali szög burkolat | G54: Obróbka kątowa - góra, lewa strona | H54: Верхняя левая угловая планка | I54: Horní levá rohová lišta | R54: EtrSplH16ALU | S54: ESH162014ALU | T54: EtrSpl | U54: H16 | V54: ALU | W54: Etrier Simple H16 - Acier Inox - Gris - In Roof | X54: Simple Clamp H16 - Steel - Grey - In Roof | Z54: Verstärkte Rand-Klemme H16 | AA54: Végkapocs H16 - Acél - Szürke - Tetőszerkezetbe építő r. | AB54: Prosty zacisk H16 - Stal - Szary - In Roof | AC54: Односторонний зажим Н16 - Стальной - Серый - In Roof | AD54: Jednostranná svorka H16 - ocel - šedá - in Roof | AL54: ART100376 | AN54: Dpo 1840 / 1045 | AO54: ART105358 | AP54: 29.04
A55: AberFaitC | B55: Abergement Faîtage central | C55: Top Centre Flashing | D55: Afdekplaat midden boven | E55: First-Hauptverblechung | F55: Felső-közép burkolat | G55: Obróbka blacharska - góra, środek | H55: Верхняя центральная планка | I55: Horní středová lišta | R55: EtrSplH16NOIR | S55: ESH162014N | T55: EtrSpl | U55: H16 | V55: NOIR | W55: Etrier Simple H16 - Acier Inox - Noir - In Roof | X55: Simple Clamp H16 - Steel - Black - In Roof | Y55: H16 Eindklem - Inox - Zwart - In Roof | Z55: Verstärkte Rand-Klemme H16 Schwarz | AA55: Végkapocs H16 - Acél - Fekete - Tetőszerkezetbe építő r. | AB55: Prosty zacisk H16 - Stal - Czarny - In Roof | AC55: Односторонний зажим Н16 - Стальной - Чёрный - In Roof | AD55: Jednostranná svorka H16 - ocel - černá - in Roof | AL55: ART100814 | AN55: Dpo 1840 / 1050 | AO55: ART105365 | AP55: 29.04
A56: AberFaitCATEC | B56: Abergement Faîtage | C56: Centre Flashing | D56: Afdekplaat midden | E56: First-Hauptverblechung | F56: Közép burkolat | G56: Obróbka blacharska - środek | H56: Центральная планка | I56: Středová lišta | R56: EtrSplH19ALU | S56: ESH192014ALU (ASV08-38G) | T56: EtrSpl | U56: H19 | V56: ALU | W56: Etrier Simple H19 - Acier Inox - Gris - In Roof | X56: Simple Clamp H19 - Steel - Grey - In Roof | Z56: Verstärkte Rand-Klemme H19 | AA56: Végkapocs H19 - Acél - Szürke - Tetőszerkezetbe építő r. | AB56: Prosty zacisk H19 - Stal - Szary - In Roof | AC56: Односторонний зажим Н19 - Стальной - Серый - In Roof | AD56: Jednostranná svorka H19 - ocel - šedá - in Roof | AL56: ART101152 | AN56: Dpo 1840 / 1070 | AO56: ART105204 | AP56: 29.04
A57: SelecATECModmsg1 | B57: Aucun module ATEC n'a été sélectionné. | C57: No ATEC module has been selected. | D57: Er is geen ATEC-zonnepaneel geselecteerd. | E57: Es wurde kein ATEC-Modul ausgewählt. | F57: Nem választott ATEC modult. | G57: Nie wybrano żadnego modułu ATEC. | H57: Не выбран ни один модуль ATEC. | I57: Nebyl vybrán žádný modul ATEC. | R57: EtrSplH19NOIR | S57: ESH192014N (ASV08-38V) | T57: EtrSpl | U57: H19 | V57: NOIR | W57: Etrier Simple H19 - Acier Inox - Noir - In Roof | X57: Simple Clamp H19 - Steel - Black - In Roof | Y57: H19 Eindklem - Inox - Zwart - In Roof | Z57: Verstärkte Rand-Klemme H19 Schwarz | AA57: Végkapocs H19 - Acél - Fekete - Tetőszerkezetbe építő r. | AB57: Prosty zacisk H19 - Stal - Czarny - In Roof | AC57: Односторонний зажим Н19 - Стальной - Чёрный - In Roof | AD57: Jednostranná svorka H19 - ocel - černá - in Roof | AL57: ART101299 | AN57: Dpo 1840 / 1090 | AO57: ART105736 | AP57: 29.04
A58: Corniere | B58: Corniere ( pour Faîtage central) | C58: Corner Piece (To Join Module to Top Centre Flashings) | D58: Hoekstuk om de module te verbinden met de afdekplaat midden boven | E58: Verbindungsstück (zur Befestigung der zentralen Verblechung) | F58: Sarok elem (Modul csatlakoztatása a felső-közép burkolathoz) | G58: Narożnik (dla kalenicy środkowej) | H58: Угловой элемент (для соединения модуля с верхней центральной планкой) | I58: Rohový díl (ke spojení modulu s horním středovým lemováním) | R58: EtrSplH21ALU | S58: ESH212014ALU (ASV08-40G) | T58: EtrSpl | U58: H21 | V58: ALU | W58: Etrier Simple H21 - Acier Inox - Gris - In Roof | X58: Simple Clamp H21 - Steel - Grey - In Roof | Z58: Verstärkte Rand-Klemme H21 | AA58: Végkapocs H21 - Acél - Szürke - Tetőszerkezetbe építő r. | AB58: Prosty zacisk H21 - Stal - Szary - In Roof | AC58: Односторонний зажим Н21 - Стальной - Серый - In Roof | AD58: Jednostranná svorka H21 - ocel - šedá - in Roof | AL58: ART101279 | AN58: Dpo 1840 / 1100 | AO58: ART105743 | AP58: 29.04
A59: Rivets | B59: Rivets Pop (4 rivets de fixation par corniere de faîtage) | C59: Pop Rivet (4-Fixations Rivet for Top Centre Flashing) | D59: Popnagel (4-bevestigingsnagels voor afdekplaat midden boven) | E59: Pop-Niete (Halter für Verbindungsstücke) | F59: Popszegecs (4-rögzítő szegecs a felső-közép burkolathoz) | G59: Nity (4 nity mocujące na kątownik kalenicy) | H59: Алюминиевая поп-заклепка (4 крепежные заклепки для верхней цетральной планки) | I59: Trhací nýt hliník (4 upevňovací nýty pro horní středovou lištu) | R59: EtrSplH21NOIR | S59: ESH212014N (ASV08-40V) | T59: EtrSpl | U59: H21 | V59: NOIR | W59: Etrier Simple H21 - Acier Inox - Noir - In Roof | X59: Simple Clamp H21 - Steel - Black - In Roof | Y59: H21 Eindklem - Inox - Zwart - In Roof | Z59: Verstärkte Rand-Klemme H21 Schwarz | AA59: Végkapocs H21 - Acél - Fekete - Tetőszerkezetbe építő r. | AB59: Prosty zacisk H21 - Stal - Czarny - In Roof | AC59: Односторонний зажим Н21 - Стальной - Чёрный - In Roof | AD59: Jednostranná svorka H21 - ocel - černá - in Roof | AL59: ART100495 | AN59: Dpo 1840 / 1135 | AO59: ART105211 | AP59: 29.04
A60: VisRondP | B60: Vis + rondelle (6 par plaque) ALU | C60: Selt-Trapping Screw + GSE Washer Silver ( 6 per Frame) | D60: Zelftapper + sluitring (6 per plaat) ALU | E60: Schraube + GSE Unterlegscheibe (6 pro Platte) ALU | F60: Önmetsző csavar + GSE alátét EZÜST szín (6db/keret) | G60: Wkręt samogwintujący + podkładka GSE srebrna (6 na ramkę) | H60: Саморез + шайба GSE - Серебренная (6 штук на раму) | I60: Šroub + podložka GSE - Stříbrná (6 kusů na rám) | R60: EtrSplH23ALU | S60: ESH232014ALU (ASV08-42G) | T60: EtrSpl | U60: H23 | V60: ALU | W60: Etrier Simple H23 - Acier Inox - Gris - In Roof | X60: Simple Clamp H23 - Steel - Grey - In Roof | Z60: Verstärkte Rand-Klemme H23 | AA60: Végkapocs H23 - Acél - Szürke - Tetőszerkezetbe építő r. | AB60: Prosty zacisk H23 - Stal - Szary - In Roof | AC60: Односторонний зажим Н23 - Стальной - Серый - In Roof | AD60: Jednostranná svorka H23 - ocel - šedá - in Roof | AL60: ART101215 | AN60: Dpo 2030 / 995 | AO60: ART00001 | AP60: 29.04
A61: VisRondE | B61: Vis + rondelle pour fixation des étriers | C61: Selt-Trapping Screw + GSE Washer Black to fix Clamp | D61: Zelftapper + GSE sluitring zwart voor bevestiging klemmen | E61: Schraube + Unterlegscheibe zur Befestigung der Modulklemme | F61: Önmetsző csavar + GSE alátét FEKETE szín - Rögzítőkapocshoz | G61: Wkręt samogwintujący + podkładka GSE czarna do mocowania zacisku | H61: Саморез + шайба GSE - Черного цвета для, фиксации зажима | I61: Šroub + podložka GSE - Černá, pro upevnění svorky | R61: EtrSplH23NOIR | S61: ESH232014N (ASV08-42V) | T61: EtrSpl | U61: H23 | V61: NOIR | W61: Etrier Simple H23 - Acier Inox - Noir - In Roof | X61: Simple Clamp H23 - Steel - Black- In Roof | Y61: H23 Eindklem - Inox - Zwart - In Roof | Z61: Verstärkte Rand-Klemme H23 Schwarz | AA61: Végkapocs H23 - Acél - Fekete - Tetőszerkezetbe építő r. | AB61: Prosty zacisk H23 - Stal - Czarny- In Roof | AC61: Односторонний зажим Н23 - Стальной - Чёрный - In Roof | AD61: Jednostranná svorka H23 - ocel - černá - in Roof | AL61: ART101230 | AN61: Dpo 2030 / 1050 | AO61: ART00002 | AP61: 29.04
A62: Joints | B62: Joints EPDM Cellulaire | C62: Cale EPDM Cell | D62: Zelfklevende cellulaire EPDM | E62: EPDM-Dichtung CELL klebend | F62: EPDM lap | G62: Membrana EPDM | H62: Опорный блок EPDM | I62: Nosná jednotka EPDM | R62: EtrSplH26ALU | S62: ESH262014ALU (ASV08-46G) | T62: EtrSpl | U62: H26 | V62: ALU | W62: Etrier Simple H26 - Acier Inox - Gris - In Roof | X62: Simple Clamp H26 - Steel - Grey - In Roof | Z62: Verstärkte Rand-Klemme H26 | AA62: Végkapocs H26 - Acél - Szürke - Tetőszerkezetbe építő r. | AB62: Prosty zacisk H26 - Stal - Szary - In Roof | AC62: Односторонний зажим Н26 - Стальной - Серый - In Roof | AD62: Jednostranná svorka H26 - ocel - šedá - in Roof | AL62: ART102321 | AN62: Dpo 2030 / 1055 | AO62: ART00003 | AP62: 29.04
A63: EtrDbl | B63: Etrier Double Renforcé | C63: Reinforced Double Clamp | D63: Middenklem | E63: Verstärkte Mittel-Klemme | F63: Erősített Rögzítő középkapocs | G63: Wzmocniony podwójny zacisk | H63: Усиленный двойной зажим | I63: Zesílená dvojitá svorka | R63: EtrSplH26NOIR | S63: ESH262014N (ASV08-46V) | T63: EtrSpl | U63: H26 | V63: NOIR | W63: Etrier Simple H26 - Acier Inox - Noir - In Roof | X63: Simple Clamp H26 - Steel - Black - In Roof | Y63: H26 Eindklem - Inox - Zwart - In Roof | Z63: Verstärkte Rand-Klemme H26 Schwarz | AA63: Végkapocs H26 - Acél - Fekete - Tetőszerkezetbe építő r. | AB63: Prosty zacisk H26 - Stal - Czarny - In Roof | AC63: Односторонний зажим Н26 - Стальной - Чёрный - In Roof | AD63: Jednostranná svorka H26 - ocel - černá - in Roof | AL63: ART102328 | AN63: Dpo 2030 / 1135 | AO63: ART00004 | AP63: 29.04
A64: EtrSpl | B64: Etrier Simple renforcé | C64: Reinforced Single Clamp | D64: Eindklem | E64: Verstärkte Rand-Klemme | F64: Erősített Rögzítő végkapocs | G64: Wzmocniony pojedynczy zacisk | H64: Усиленный одинарный зажим | I64: Zesílená jednoduchá svorka | R64: EtrSplH27ALU | S64: ESH272014ALU (ASV08-46G) | T64: EtrSpl | U64: H27 | V64: ALU | W64: Etrier Simple H27 - Acier Inox - Gris - In Roof | X64: Simple Clamp H27 - Steel - Grey - In Roof | Z64: Verstärkte Rand-Klemme H27 | AA64: Végkapocs H27 - Acél - Szürke - Tetőszerkezetbe építő r. | AB64: Prosty zacisk H27 - Stal - Szary - In Roof | AC64: Односторонний зажим Н27 - Стальной - Серый - In Roof | AD64: Jednostranná svorka H27 - ocel - šedá - in Roof | AL64: ART100063 | AN64: Dpo 2030 / 1305 | AO64: ART00005 | AP64: 29.04
A65: Grappe | B65: Grappe de 4 Cales de renfort G et D pour étriers simples | C65: Batch of 4 Reinforcement GSE Wedges L and R for Single Clamps | D65: 4 GSE verstevigingswiggen voor L en R eindklemmen | E65: Cluster von 4 Randverstärkungen L und R für Rand-Klemme | F65: 4 darab GSE ék (végzáró elem) Jobbos és Balos - Végkapocshoz | G65: Zestaw 4 klinów wzmacniających GSE L i R do zacisków pojedynczych | H65: Партия из 4 арматурных клиньев GSE для левых и правых одинарных зажимов | I65: Dávka 4 výztužných klínů GSE L a R pro jednoduché svorky | R65: EtrSplH27NOIR | S65: ESH272014N (ASV08-46V) | T65: EtrSpl | U65: H27 | V65: NOIR | W65: Etrier Simple H27 - Acier Inox - Noir - In Roof | X65: Simple Clamp H27 - Steel - Black - In Roof | Y65: H27 Eindklem - Inox - Zwart - In Roof | Z65: Verstärkte Rand-Klemme H27 Schwarz | AA65: Végkapocs H27 - Acél - Fekete - Tetőszerkezetbe építő r. | AB65: Prosty zacisk H27 - Stal - Czarny - In Roof | AC65: Односторонний зажим Н27 - Стальной - Чёрный - In Roof | AD65: Jednostranná svorka H27 - ocel - černá - in Roof | AL65: ART100260
A66: Crochet | B66: Crochets fixation abergements | C66: GSE Flashing Hook | D66: GSE bevestigingshaakjes afdekplaten | E66: Hafte zur Befestigung der Verblechung | F66: GSE Burkoló bilincs | G66: Hak GSE | H66: Зажим GSE | I66: Svorka GSE | R66: EtrSplH31ALU | S66: ESH312014ALU (ASV08-50G) | T66: EtrSpl | U66: H31 | V66: ALU | W66: Etrier Simple H31 - Acier Inox - Gris - In Roof | X66: Simple Clamp H31 - Steel - Grey - In Roof | Z66: Verstärkte Rand-Klemme H31 | AA66: Végkapocs H31 - Acél - Szürke - Tetőszerkezetbe építő r. | AB66: Prosty zacisk H31 - Stal - Szary - In Roof | AC66: Односторонний зажим Н31 - Стальной - Серый - In Roof | AD66: Jednostranná svorka H31 - ocel - šedá - in Roof | AL66: ART100172
A67: Option | B67: Options | C67: Options | D67: Opties | E67: Optionen | F67: Opciók | G67: Opcje | H67: Опции | I67: Možnosti | R67: EtrSplH31NOIR | S67: ESH312014N (ASV08-50V) | T67: EtrSpl | U67: H31 | V67: NOIR | W67: Etrier Simple H31 - Acier Inox - Noir - In Roof | X67: Simple Clamp H31 - Steel - Black - In Roof | Y67: H31 Eindklem - Inox - Zwart - In Roof (frame dikte 50mm) | Z67: Verstärkte Rand-Klemme H31 Schwarz | AA67: Végkapocs H31 - Acél - Fekete - Tetőszerkezetbe építő r. | AB67: Prosty zacisk H31 - Stal - Czarny - In Roof | AC67: Односторонний зажим Н31 - Стальной - Чёрный - In Roof | AD67: Jednostranná svorka H31 - ocel - černá - in Roof | AL67: ART100381
A68: Rooflex | B68: Bande d'étanchéité FLEXALU (Rouleau de 5 m) | C68: FLEXALU Waterproofing Strip (5 m roll) | D68: FLEXALU waterafdichte strip (rol van 5 m) | E68: FLEXALU Dichtungband (5 m-Rolle) | F68: FLEXALU vízzáró szalag (5 m/tekercs) | G68: Taśma hydroizolacyjna (rolka 5 m) | H68: Гидроизоляционная лента FLEXALU (рулон 5 м) | I68: Hydroizolační pás FLEXALU (role 5 m) | S68: CALE_GAUCHE / CALE_DROIT | T68: Grappe | W68: Grappe de 4 Cales de renfort G et D pour étriers simples | X68: Batch of 4 Reinforcement GSE Wedges L and R for Single Clamps | Z68: Cluster von 4 Randverstärkungen L und R für Rand-Klemme | AA68: 4 darab GSE ék (végzáró elem) Jobbos és Balos - Végkapocshoz | AB68: Zestaw 4 klinów wzmacniających GSE L i R do zacisków pojedynczych | AC68: Набор из 4 усиливающих клиньев GSE L и R для односторонних зажимов | AD68: Sada z 4 zesilovacích klínů GSE L a R pro jednostranné svorky
A69: EcranToit | B69: Ecran de sous toiture (Rouleau de 75 m²) | C69: Roof-Underlay Screen (75 m² roll) | D69: Dakfolie (75 m² rol) | E69: Unterspannbahn (75 m²-Rolle) | F69: Tető szigetelő (75 m²/tekercs) | G69: Podkład dachowy (rolka 75m²) | H69: Подкровельная плёнка (рулон 75 м²) | I69: Krycí fólie (role 75 m²) | S69: JOINT_PRE_CONTRAIN | T69: JointImpr | W69: Joint pré-contraint - 20 x 40 mm (Rouleau de 5.5 m) | X69: Pre-Compressed Seal - 20 x 40mm 5.5m (roll) | Y69: Voorgecomprimeerde afdichting/uitzetband - 20 x 40mm (5,5m rol) | Z69: Vorkomprimiertes Dichtungsband - 20 x 40 mm (5.5 m-Rolle) | AA69: Előnyomott tömítés - 20 x 40 mm 5.5 m (tekercs) | AB69: Taśma uszczelniająca wstępnie sprasowana - 20 x 40 mm 5.5m (rolka) | AC69: Предварительно прессованная уплотнительная лента - 20x40мм (рулон 2м) | AD69: Těsnicí lisovaná páska - 20x40mm (role 2m) | AL69: ART101088
A70: JointImpr | B70: Joint pré-contraint - 20 x 40 mm (Rouleau de 5.5 m) | C70: Pre-Compressed Seal Roll - 20 x 40 mm (5.5 m roll) | D70: Voorgecomprimeerde afdichting - 20 x 40mm (5,5m rol) | E70: Vorkomprimiertes Dichtungsband - 20 x 40 mm (5.5 m-Rolle) | F70: Előnyomott tömítés - 20 x 40 mm (5.5 m/tekercs) | G70: Taśma uszczelniająca wstępnie sprasowana - 20 x 40 mm (rolka 5,5 m) | H70: Уплотнительная спресованная лента - 20 x 40 мм (рулон 5,5 м) | I70: Těsnicí lisovaná páska - 20 x 40 mm (role 5,5 m) | S70: JOINT_MOUSS_TRIAN | T70: JointTrImpr | W70: Joint mousse triangulaire TN2F 40X60 ADH LONG 2ML | X70: Triangular Pre-Compressed Seal Roll - 40 x 60 mm (2 m roll) | Y70: Driehoekige voorgecomprimeerde afdichtingsrol - 40 x 60 mm (2 m rol) | Z70: Dreieckig vorkomprimiertes Dichtungsband - 40 x 60 mm (5.5 m-Rolle) | AA70: Háromszög - Előnyomott tömítés - 40 x 60 mm (2m/tekercs) | AB70: Trójkątna wstępnie sprasowana taśma uszczelniająca - 40 x 60 mm (2 m rolka) | AC70: Треугольная предварительно прессованная уплотнительная лента - 40x60мм (рулон 2м) | AD70: Trojúhelníková předem lisovaná těsnicí páska - 40x60mm (role 2m)
A71: JointTrImpr | B71: Joint pré-contraint triangulaire - 40 x 60 mm (Rouleau de 5.5 m) | C71: Triangular Pre-Compressed Seal Roll - 40 x 60 mm (5.5 m roll) | D71: Driehoekige voorgecomprimeerde afdichtingsrol - 40 x 60 mm (2 m rol) | E71: Dreieckig vorkomprimiertes Dichtungsband - 40 x 60 mm (5.5 m-Rolle) | F71: Háromszög - Előnyomott tömítés - 40 x 60 mm (5.5 m/tekercs) | G71: Trójkątna wstępnie sprasowana taśma uszczelniająca - 40 x 60 mm (rolka 5,5 m) | H71: Треугольная предварительно прессованная уплотнительная лента - 40 x 60 мм (рулон 5,5 м) | I71: Trojúhelníková předem lisovaná těsnicí páska - 40 x 60 mm (role 5,5 m) | S71: CALE_EPDM_CELL | W71: Cale EPDM Pour Vis In Roof (25x21 EP. 5mm) | X71: EPDM Cell for Screw - In Roof (25x21 EP. 5mm) | Y71: EPDM voor de IN-ROOF schroeven (25x21mm, 5mm dik) | Z71: EPDM-Dichtung CELL klebend | AA71: EPDM lap csavarozáshoz - Tetőszerkezetbe építő r. (25 x 21 EP. 5mm) | AB71: Uszczelka EPDM do wkrętu - In Roof (25x21 EP. 5mm) | AC71: Опорный блок EPDM под винт - In Roof (25x21 EP. 5мм) | AD71: Těsnění EPDM pro šroub - in Roof (25X21 EP. 5mm) | AL71: ART101138
A72: DimChamp | B72: Taille du champ PV | C72: Size of the PV Plant | D72: PV-veldgrootte | E72: Größe des Modulfeldes | F72: Napelem konfiguráció mérete | G72: Wielkość instalcji PV | H72: Размер конфигурации PV-модулей | I72: Velikost konfigurace FV | S72: PPAYS 1640 / 992 | T72: PlakGSEPays | W72: Plaques Paysage | X72: GSE Landscape Frame | Y72: GSE Landscape montageplaat | Z72: GSE-Wanne Querformat | AA72: GSE Fekvő tájolású keret | AB72: GSE Ramka Pozioma | AC72: Горизонтальная рама GSE | AD72: Horizontální rám GSE
A73: HautCmpARE | B73: Hauteur (avec FLEXALU en partie basse) | C73: Height (with Low FLEXALU) | D73: Hoogte (met FLEXALU onderste gedeelte) | E73: Höhe (mit FLEXALU an der Unterseite) | F73: Magasság (alsó FLEXALU-val) | G73: Wysokość (z t.hydroizolacyjną w dolnej części) | H73: Высота (с низким FLEXALU) | I73: Výška (s nízkou FLEXALU) | S73: PPORT 1640 / 992 | T73: PlakGSEPort | W73: Plaques Portrait | X73: GSE Portrait Frame | Y73: GSE Portrait montageplaat | Z73: GSE-Wanne Hochkant | AA73: GSE Álló tájolású keret | AB73: GSE Ramka Pionowa | AC73: Вертикальная рама GSE | AD73: Vertikální rám GSE
A74: LargCmpAAL | B74: Largeur (avec abergements latéraux) | C74: Width (with Lateral Flashings) | D74: Breedte (met zij afdekplaten) | E74: Breite (mit seitlicher Verblechung) | F74: Szélesség (oldalsó burkolattal) | G74: Szerokość (z obróbką do krawędzi bocznej) | H74: Ширина (с торцевой планкой) | I74: Šířka (s koncovou lištou) | S74: RIVETPOP | T74: Rivets | W74: Rivets Pop 4x8 (pour la fixation des cornières) | X74: Pop Rivet 4x8 (Fixations Rivet for Top Centre Flashing) | Y74: Popnagels 4x8 (voor het verbinden van het bovenste hoekstuk) | Z74: Pop-Niete (Halter für Verbindungsstücke) | AA74: Popszegecs 4x8 (Rögzítő szegecs a felső-közép burkolathoz) | AB74: Nit POP 4x8 (Nit mocujący do górnego środkowego kołnierza) | AC74: Поп-заклепка 4х8 (крепежная заклепка для верхней цетральной планки) | AD74: Поп-заклепка 4х8 (крепежная заклепка для верхней цетральной планки) | AL74: ART100389
A75: Coord | B75: Coordonnées | C75: Contact Details | D75: Contact gegevens | E75: Kontaktdaten | F75: Kapcsolat | G75: Dane kontaktowe | H75: Контактная информация | I75: Kontaktní údaje | S75: VIS2014A | T75: VisRondP | V75: ALU | W75: Vis GSE Integration 6.3mmx60mm Alu | X75: GSE Integration Screw - 6.3mmx60mm - Grey | Y75: GSE Integration schroef + sluitring Grijs 6.3mmx60mm | Z75: Schraube + GSE Unterlegscheibe (6 pro Platte) ALU | AA75: GSE csavar - 6.3mmx60mm - Szürke | AB75: GSE Integration wkręt - 6.3mmx60mm - Szary | AC75: GSE винт - 6,3x60мм - Серый | AD75: GSE šroub - 6,3x60mm - šedý | AL75: ART100931
A76: DateExp | B76: Date de livraison souhaitée | C76: Desired Delivery Date | D76: Gewenste leverdatum | E76: Gewünschtes Versanddatum | F76: Szállítási idő | G76: Preferowana data dostawy | H76: Желаемая дата доставки | I76: Požadované datum dodání | S76: VIS2014N | T76: VisRondE | V76: NOIR | W76: Vis GSE Integration 6.3mmx60mm Noir | X76: GSE Integration Screw - 6.3mmx60mm - Black | Y76: GSE Integration schroef + sluitring Zwart 6.3mmx60mm | Z76: Schraube + Unterlegscheibe zur Befestigung der Modulklemme | AA76: GSE csavar - 6.3mmx60mm - Fekete | AB76: GSE Integration wkręt - 6.3mmx60mm - Czarny | AC76: GSE винт - 6,3x60мм - Черный | AD76: GSE šroub - 6,3x60mm - černý | AL76: ART101552
A77: Adr | B77: Adresse / Contact | C77: Address / Contact | D77: Adres / Contactpersoon | E77: Adresse / Kontakt | F77: Cím / kapcsolat | G77: Adres / kontakt | H77: Адрес / Контакт | I77: Adresa / Kontakt | S77: BANDE_FLEXALU_330 | T77: Rooflex | V77: NOIR | W77: Flexalu Gris Ardoise 330mm L5m Butyle 20/100 | X77: Flexalu Waterproof Strip Black 330mm (5 m roll) | Y77: Flexalu Waterdichte Strip Zwart 330mm (5 m rol) | Z77: FLEXALU Dichtungband (5 m-Rolle) Schwarz 330mm | AA77: FLEXALU Vízzáró Szalag Fekete 330mm (5m/tekercs) | AB77: Taśma hydroizolacyjna Czarny 330mm (5 m rolka) | AC77: Водонепроницаемая лента FLEXALU Чёрная 330мм (рулон 5м) | AD77: Vodotěsná páska FLEXALU černá 330mm (role 5m) | AL77: ART100385
A78: ScrolTitle | B78: (Dimensions : Toit, Module PV & Plaque GSE) | C78: (Dimensions: Roof, PV Module & GSE Frame) | D78: (Afmetingen : Dak, PV Module & GSE Plaat) | E78: (Größe: Dach, PV-Modul & GSE-Wanne) | F78: (Méretek: Tető, Napelem modul & GSE keret) | G78: (Wymiary: Dach, Moduł PV & Rama GSE) | H78: (Размеры: крыша, PV-модуль и рама GSE) | I78: (Rozměry: střecha, FV modul a rám GSE) | S78: BANDE_FLEXALU_500 | T78: Rooflex | V78: NOIR | W78: Flexalu Gris Ardoise 500mm L5m Butyle 20/100 | X78: Flexalu Waterproof Strip Black 500mm (5 m roll) | Y78: Flexalu Waterdichte Strip Zwart 500mm (5 m rol) | Z78: FLEXALU Dichtungband (5 m-Rolle) Schwarz 500mm | AA78: FLEXALU Vízzáró Szalag Fekete 500mm (5m/tekercs) | AB78: Taśma hydroizolacyjna Czarny 500mm (5 m rolka) | AC78: Водонепроницаемая лента FLEXALU Чёрная 500мм (рулон 5м) | AD78: Vodotěsná páska FLEXALU černá 500mm (role 5m) | AL78: ART101405
A79: Toit | B79: Toit | C79: Roof | D79: Dak | E79: Dach | F79: Tető | G79: Dach | H79: Крыша | I79: Střecha | S79: BANDE_FLEXALU-500 | T79: Rooflex | V79: ROUGE | W79: Flexalu Rouge Terre Cuite 500mm L5m Butyle 20/100 | X79: Flexalu Waterproof Strip Red 500mm (5 m roll) | Y79: Flexalu Waterdichte Strip Rood 330mm (5 m rol) | Z79: FLEXALU Dichtungband (5 m-Rolle) Rot 500mm | AA79: FLEXALU Vízzáró Szalag Piros 500mm (5m/tekercs) | AB79: Taśma hydroizolacyjna Czerwony 500mm (5 m rolka) | AC79: Водонепроницаемая лента FLEXALU Красная 500мм (рулон 5м) | AD79: Vodotěsná páska FLEXALU červená 500mm (role 5m) | AL79: ART101272
A80: ModPV | B80: Module PV | C80: PV Module | D80: PV Module | E80: PV-Modul | F80: Napelem modul | G80: Moduł PV | H80: Солнечная батарея | I80: FV modul | S80: ECRAN_SOUS_TOITURE | T80: EcranToit | W80: Ecran de sous toiture (Rouleau de 75 m²) | X80: Roof-Underlay Screen (75 m² roll) | Y80: Dakfolie (Rol van 75 m²) | Z80: Unterspannbahn (75 m²-Rolle) | AA80: Tető szigetelő (75 m²/tekercs) | AB80: Podkład dachowy (rolka 75m²) | AC80: Подкровельная плёнка (рулон 75м²) | AD80: Krycí fólie (role 75 m²) | AL80: ART101292
A81: Adj | B81: Ajustement | C81: Adjustment | D81: Aanpassing | E81: Anpassung | F81: Beállítás | G81: Regulacja | H81: Корректирование | I81: Nastavení | S81: CALE_GAUCHE | W81: Cale Gauche de Renfort pour Etriers Simple In Roof | X81: Left Wedge for Simple Clamp - In Roof | Y81: Linker Wig voor Eindklem - In Roof | Z81: Linker Verstärkungskeile für Rand-Klemme | AA81: Balos Ék (végzáró elem) Végkapocshoz - Tetőszerkezetbe építő r. | AB81: Lewy klin do zacisku prostego - In Roof | AC81: Левый клин для прямого зажима - In Roof | AD81: Levý klín pro přímé upnutí - in Roof | AL81: ART100212
A82: PlakGSE | B82: Plaque GSE | C82: GSE frame | D82: GSE plaat | E82: GSE-Wanne | F82: GSE keret | G82: Rama GSE | H82: Рама GSE | I82: GSE rám | S82: CALE_DROIT | W82: Cale Droite de Renfort pour Etriers Simple In Roof | X82: Right Wedge for Simple Clamp - In Roof | Y82: Rechter Wig voor Eindklem - In Roof | Z82: Rechte Verstärkungskeile für Rand-Klemme | AA82: Jobbos Ék(végzáró elem) Végkapocshoz - Tetőszerkezetbe építő r. | AB82: Prawy klin do zacisku prostego - In Roof | AC82: Правый клин для прямого зажима - In Roof | AD82: Pravý klín pro přímé upnutí - in Roof | AL82: ART101501
A83: Ref | B83: Références | C83: References | D83: Referentie | E83: Referenzen | F83: Referencia | G83: Referencje | H83: Рекомендации | I83: Reference | S83: ART104077 | U83: v.A2 | W83: Abergement Angle DROIT-A2 | X83: Top RIGHT Angle Flashing-A2 | Y83: Top RIGHT Angle Flashing-A2 | Z83: Top RIGHT Angle Flashing-A2 | AA83: Top RIGHT Angle Flashing-A2 | AB83: Top RIGHT Angle Flashing-A2 | AC83: Top RIGHT Angle Flashing-A2 | AD83: Top RIGHT Angle Flashing-A2 | AL83: ART104077
A84: Den | B84: Dénomination | C84: Denomination | D84: Benaming | E84: Bezeichnung | F84: Megnevezés | G84: Określenie | H84: Наименование | I84: Označení | S84: ART104070 | U84: v.A2 | W84: Abergement Angle GAUCHE-A2 | X84: Top LEFT Angle Flashing-A2 | Y84: Top LEFT Angle Flashing-A2 | Z84: Top LEFT Angle Flashing-A2 | AA84: Top LEFT Angle Flashing-A2 | AB84: Top LEFT Angle Flashing-A2 | AC84: Top LEFT Angle Flashing-A2 | AD84: Top LEFT Angle Flashing-A2 | AL84: ART104070
A85: CalcRampTitle | B85: Calculer le Rampant du toit | C85: Calculate the Roof Width | D85: Bereken de dakhelling | E85: Berechnung der Länge der Dachschräge | F85: Tető szélesség kiszámítása | G85: Oblicz szerokość dachu | H85: Рассчитать ширину крыши | I85: Vypočítat šířku střechy | S85: ART101608 | U85: v.TN1 | W85: Abergement angle inférieur DROITE Noir TN1 | X85: Bottom RIGHT Angle Flashing Black-TN1 | Y85: Bottom RIGHT Angle Flashing Black-TN1 | Z85: Bottom RIGHT Angle Flashing Black-TN1 | AA85: Bottom RIGHT Angle Flashing Black-TN1 | AB85: Bottom RIGHT Angle Flashing Black-TN1 | AC85: Bottom RIGHT Angle Flashing Black-TN1 | AD85: Bottom RIGHT Angle Flashing Black-TN1 | AL85: ART101608
A86: LargMsn | B86: Largeur de la maison (m) | C86: Width of the house (m) | D86: Breedte van het huis (m) | E86: Breite des Hauses (m) | F86: Ház szélessége (m) | G86: Szerokość budynku (m) | H86: Ширина здания (м) | I86: Šířka budovy (m) | S86: ART101616 | U86: v.TN1 | W86: Abergement angle inférieur GAUCHE Noir TN1 | X86: Bottom LEFT Angle Flashing Black-TN1 | Y86: Bottom LEFT Angle Flashing Black-TN1 | Z86: Bottom LEFT Angle Flashing Black-TN1 | AA86: Bottom LEFT Angle Flashing Black-TN1 | AB86: Bottom LEFT Angle Flashing Black-TN1 | AC86: Bottom LEFT Angle Flashing Black-TN1 | AD86: Bottom LEFT Angle Flashing Black-TN1 | AL86: ART101616
A87: NbrPans | B87: Nombre de Pans | C87: Number of Pans | D87: Aantal dakvlakken | E87: Anzahl der Dachschrägen | F87: Tervek száma | G87: Ilość połaci dachu | H87: Количество скатов крыши | I87: Počet střešních svahů | S87: ART101618 | U87: v.TN1 | W87: Abergement angle supérieur DROITE Noir TN1 | X87: Top RIGHT Angle Flashing Black-TN1 | Y87: Top RIGHT Angle Flashing Black-TN1 | Z87: Top RIGHT Angle Flashing Black-TN1 | AA87: Top RIGHT Angle Flashing Black-TN1 | AB87: Top RIGHT Angle Flashing Black-TN1 | AC87: Top RIGHT Angle Flashing Black-TN1 | AD87: Top RIGHT Angle Flashing Black-TN1 | AL87: ART101618
A88: Calculer | B88: Calculer | C88: Compute | D88: Bereken | E88: Berechnen | F88: Számítás | G88: Oblicz | H88: Вычислить | I88: Vypočítat | S88: ART101629 | U88: v.TN1 | W88: Abergement angle supérieur GAUCHE Noir TN1 | X88: Top LEFT Angle Flashing Black-TN1 | Y88: Top LEFT Angle Flashing Black-TN1 | Z88: Top LEFT Angle Flashing Black-TN1 | AA88: Top LEFT Angle Flashing Black-TN1 | AB88: Top LEFT Angle Flashing Black-TN1 | AC88: Top LEFT Angle Flashing Black-TN1 | AD88: Top LEFT Angle Flashing Black-TN1 | AL88: ART101629
A89: Annuler | B89: Annuler | C89: Cancel | D89: Annuleren | E89: Abbrechen | F89: Mégse | G89: Anuluj | H89: Отменить | I89: Zrušit | S89: ART104000 | U89: v.A2 | W89: Abergement haut 1000-A2 | X89: Top Centre Flashing 1000-A2 | Y89: Top Centre Flashing 1000-A2 | Z89: Top Centre Flashing 1000-A2 | AA89: Top Centre Flashing 1000-A2 | AB89: Top Centre Flashing 1000-A2 | AC89: Top Centre Flashing 1000-A2 | AD89: Top Centre Flashing 1000-A2 | AL89: ART104000
A90: CalcRampMsg1 | B90: Les champs suivants doivent contenir une valeur numérique positive non nulle: 'Inclinaison toiture' et 'Largeur de la maison'. | C90: The following fields must contain a non-zero positive numeric value: 'Roof Slope' and 'Width of the House'. | D90: De volgende velden moeten een niet-nul positieve numerieke waarde bevatten:"Dakhelling" en "Huisbreedte". | E90: Die folgenden Felder müssen einen positiven numerischen Wert ungleich Null enthalten: Dachneigung und Breite des Hauses. | F90: A következő mezőknek pozitív számot kell tartalmazniuk: 'Tető lejtés' és 'Ház szélessége'. | G90: Następujące pola muszą zawierać dodatnią wartość liczbową (różną od zera): „Nachylenie dachu” i „Szerokość budynku”. | H90: Следующие поля должны содержать ненулевое положительное числовое значение: «Уклон крыши» и «Ширина здания». | I90: Následující pole musí obsahovat nenulovou kladnou číselnou hodnotu: „Střešní sklon“ a „Šířka budovy“. | S90: ART104007 | U90: v.A2 | W90: Abergement haut 1005-A2 | X90: Top Centre Flashing 1005-A2 | Y90: Top Centre Flashing 1005-A2 | Z90: Top Centre Flashing 1005-A2 | AA90: Top Centre Flashing 1005-A2 | AB90: Top Centre Flashing 1005-A2 | AC90: Top Centre Flashing 1005-A2 | AD90: Top Centre Flashing 1005-A2 | AL90: ART104007
A91: CalcRampMsg2 | B91: Veuillez vérifier les valeurs de ces champs puis lancez de nouveau le calcul du Rampant. | C91: Please check the values ​​of these fields then run the Roof Width calculation again. | D91: Controleer de waarden deze velden en voer de berekening van de dakbreedte opnieuw uit. | E91: Bitte überprüfen Sie die Werte dieser Felder und führen Sie die Berechnung der Länge der Dachschräge erneut aus. | F91: Kérjük, ellenőrizze ezeknek a mezőknek az értékeit, majd futtassa újra a tetőszélesség számítását. | G91: Sprawdź wartości w tych polach, a następnie ponownie wykonaj obliczenia szerokości dachu. | H91: Проверьте значения в этих полях, затем снова запустите расчет ширины крыши. | I91: Zkontrolujte hodnoty těchto polí a poté znovu spusťte výpočet šířky střechy. | S91: ART104014 | U91: v.A2 | W91: Abergement haut 1020-A2 | X91: Top Centre Flashing 1020-A2 | Y91: Top Centre Flashing 1020-A2 | Z91: Top Centre Flashing 1020-A2 | AA91: Top Centre Flashing 1020-A2 | AB91: Top Centre Flashing 1020-A2 | AC91: Top Centre Flashing 1020-A2 | AD91: Top Centre Flashing 1020-A2 | AL91: ART104014
A92: DftRefCmpPV | B92: Champ PV 1 | C92: PV Array 1 | D92: PV-veld 1 | E92: PV-Modulfeld 1 | F92: Napelem elrendezés 1 | G92: Macierz PV 1 | H92: Раскладка PV-модулей 1 | I92: Rozložení PV modulů 1 | S92: ART103986 | U92: v.A2 | W92: Abergement haut 1030-A2 | X92: Top Centre Flashing 1030-A2 | Y92: Top Centre Flashing 1030-A2 | Z92: Top Centre Flashing 1030-A2 | AA92: Top Centre Flashing 1030-A2 | AB92: Top Centre Flashing 1030-A2 | AC92: Top Centre Flashing 1030-A2 | AD92: Top Centre Flashing 1030-A2 | AL92: ART103986
A93: CalcRampLink | B93: Cliquez ici pour calculer le Rampant ! | C93: Click here to calculate the Roof Width ! | D93: Klik hier om de dakbreedte te berekenen! | E93: Klicken Sie hier, um die Länge der Dachschräge zu berechnen ! | F93: Kattintson ide a tetőszélesség kiszámításához! | G93: Kliknij tutaj, aby obliczyć szerokość dachu! | H93: Щелкните здесь, чтобы рассчитать ширину крыши! | I93: Kliknutím sem vypočítáte šířku střechy! | S93: ART103993 | U93: v.A2 | W93: Abergement haut 1046-A2 | X93: Top Centre Flashing 1046-A2 | Y93: Top Centre Flashing 1046-A2 | Z93: Top Centre Flashing 1046-A2 | AA93: Top Centre Flashing 1046-A2 | AB93: Top Centre Flashing 1046-A2 | AC93: Top Centre Flashing 1046-A2 | AD93: Top Centre Flashing 1046-A2 | AL93: ART103993
A94: None2 | B94: Aucune | C94: None | D94: Geen | E94: keine Angabe | F94: Nincs | G94: Brak | H94: Никакой | I94: Nic | S94: ART104021 | U94: v.A2 | W94: Abergement haut 1050-A2 | X94: Top Centre Flashing 1050-A2 | Y94: Top Centre Flashing 1050-A2 | Z94: Top Centre Flashing 1050-A2 | AA94: Top Centre Flashing 1050-A2 | AB94: Top Centre Flashing 1050-A2 | AC94: Top Centre Flashing 1050-A2 | AD94: Top Centre Flashing 1050-A2 | AL94: ART104021
A95: ColorAber | B95: Couleur | C95: Color | D95: Kleur | E95: Farbe | F95: Szín | G95: Kolor | H95: Цвет | I95: Barva | S95: ART103979 | U95: v.A2 | W95: Abergement haut 992-A2 | X95: Top Centre Flashing 992-A2 | Y95: Top Centre Flashing 992-A2 | Z95: Top Centre Flashing 992-A2 | AA95: Top Centre Flashing 992-A2 | AB95: Top Centre Flashing 992-A2 | AC95: Top Centre Flashing 992-A2 | AD95: Top Centre Flashing 992-A2 | AL95: ART103979
A96: Yes | B96: Oui | C96: Yes | D96: Ja | E96: Ja | F96: Igen | G96: Tak | H96: Да | I96: Ano | S96: ART104042 | U96: v.TS2/TN1 | W96: Abergement haut Noir 1000-TS2/TN1 | X96: Top Centre Flashing Black 1000-TS2/TN1 | Y96: Top Centre Flashing Black 1000-TS2/TN1 | Z96: Top Centre Flashing Black 1000-TS2/TN1 | AA96: Top Centre Flashing Black 1000-TS2/TN1 | AB96: Top Centre Flashing Black 1000-TS2/TN1 | AC96: Top Centre Flashing Black 1000-TS2/TN1 | AD96: Top Centre Flashing Black 1000-TS2/TN1 | AL96: ART104042
A97: No | B97: Non | C97: No | D97: Neen | E97: Nein | F97: Nem | G97: Nie | H97: Нет | I97: Ne | S97: ART104028 | U97: v.TS2/TN1 | W97: Abergement haut Noir 1001-TS2/TN1 | X97: Top Centre Flashing Black 1001 -TS2/TN1 | Y97: Top Centre Flashing Black 1001 -TS2/TN1 | Z97: Top Centre Flashing Black 1001 -TS2/TN1 | AA97: Top Centre Flashing Black 1001 -TS2/TN1 | AB97: Top Centre Flashing Black 1001 -TS2/TN1 | AC97: Top Centre Flashing Black 1001 -TS2/TN1 | AD97: Top Centre Flashing Black 1001 -TS2/TN1 | AL97: ART104028
A98: ErrInfoMsg1 | B98: Ce champ doit contenir un nombre entre | C98: This field must contain a number between | D98: Dit veld moet een getal bevatten tussen | E98: Dieses Feld muss eine Zahl enthalten zwischen | F98: A mezőnek egy számot kell tartalmaznia | G98: To pole musi zawierać liczbę pomiędzy | H98: Это поле должно содержать число от | I98: Toto pole musí obsahovat číslo mezi | S98: ART104049 | U98: v.TS2/TN1 | W98: Abergement haut Noir 1005-TS2/TN1 | X98: Top Centre Flashing Black 1005-TS2/TN1 | Y98: Top Centre Flashing Black 1005-TS2/TN1 | Z98: Top Centre Flashing Black 1005-TS2/TN1 | AA98: Top Centre Flashing Black 1005-TS2/TN1 | AB98: Top Centre Flashing Black 1005-TS2/TN1 | AC98: Top Centre Flashing Black 1005-TS2/TN1 | AD98: Top Centre Flashing Black 1005-TS2/TN1 | AL98: ART104049
A99: And | B99: et | C99: and | D99: en | E99: und | F99: és | G99: i | H99: и | I99: a | S99: ART104056 | U99: v.TS2/TN1 | W99: Abergement haut Noir 1020-TS2/TN1 | X99: Top Centre Flashing Black 1020-TS2/TN1 | Y99: Top Centre Flashing Black 1020-TS2/TN1 | Z99: Top Centre Flashing Black 1020-TS2/TN1 | AA99: Top Centre Flashing Black 1020-TS2/TN1 | AB99: Top Centre Flashing Black 1020-TS2/TN1 | AC99: Top Centre Flashing Black 1020-TS2/TN1 | AD99: Top Centre Flashing Black 1020-TS2/TN1 | AL99: ART104056
A100: LongToit | B100: Longueur du toit | C100: Roof length | D100: Lengte dak | E100: Dachlänge | F100: Tetőhossz | G100: Długość dachu | H100: Длина крыши | I100: Délka střechy | S100: ART104035 | U100: v.TS2/TN1 | W100: Abergement haut Noir 1046-TS2/TN1 | X100: Top Centre Flashing Black 1046-TS2/TN1 | Y100: Top Centre Flashing Black 1046-TS2/TN1 | Z100: Top Centre Flashing Black 1046-TS2/TN1 | AA100: Top Centre Flashing Black 1046-TS2/TN1 | AB100: Top Centre Flashing Black 1046-TS2/TN1 | AC100: Top Centre Flashing Black 1046-TS2/TN1 | AD100: Top Centre Flashing Black 1046-TS2/TN1 | AL100: ART104035
A101: RampToit | B101: Rampant du toit | C101: Roof Width | D101: Breedte dak | E101: Länge der Dachschräge | F101: Tetőszélesség | G101: Szerokość dachu | H101: Ширина крыши | I101: Šířka střechy | S101: ART104063 | U101: v.TS2/TN1 | W101: Abergement haut Noir 1050-TS2/TN1 | X101: Top Centre Flashing Black 1050-TS2/TN1 | Y101: Top Centre Flashing Black 1050-TS2/TN1 | Z101: Top Centre Flashing Black 1050-TS2/TN1 | AA101: Top Centre Flashing Black 1050-TS2/TN1 | AB101: Top Centre Flashing Black 1050-TS2/TN1 | AC101: Top Centre Flashing Black 1050-TS2/TN1 | AD101: Top Centre Flashing Black 1050-TS2/TN1 | AL101: ART104063
A102: HautModPVPo | B102: Hauteur du module PV portrait | C102: PV Portrait Module Height | D102: Hoogte van de PV-module in Portrait | E102: Modulhöhe bei Hochkantmontage | F102: Napelem Álló modul magasság | G102: Wysokość modułu PV w pionie | H102: Высота вертикального PV-модуля | I102: Výška vertikálního FV modulu | S102: ART104833 | U102: v.TS2/TN1 | W102: Abergement haut Noir 1055-TS2/TN1 | X102: Top Centre Flashing Black 1055-TS2/TN1 | Y102: Top Centre Flashing Black 1055-TS2/TN1 | Z102: Top Centre Flashing Black 1055-TS2/TN1 | AA102: Top Centre Flashing Black 1055-TS2/TN1 | AB102: Top Centre Flashing Black 1055-TS2/TN1 | AC102: Top Centre Flashing Black 1055-TS2/TN1 | AD102: Top Centre Flashing Black 1055-TS2/TN1 | AL102: ART104833
A103: HautModPVPa | B103: Hauteur du module PV paysage | C103: PV Landscape Module Height | D103: Hoogte van de PV-module in Landscape | E103: Modulhöhe bei Querformatmontage | F103: Napelem Fekvő modul magasság | G103: Wysokość modułu PV w poziomie | H103: Высота горизонтального PV-модуля | I103: Výška vodorovného FV modulu | S103: ART101622 | U103: v.TS2/TN1 | W103: Abergement haut Noir 992-TS2/TN1 | X103: Top Centre Flashing Black 992-TS2/TN1 | Y103: Top Centre Flashing Black 992-TS2/TN1 | Z103: Top Centre Flashing Black 992-TS2/TN1 | AA103: Top Centre Flashing Black 992-TS2/TN1 | AB103: Top Centre Flashing Black 992-TS2/TN1 | AC103: Top Centre Flashing Black 992-TS2/TN1 | AD103: Top Centre Flashing Black 992-TS2/TN1 | AL103: ART101622
A104: LargModPVPo | B104: Largeur du module PV portrait | C104: PV Portrait Module Width | D104: Breedte van de PV-module in Portrait | E104: Modulbreite bei Hochkantmontage | F104: Napelem Álló modul szélesség | G104: Szerokość modułu PV w pionie | H104: Ширина вертикального PV-модуля | I104: Šířka vertikálního FV modulu | S104: ART101609 | U104: v A2/TN1 | W104: Abergement latéral DROITE-A2/TN1 | X104: RIGHT Lateral Flashing-A2/TN1 | Y104: RIGHT Lateral Flashing-A2/TN1 | Z104: RIGHT Lateral Flashing-A2/TN1 | AA104: RIGHT Lateral Flashing-A2/TN1 | AB104: RIGHT Lateral Flashing-A2/TN1 | AC104: RIGHT Lateral Flashing-A2/TN1 | AD104: RIGHT Lateral Flashing-A2/TN1 | AL104: ART101609
A105: LargModPVPa | B105: Largeur du module PV paysage | C105: PV Landscape Module Width | D105: Breedte van de PV-module in Landscape | E105: Modulbreite bei Querformatmontage | F105: Napelem Fekvő modul szélesség | G105: Szerokość modułu PV w poziomie | H105: Широна горизонтального PV-модуля | I105: Šířka vodorovného FV modulu | S105: ART101620 | U105: v A2/TN1 | W105: Abergement latéral GAUCHE-A2/TN1 | X105: LEFT Lateral Flashing-A2/TN1 | Y105: LEFT Lateral Flashing-A2/TN1 | Z105: LEFT Lateral Flashing-A2/TN1 | AA105: LEFT Lateral Flashing-A2/TN1 | AB105: LEFT Lateral Flashing-A2/TN1 | AC105: LEFT Lateral Flashing-A2/TN1 | AD105: LEFT Lateral Flashing-A2/TN1 | AL105: ART101620
A106: ErrInfoMsg2 | B106: Le champ PV à créer doit avoir une référence d'au moins 6 caratères alphanumérique. | C106: The PV plant to be created must have a reference of at least 6 alphanumeric characters. | D106: Het aan te maken PV-veld moet een referentie hebben van ten minste 6 alfanumerieke tekens. | E106: Das zu erstellende PV-Feld muss eine Referenzangabe von mindestens 6 alphanumerischen Zeichen haben. | F106: A létrehozandó Napelem konfigurációnak legalább 6 alfanumerikus karakterből álló hivatkozással kell rendelkeznie. | G106: Projektowany układ instalacji PV, musi mieć odniesienie składające się z co najmniej 6 znaków alfanumerycznych. | H106: Ссылка на создаваемую конфигурацию солнечного элемента должна состоять как минимум из 6 буквенно-цифровых символов. | I106: FV systém, který má být vytvořen, musí mít odkaz na alespoň 6 alfanumerických znaků. | S106: ART104644 | W106: Abergement Latéral Universel Noir 1290mm New Design 2022 | X106: Lateral Flashing - Black 1290mm New Design 2022 | Y106: Lateral Flashing - Black 1290mm New Design 2022 | Z106: Lateral Flashing - Black 1290mm New Design 2022 | AA106: Lateral Flashing - Black 1290mm New Design 2022 | AB106: Lateral Flashing - Black 1290mm New Design 2022 | AC106: Lateral Flashing - Black 1290mm New Design 2022 | AD106: Lateral Flashing - Black 1290mm New Design 2022 | AL106: ART104644
A107: ErrInfoMsg3 | B107: Dans le cadre des évaluations techniques du système, l'étanchéité est garantie sur des pentes comprises entre 12° et 60°. | C107: In accordance with the technical evaluations of the system, waterproofing is guaranteed on slopes between 12° to 60°. | D107: Volgens de technische evaluaties van het systeem is de waterdichtheid gegarandeerd op hellingen tussen 12° en 60° | E107: Im Rahmen der technischen Bewertungen des Systems ist die Wasserdichtheit bei Dachneigungen zwischen 12 ° und 60 ° garantiert. | F107: A rendszer műszaki értékelésének megfelelően a vízszigetelés 12 ° és 60 ° közötti lejtőn garantált. | G107: Zgodnie z oceną techniczną systemu, wodoszczelność jest gwarantowana na zboczach nachylonych pod kątem od 12° do 60°. | H107: Согласно технической оценке системы, гидроизоляция гарантируется на склонах от 12° до 60°. | I107: V souladu s technickým hodnocením systému je zaručena hydroizolace na svazích mezi 12° a 60°. | S107: ART101617 | U107: v.TN1 | W107: Couloir latéral DROITE Noir TN1 | X107: RIGHT Lateral Corridor Black TN1 | Y107: RIGHT Lateral Corridor Black TN1 | Z107: RIGHT Lateral Corridor Black TN1 | AA107: RIGHT Lateral Corridor Black TN1 | AB107: RIGHT Lateral Corridor Black TN1 | AC107: RIGHT Lateral Corridor Black TN1 | AD107: RIGHT Lateral Corridor Black TN1 | AL107: ART101617
A108: ErrInfoMsg4 | B108: En dessous et au dessus de ces pentes, bien contrôler l'étanchéité et la méthode d'installation. | C108: Below and above these slopes, check the watertightness and installation method of the array. | D108: Controleer, onder en boven deze hellingen de waterdichtheid en de installatiemethode van de installatie. | E108: Unterhalb und oberhalb dieser Dachneigungen sind Dichtheit und Installationsart der Anlage gesondert zu prüfen. | F108: Ezen lejtés érték alatt és felett ellenőrizze a tömb vízzáróságát és telepítési módját. | G108: Poniżej i powyżej tych zboczy sprawdź wodoszczelność i sposób montażu. | H108: Ниже и выше этих откосов проверьте водонепроницаемость и способ установки. | I108: Níže a nad těmito svahy zkontrolujte vodotěsnost a způsob instalace. | S108: ART101625 | U108: v.TN1 | W108: Couloir latéral GAUCHE Noir TN1 | X108: LEFT Lateral Corridor Black TN1 | Y108: LEFT Lateral Corridor Black TN1 | Z108: LEFT Lateral Corridor Black TN1 | AA108: LEFT Lateral Corridor Black TN1 | AB108: LEFT Lateral Corridor Black TN1 | AC108: LEFT Lateral Corridor Black TN1 | AD108: LEFT Lateral Corridor Black TN1 | AL108: ART101625
A109: ErrInfoMsg5 | B109: L'utilisation des abergements de faitage n'est conseillée que sur des pentes supérieures à 17°. | C109: The use of top flashings is recommended only for slopes greater than 17°. | D109: Het gebruik van de bovenste afdekplaten wordt alleen aanbevolen voor hellingen groter dan 17°. | E109: Die Verwendung der Firstverblechung wird nur bei Neigungen empfohlen, die größer als 17 ° sind. | F109: A felső burkolat használata csak 17 ° -nál nagyobb lejtés értéknél ajánlott. | G109: Stosowanie obróbki blacharskiej jest zalecane tylko przy kącie nachylenia większym niż 17°. | H109: Использование верхней крышки рекомендуется только для уклонов более 17°. | I109: Použití horních lemů se doporučuje pouze pro svahy větší než 17°. | S109: ART104105 | U109: v A2/TS2/TN1 | W109: Crochet abergement long A2/TS2/TN1 | X109: Long GSE Flashing Hook A2/TS2/TN1 | Y109: Long GSE Flashing Hook A2/TS2/TN1 | Z109: Long GSE Flashing Hook A2/TS2/TN1 | AA109: Long GSE Flashing Hook A2/TS2/TN1 | AB109: Long GSE Flashing Hook A2/TS2/TN1 | AC109: Long GSE Flashing Hook A2/TS2/TN1 | AD109: Long GSE Flashing Hook A2/TS2/TN1 | AL109: ART104105
A110: ErrInfoMsg6 | B110: En dessous de cette pente, bien se référer au manuel d'installation en ligne : | C110: Below this slope, refer to the online installation manual: | D110: Raadpleeg onder deze helling de online installatiehandleiding: | E110: Unterhalb dieser Dachneigung finden Sie gesonderte Hinweise in den Online-Installationsanweisungen: | F110: Ezen lejtés érték alatt olvassa el az online telepítési kézikönyvet: | G110: Poniżej tego nachylenia zapoznaj się z instrukcją instalacji online: | H110: Ниже этого наклона прочтите онлайн-руководство по установке: | I110: Pod tímto sklonem si přečtěte online instalační příručku: | S110: ART104119 | U110: v TS2/TN1 | W110: Feuillard support tuiles TS2/TN1 | X110: Metal sheets Tiles Support TS2/TN1 | Y110: Metal sheets Tiles Support TS2/TN1 | Z110: Metal sheets Tiles Support TS2/TN1 | AA110: Metal sheets Tiles Support TS2/TN1 | AB110: Metal sheets Tiles Support TS2/TN1 | AC110: Metal sheets Tiles Support TS2/TN1 | AD110: Metal sheets Tiles Support TS2/TN1 | AL110: ART104119
A111: ErrInfoMsg7 | B111: Aucune plaque GSE correspondante n'a été trouvée ! | C111: No corresponding GSE frame has been found ! | D111: Er is géén passende GSE-plaat gevonden! | E111: Es wurde keine passende GSE-Wanne gefunden! | F111: Nem található megfelelő GSE keret! | G111: Nie znaleziono odpowiadającej ramy GSE! | H111: Подходящей GSE рамы не найдено! | I111: Nebyl nalezen žádný odpovídající rám GSE! | S111: ART101178 | W111: Joint mousse triangulaire TN2F 40X60 ADH LONG 2ML | X111: Triangular Pre-Compressed Seal Roll - 40 x 60 mm (2 m roll) | Y111: Triangular Pre-Compressed Seal Roll - 40 x 60 mm (2 m roll) | Z111: Triangular Pre-Compressed Seal Roll - 40 x 60 mm (2 m roll) | AA111: Triangular Pre-Compressed Seal Roll - 40 x 60 mm (2 m roll) | AB111: Triangular Pre-Compressed Seal Roll - 40 x 60 mm (2 m roll) | AC111: Triangular Pre-Compressed Seal Roll - 40 x 60 mm (2 m roll) | AD111: Triangular Pre-Compressed Seal Roll - 40 x 60 mm (2 m roll) | AL111: ART101178
A112: ErrInfoMsg8 | B112: Modifiez les dimensions du module PV pour trouver une plaque GSE correspondante. | C112: Change the dimensions of the PV module to find a corresponding GSE Frame. | D112: Wijzig de afmetingen van de PV-module om een passende GSE-plaat te vinden. | E112: Ändern Sie die Abmessungen des PV-Moduls, um eine passende GSE-Wanne zu finden. | F112: Módosítsa a Napelem modul méreteit, hogy megtalálja a megfelelő GSE keretet. | G112: Zmień wymiary modułu PV, aby znaleźć odpowiednią ramę GSE. | H112: Измените размеры PV-модуля, чтобы найти соответствующую раму GSE. | I112: Změňte rozměry FV modulu a vyhledejte odpovídající rám GSE. | S112: ART104084 | U112: v.A2 | W112: Jonction haute-A2 | X112: Junction for Top Flashing-A2 | Y112: Junction for Top Flashing-A2 | Z112: Junction for Top Flashing-A2 | AA112: Junction for Top Flashing-A2 | AB112: Junction for Top Flashing-A2 | AC112: Junction for Top Flashing-A2 | AD112: Junction for Top Flashing-A2 | AL112: ART104084
A113: ErrInfoMsg9 | B113: Aucune référence du champ PV n'a été renseignée ! | C113: No reference of the PV array has been filled in ! | D113: Er is géén referentie ingevuld van het PV-veld! | E113: Es wurde keine Referenz der PV-Anlage eingegeben! | F113: Nincs kitöltve a Napelem tömb hivatkozása! | G113: Nie wprowadzono żadnego odniesienia do układu modułów PV! | H113: Никакой ссылки на компоновку PV-модулей не было введено! | I113: Nebyl zaveden žádný odkaz na uspořádání PV modulů! | S113: ART104112 | U113: v TS2/TN1 | W113: Support tuiles TS2/TN1 | X113: Tiles Support TS2/TN1 | Y113: Tiles Support TS2/TN1 | Z113: Tiles Support TS2/TN1 | AA113: Tiles Support TS2/TN1 | AB113: Tiles Support TS2/TN1 | AC113: Tiles Support TS2/TN1 | AD113: Tiles Support TS2/TN1 | AL113: ART104112
A114: ErrInfoMsg10 | B114: Reseignez-en un. | C114: Please, fill in one. | D114: Vul er één in | E114: Bitte einmal ausfüllen. | F114: Kérem, válasszon | G114: Proszę, wpisz jeden. | H114: Пожалуйста выберите. | I114: Prosím vyber si. | S114: MK08 | T114: MK08 | W114: Kit Velux MK08 | X114: MK08 Velux Kit | Y114: MK08 Velux Kit | Z114: MK08 Velux Kit | AA114: MK08 Velux Kit | AB114: MK08 Velux Kit | AC114: MK08 Velux Kit | AD114: MK08 Velux Kit | AL114: MK08
A115: Date | B115: Date | C115: Date | D115: Datum | E115: Datum | F115: Dátum | G115: Data | H115: Дата | I115: Datum | S115: PK08 | T115: PK08 | W115: Kit Velux PK08 | X115: PK08 Velux Kit | Y115: PK08 Velux Kit | Z115: PK08 Velux Kit | AA115: PK08 Velux Kit | AB115: PK08 Velux Kit | AC115: PK08 Velux Kit | AD115: PK08 Velux Kit | AL115: PK08
A116: Total | B116: Total | C116: Total | D116: Totaal | E116: Gesamt | F116: Összesen | G116: Razem | H116: Итого | I116: Celkové | S116: SK10 | T116: SK10 | W116: Kit Velux SK10 | X116: SK10 Velux Kit | Y116: SK10 Velux Kit | Z116: SK10 Velux Kit | AA116: SK10 Velux Kit | AB116: SK10 Velux Kit | AC116: SK10 Velux Kit | AD116: SK10 Velux Kit | AL116: SK10
A117: PlanLat | B117: Plan de lattage indisponible | C117: Battening plan unavailable | D117: Lattenplan niet beschikbaar | E117: Lattenplan nicht verfügbar | F117: Nem érhető el tetőléc terv | G117: Plan kantówek niedostępny | H117: План обрешотки недоступен | I117: Krokevní systém nejsou k dispozici | S117: MK06 | T117: MK06 | W117: Kit Velux MK06 | X117: MK06 Velux Kit | Y117: MK06 Velux Kit | Z117: MK06 Velux Kit | AA117: MK06 Velux Kit | AB117: MK06 Velux Kit | AC117: MK06 Velux Kit | AD117: MK06 Velux Kit | AL117: MK06
A118: Roul | B118: Rouleau(x) | C118: Roll(s) | D118: Rol(len) | E118: Rolle(n) | F118: Tekercs(ek) | G118: Rolka(-i) | H118: Рулон(ов) | I118: Role(y) | S118: PK10 | T118: PK10 | W118: Kit Velux PK10 | X118: PK10 Velux Kit | Y118: PK10 Velux Kit | Z118: PK10 Velux Kit | AA118: PK10 Velux Kit | AB118: PK10 Velux Kit | AC118: PK10 Velux Kit | AD118: PK10 Velux Kit | AL118: PK10
A119: HautCmpSRFRE | B119: Hauteur (sans Raccord faîtage et Raccord à l'égout) | C119: Height (without Ridge connection and Connection to eaves) | D119: Hoogte (zonder nokaansluiting en dakrandaansluiting) | E119: Höhe (ohne Firstanbindung und Dichtigkeitsanbindung traufeseitig) | F119: Magasság (gerinc és eresz csatlakozás nélkül) | G119: Wysokość (bez połączenia kalenicowego i połączenia z okapem) | H119: Высота (без конькового соединения и соединения с карнизом) | I119: Výška (bez hřebenového připojení a připojení k okapům) | S119: MK10 | T119: MK10 | W119: Kit Velux MK10 | X119: MK10 Velux Kit | Y119: MK10 Velux Kit | Z119: MK10 Velux Kit | AA119: MK10 Velux Kit | AB119: MK10 Velux Kit | AC119: MK10 Velux Kit | AD119: MK10 Velux Kit | AL119: MK10
A120: LargCmpSAL | B120: Largeur (sans abergements latéraux) | C120: Width (without Lateral Flashing) | D120: Breedte (zonder zijafdekplaten) | E120: Breite (ohne seitliche Verblechung) | F120: Szélesség (oldalsó burkolat nélkül) | G120: Szerokość (z obróbką do krawędzi bocznej) | H120: Ширина (без торцевой планки) | I120: Šířka (bez koncové lišty) | S120: ART101589 | W120: Raccord velux ODL MK08 GSE In-Roof | X120: Velux MK08 ODL Kit for GSE In Roof - Portrait | Y120: Velux MK08 ODL Kit for GSE In Roof - Portrait | Z120: Velux MK08 ODL Kit for GSE In Roof - Portrait | AA120: Velux MK08 ODL Kit for GSE In Roof - Portrait | AB120: Velux MK08 ODL Kit for GSE In Roof - Portrait | AC120: Velux MK08 ODL Kit for GSE In Roof - Portrait | AD120: Velux MK08 ODL Kit for GSE In Roof - Portrait | AL120: ART101589
A121: Remise | B121: Remise GSE | C121: GSE Discount | D121: GSE korting | E121: GSE Rabatt | F121: GSE Kedvezmény | G121: GSE Rabat | H121: GSE Скидка | I121: GSE Sleva | S121: ART101590 | W121: Raccord velux ODL MK06 GSE In-Roof | X121: Velux MK06 ODL Kit for GSE In Roof - Portrait | Y121: Velux MK06 ODL Kit for GSE In Roof - Portrait | Z121: Velux MK06 ODL Kit for GSE In Roof - Portrait | AA121: Velux MK06 ODL Kit for GSE In Roof - Portrait | AB121: Velux MK06 ODL Kit for GSE In Roof - Portrait | AC121: Velux MK06 ODL Kit for GSE In Roof - Portrait | AD121: Velux MK06 ODL Kit for GSE In Roof - Portrait | AL121: ART101590
A122: RemiseAber | B122: Remise d'abergements supérieurs | C122: Discount for top flashings | D122: Korting voor bovenste afdekplaten | E122: Rabatt der Obenverblechungen | F122: Kedvezmény felső burkolatra | G122: Rabat do obróbki blacharskiej | H122: Скидка на верхние планки | I122: Sleva na horní lišty | S122: ART104616 | W122: Raccord velux ODL PK08 GSE In-Roof | X122: Velux PK08 ODL Kit for GSE In Roof - Portrait | Y122: Velux PK08 ODL Kit for GSE In Roof - Portrait | Z122: Velux PK08 ODL Kit for GSE In Roof - Portrait | AA122: Velux PK08 ODL Kit for GSE In Roof - Portrait | AB122: Velux PK08 ODL Kit for GSE In Roof - Portrait | AC122: Velux PK08 ODL Kit for GSE In Roof - Portrait | AD122: Velux PK08 ODL Kit for GSE In Roof - Portrait | AL122: ART104616
A123: RemiseQuest | B123: Avez-vous une remise ? | C123: Do you have a discount ? | D123: Heeft u een korting ? | E123: Haben Sie Rabatt? | F123: Rendelkezik kedvezménnyel? | G123: Czy masz rabat? | H123: У вас есть скидка? | I123: Máte slevu? | S123: RMK10 | W123: Raccord velux ODL MK10 GSE In-Roof | X123: Velux MK10 ODL Kit for GSE In Roof - Portrait | Y123: Velux MK10 ODL Kit for GSE In Roof - Portrait | Z123: Velux MK10 ODL Kit for GSE In Roof - Portrait | AA123: Velux MK10 ODL Kit for GSE In Roof - Portrait | AB123: Velux MK10 ODL Kit for GSE In Roof - Portrait | AC123: Velux MK10 ODL Kit for GSE In Roof - Portrait | AD123: Velux MK10 ODL Kit for GSE In Roof - Portrait | AL123: RMK10
A124: ErrInfoMsg11 | B124: La valeur de la remise saisie n'est pas correcte. | C124: The discount value entered is not correct. | D124: De ingevoerde kortingswaarde is niet correct | E124: Der Wert des eingegebenen Rabattes ist nicht korrekt. | F124: A megadott kedvezmény értéke nem megfelelő. | G124: Wprowadzona wartość rabatu jest nieprawidłowa. | H124: Введено неверное значение скидки. | I124: Zadaná hodnota slevy není správná. | S124: RPK10 | W124: Raccord velux ODL PK10 GSE In-Roof | X124: Velux PK10 ODL Kit for GSE In Roof - Portrait | Y124: Velux PK10 ODL Kit for GSE In Roof - Portrait | Z124: Velux PK10 ODL Kit for GSE In Roof - Portrait | AA124: Velux PK10 ODL Kit for GSE In Roof - Portrait | AB124: Velux PK10 ODL Kit for GSE In Roof - Portrait | AC124: Velux PK10 ODL Kit for GSE In Roof - Portrait | AD124: Velux PK10 ODL Kit for GSE In Roof - Portrait | AL124: RPK10
A125: HautCmpARF | B125: Hauteur (avec Raccord faîtage) | C125: Height (with top connection) | D125: Hoogte (met bovenaansluiting) | E125: Höhe (mit Firstanbindung) | F125: Magasság (felső csatlakozással) | G125: Wysokość (z obróbką blacharską górną) | H125: Высота (с верхним соединением) | I125: Výška (s horním spojem) | S125: ART104623 | W125: Raccord velux ODL SK10 GSE In-Roof | X125: Velux SK10 ODL Kit for GSE In Roof - Portrait | Y125: Velux SK10 ODL Kit for GSE In Roof - Portrait | Z125: Velux SK10 ODL Kit for GSE In Roof - Portrait | AA125: Velux SK10 ODL Kit for GSE In Roof - Portrait | AB125: Velux SK10 ODL Kit for GSE In Roof - Portrait | AC125: Velux SK10 ODL Kit for GSE In Roof - Portrait | AD125: Velux SK10 ODL Kit for GSE In Roof - Portrait | AL125: ART104623
A126: HautCmpARFRE | B126: Hauteur (avec Raccord faîtage et Raccord à l'égout) | C126: Height (with top connection and eaves connection) | D126: Hoogte (met nokaansluiting en dakrandaansluiting) | E126: Höhe (mit Firstanbindung und Dichtigkeitsanbindung traufeseitig) | F126: Magasság (oldalsó és eresz csatlakozással) | G126: Wysokość (z obróbką blacharską boczną i dolną) | H126: Высота (с боковым соединением и соединением карниза) | I126: Výška (s bočním spojením a spojením římsy) | S126: ART103622 | W126: Abergement Lateral Gauche pour Velux MK06/MK08 v.2020 | X126: LEFT VELUX LATERAL FLASHING MK06/MK08 v.2020 | Y126: LEFT VELUX LATERAL FLASHING MK06/MK08 v.2020 | Z126: LEFT VELUX LATERAL FLASHING MK06/MK08 v.2020 | AA126: LEFT VELUX LATERAL FLASHING MK06/MK08 v.2020 | AB126: LEFT VELUX LATERAL FLASHING MK06/MK08 v.2020 | AC126: LEFT VELUX LATERAL FLASHING MK06/MK08 v.2020 | AD126: LEFT VELUX LATERAL FLASHING MK06/MK08 v.2020 | AL126: ART103622
A127: PUHT | B127: P.U. (HT) | C127: Unit Price (Excl Tax) | D127: Eenheidsprijs (Excl. BTW) | E127: Pro Einheit (zzgl. MwSt.) | F127: Egységár (ÁFA nélkül) | G127: Cena jednostkowa netto | H127: Цена за единицу (без налогов) | I127: Jednotková cena (bez daně) | S127: ART103629 | W127: Abergement Lateral Droit pour Velux MK06/MK08 v.2020 | X127: RIGHT VELUX LATERAL FLASHING MK06/MK08 v.2020 | Y127: RIGHT VELUX LATERAL FLASHING MK06/MK08 v.2020 | Z127: RIGHT VELUX LATERAL FLASHING MK06/MK08 v.2020 | AA127: RIGHT VELUX LATERAL FLASHING MK06/MK08 v.2020 | AB127: RIGHT VELUX LATERAL FLASHING MK06/MK08 v.2020 | AC127: RIGHT VELUX LATERAL FLASHING MK06/MK08 v.2020 | AD127: RIGHT VELUX LATERAL FLASHING MK06/MK08 v.2020 | AL127: ART103629
A128: AberFaitJonc | B128: Abergement Faîtage Jonction | C128: Top Flashing junction | D128: Verbinding bovenste afdekplaat | E128: Verbindungsblech Firstverblechung | F128: Felső burkolat csatlakozás | G128: Obróbka blacharska - góra, łącznik | H128: Соеденитель верхнего отлива | I128: Spojka připojení horní lišty | S128: ART105512 | W128: Abergement Lateral Gauche pour Velux TAILLE 08 v.2022 | X128: LEFT VELUX LATERAL FLASHING SIZE 08 v.2022 | Y128: LEFT VELUX LATERAL FLASHING SIZE 08 v.2022 | Z128: LEFT VELUX LATERAL FLASHING SIZE 08 v.2022 | AA128: LEFT VELUX LATERAL FLASHING SIZE 08 v.2022 | AB128: LEFT VELUX LATERAL FLASHING SIZE 08 v.2022 | AC128: LEFT VELUX LATERAL FLASHING SIZE 08 v.2022 | AD128: LEFT VELUX LATERAL FLASHING SIZE 08 v.2022 | AL128: ART105512
A129: PUREM | B129: P.U. REMISÉ | C129: Discounted unit price | D129: Eenheidsprijs met korting | E129: Pro Einheit Diskontiert | F129: Kedvezményes darab ár | G129: Cena jednostkowa po rabacie | H129: Цена за штуку со скидкой | I129: Zlevněná jednotková cena | S129: ART105498 | W129: Abergement Lateral Droit pour Velux TAILLE 08 v.2022 | X129: RIGHT VELUX LATERAL FLASHING SIZE 08 v.2022 | Y129: RIGHT VELUX LATERAL FLASHING SIZE 08 v.2022 | Z129: RIGHT VELUX LATERAL FLASHING SIZE 08 v.2022 | AA129: RIGHT VELUX LATERAL FLASHING SIZE 08 v.2022 | AB129: RIGHT VELUX LATERAL FLASHING SIZE 08 v.2022 | AC129: RIGHT VELUX LATERAL FLASHING SIZE 08 v.2022 | AD129: RIGHT VELUX LATERAL FLASHING SIZE 08 v.2022 | AL129: ART105498
A130: Portrait | B130: Portrait | C130: Portrait | D130: Portrait | E130: Hochkant | F130: Álló tájolás | G130: Pion | H130: Вертикальный | I130: Vertikální | S130: ART105519 | W130: Abergement Lateral Gauche pour Velux TAILLE 10 v.2022 | X130: LEFT VELUX LATERAL FLASHING SIZE 10 v.2022 | Y130: LEFT VELUX LATERAL FLASHING SIZE 10 v.2022 | Z130: LEFT VELUX LATERAL FLASHING SIZE 10 v.2022 | AA130: LEFT VELUX LATERAL FLASHING SIZE 10 v.2022 | AB130: LEFT VELUX LATERAL FLASHING SIZE 10 v.2022 | AC130: LEFT VELUX LATERAL FLASHING SIZE 10 v.2022 | AD130: LEFT VELUX LATERAL FLASHING SIZE 10 v.2022 | AL130: ART105519
A131: Paysage | B131: Paysage | C131: Landscape | D131: Landscape | E131: Querformat | F131: Fekvő tájolás | G131: Poziom | H131: Горизонтальный | I131: Horizontální | S131: ART105505 | W131: Abergement Lateral Droit pour Velux TAILLE 10 v.2022 | X131: RIGHT VELUX LATERAL FLASHING SIZE 10 v.2022 | Y131: RIGHT VELUX LATERAL FLASHING SIZE 10 v.2022 | Z131: RIGHT VELUX LATERAL FLASHING SIZE 10 v.2022 | AA131: RIGHT VELUX LATERAL FLASHING SIZE 10 v.2022 | AB131: RIGHT VELUX LATERAL FLASHING SIZE 10 v.2022 | AC131: RIGHT VELUX LATERAL FLASHING SIZE 10 v.2022 | AD131: RIGHT VELUX LATERAL FLASHING SIZE 10 v.2022 | AL131: ART105505
A132: NotePriceOpt | B132: NB : Prix disponible auprès de votre interlocuteur habituel. | C132: NB: Price available from your usual contact. | D132: NB: Prijzen verkrijgbaar bij uw gebruikelijke contactpersoon. | E132: NB: Preisinformationen erhalten Sie bei Ihrem üblichen Ansprechpartner. | F132: NB: Ár elérhető partnereinknél. | G132: NB: Cena dostępna u dystrybutora | H132: NB: Цена доступна у наших партнеров. | I132: Pozn.: Cena je k dispozici u vašeho obvyklého kontaktu. | S132: DPORT 1640 / 992 | W132: DEMI_Po | X132: HALF_Po | Y132: HALF_Po | Z132: HALF_Po | AA132: HALF_Po | AB132: HALF_Po | AC132: HALF_Po | AD132: HALF_Po
A133: HidePrice | B133: Masquer les prix | C133: Hide prices | D133: Verberg prijzen | E133: Preise ausblenden | F133: Árak elrejtése | G133: Ukryj cenę | H133: Скрыть цены | I133: Skrýt ceny | S133: ART105351 | W133: Abergement Intermodule 2012-2020 | X133: Intermodule Flashing 2012-2020 | Z133: Mittlere Blechabdeckung 2012-2020 | AL133: ART105351
A134: DisPrice | B134: Afficher les prix | C134: Show prices | D134: Toon prijzen | E134: Preise anzeigen | F134: Árak mutatása | G134: Pokaż cenę | H134: Указать цены | I134: Zobrazit ceny | S134: ART105554 | W134: Abergement Intermodule 2022 | X134: Intermodule Flashing 2022 | Z134: Mittlere Blechabdeckung 2022 | AL134: ART105554
A135: WebLink1 | B135: Pour plus d’information sur le produit : www.gseintegration.com | C135: For more information about the product: www.gseintegration.com | D135: Voor meer informatie over het produkt : www.gseintegration.com | E135: Für weitere Informationen über das Produkt: www.gseintegration.com | F135: Több információért a termékről: www.hasznaldanapot.hu | G135: Więcej informacji o produkcie: www.gseintegration.com | H135: Для получения дополнительной информации о продукте: www.gseintegration.com | I135: Další informace o produktu: www.gseintegration.com
A136: UpQte | B136: Modifier les quantités | C136: Change quantities | D136: Wijzig hoeveelheden | E136: Ändern Sie die Mengen | F136: Mennyiség megváltoztatása | G136: Zmień ilość | H136: Изменить каличество | I136: Změňte množství
A137: FzQte | B137: Bloquer les quantités | C137: Freeze quantities | D137: Vergrendel hoeveelheden | E137: Mengen sperren | F137: Mennyiség rögzítése | G137: Zachowaj ilość | H137: Зафиксировать количество | I137: Freeze quantities
A138: Lang | B138: Français | C138: English | D138: Nederlands | E138: Deutsch | F138: Angol | G138: Polski | H138: Английский | I138: Angličtina
A139: PVPlant | B139: Champ PV | C139: PV Array | D139: PV-veld | E139: PV-Modulfeld | F139: PV elrendezés | G139: Macierz modułów PV | H139: Раскладка PV-модулей | I139: Rozložení FV modulů
A140: nbAS | B140: Nombre de GSE Air'System | C140: Number of GSE Air'System | D140: Aantal GSE Air'System | E140: Anzhal der GSE Air'System | F140: GSE Levegő rendszerek száma | G140: Ilość GSE Air'System | H140: Количество GSE Air'System | I140: Počet GSE Air'System
A141: KITATEC | B141: Kit spécifique | C141: Specific Kit | D141: Specifieke kit | E141: Spezifischer Kit | F141: Specifikus szett | G141: Zestaw specjalny | H141: Конкретный комплект | I141: Specifická sada
A142: KITUNI | B142: Kit Universel | C142: Universal Kit | D142: Universele kit | E142: Allgemeines Kit | F142: Univerzális szett | G142: Zestaw uniwersalny | H142: Универсальный комплект | I142: Univerzální sada
A143: Autre | B143: Autres | C143: Others | D143: Andere | E143: Andere | F143: Egyéb | G143: Pozostałe | H143: Другие | I143: Ostatní
A144: FENTOIT | B144: Fenêtre de toit | C144: Roof Window | D144: Dakraam | E144: Fenster am Dach | F144: Tetőablak | G144: Okno dachowe | H144: Мансардное окно | I144: Střešní okno
A145: NOFENTOIT | B145: Pas de fenêtre | C145: No Window | D145: Geen raam | E145: Kein Fenster | F145: Nincs ablak | G145: Brak okna | H145: Без окна | I145: Žádné okno
A146: VISU | B146: Visualiser le positionnement des abergements hauts et des bandes d'étanchéité sur le champ PV | C146: Show the position of the top flashings and sealing strips on the PV plant | D146: Toon de plaats van de bovenste afdekplaten en van de waterafdichtstrip op het PV-veld | E146: Visualisierung der Positionierung der oberen Verblechungen und Dichtungsstreifen auf PV-modulfeld | F146: Mutasd a felső burkolatot és szigetelő réteget a PV elrendezésen | G146: Pokaż położenie górnych obróbek blacharskich i taśm uszczelniających w układzie modułów fotowoltaicznych | H146: Показать положение верхних планок и уплотнительных полос на раскладке PV-модулей. | I146: Zobrazit umístění horních listových a těsnicích pásů na rozložení FV modulů.
A147: SelecATECModmsg2 | B147: Sélectionnez en un. | C147: Choose one. | D147: Selecteer er één | E147: Wähle ein. | F147: Válasszon egyet. | G147: Wybierz jeden. | H147: Выберете один. | I147: Vybrat jeden.
A148: SelecATECModmsg3 | B148: La pente de toit est incorrecte pour la Tuile Canal (13.5° <= X <= 45°). | C148: The roof slope is incorrect for 'Curved Tiles' (13.5° <= X <= 45°). | D148: De dakhelling is onjuist voor 'Gebogen dakpannen' (13.5° <= X <= 45°). | E148: Die Dachneigung der 'Gewölbten Kacheln' ist falsch (13,5° <= X <= 45°). | F148: A megadott lejtés értéke nem megfelelő ' Ívelt cseréphez' (13.5° <= x <= 45°) | G148: Kąt nachylenia dachu jest nieprawidłowy dla dachówki falistej (13,5 ° <= X <= 45 °). | H148: Указанное значение уклона неверно для "Изогнутой черепицы" (13.5° <= X <= 45°). | I148: Sklon střechy není správný pro „zakřivené tašky“ (13.5° <= X <= 45°).
A149: SelecATECModmsg4 | B149: Corrigez la valeur. | C149: Correct the value. | D149: Corrigeer de waarde. | E149: Berichtigen Sie den Wert. | F149: Javítsa az értéket. | G149: Popraw wartość. | H149: Исправьте значение. | I149: Opravte hodnotu.
A150: SelecATECModmsg5 | B150: La pente de toit est incorrecte pour l'ardoise (14° <= X <= 45°). | C150: The roof slope is incorrect for 'Slate' (14° <= X <= 45°). | D150: De dakhelling is onjuist voor 'Leien' (14° <= X <= 45°). | E150: Die Dachneigung der 'Schiefer' ist falsch (14° <= X <= 45°). | F150: A megadott lejtés értéke nem megfelelő ' Palához' (14° <= x <= 45°) | G150: Kąt nachylenia dachu jest nieprawidłowy dla pokrycia dachowego z łupku (14° <= X <= 45°). | H150: Указанное значение наклона неверно для "Шифера" (14° <= X <= 45°). | I150: Sklon střechy není správný pro „Břidlice“ (14° <= X <= 45°).
A151: Pan1 | B151: Simple pan | C151: Monopitch | D151: Enkel dakvlak | E151: Einfache Dachfläche | F151: Féltető | G151: Jednostronny | H151: Односкатная | I151: Pultová
A152: Pan2 | B152: Double pan | C152: Duopitch | D152: Dubbel dakvlak | E152: Doppelte Dachplatte | F152: Nyeregtető | G152: Dwustronny | H152: Двухскатная | I152: Sedlová
A153: Dimension | B153: Dimensions | C153: Dimensions | D153: Afmetingen | E153: Dimensionen | F153: Méretek | G153: Wymiary | H153: Размеры | I153: Rozměry
A154: Conforme | B154: Conforme à Avis Technique (France) | C154: Compliant with the "Avis Technique" (French users only) | D154: In overeenstemming met de "Avis Technique" (enkel voor gebruik in Frankrijk) | E154: Entspricht der "Avis Technique" (nur für französische Benutzer) | F154: Megfelel az "Avis Technique" előírásoknak (csak Francia felhasználóknak) | G154: Zgodne z "Avis Technique" (Tylko francuscy użytkownicy) | H154: Соответствует спецификациям "Avis Technique" (только для пользователей из Франции) | I154: V souladu s "Avis Technique" (Pouze francouzští uživatelé)
A155: Avis | B155: Module sous Avis Technique | C155: PV modules compliant with the "Avis Technique" | D155: Zonnepaneel dat voldoet aan de "Avis Technique" | E155: PV-Module, die mit der "Avis Technique" vorschriftsmäßig übereinstimmen | F155: PV modul megfelel az "Avis Technique" előírásoknak | G155: Moduły PV zgodne z "Wymaganiami Technicznymi" | H155: PV-модули, соответствующие требованиям "Avis Technique" | I155: FV panely vyhovující „Avis Technique“
A156: Techno | B156: Technologie | C156: Technology | D156: Technologie | E156: Technologie | F156: Technológia | G156: Technologia | H156: Технология | I156: Technologie
A157: Jonction | B157: Boite de jonction splittée | C157: Split junction box | D157: Gesplitste aansluitdoos | E157: Anschlusskasten | F157: Osztott csatlakozódoboz | G157: Rozdzielacz | H157: Разъемная распределительная коробка | I157: Rozdělená spojovací skříňka
A158: Renfort | B158: Barre(s) de renfort | C158: Rear support bar(s) | D158: Achterste verstevigingsbalk(en) | E158: Bewehrungsstab | F158: Elülső segéd sáv(ok) | G158: Tylny wspornik(i) | H158: Задняя опорная балка(и) | I158: Zadní nosná tyč(y)
A159: Abergement | B159: Abergements | C159: Flashings | D159: Afdekplaten | E159: Verblechung | F159: Burkolatok | G159: Obróbki blacharskie | H159: Доборные элементы | I159: Klempířské plechy
A160: Colorflex | B160: Couleur FLEXALU | C160: FLEXALU Color | D160: Kleur FLEXALU | E160: FLEXALU Farbe | F160: FLEXALU szín | G160: Kolor taśmy hydroizolacyjnej | H160: Цвет FLEXALU | I160: Barva FLEXALU
A161: Largeurflex | B161: Largeur FLEXALU | C161: FLEXALU Width | D161: Breedte FLEXALU | E161: FLEXALU Breite | F161: FLEXALU szélesség | G161: Szerokość taśmy hydroizolacyjnej | H161: Ширина FLEXALU | I161: Šířka FLEXALU
A162: Comment | B162: Commentaires | C162: Comments | D162: Opmerkingen | E162: Kommentare | F162: Megjegyzések | G162: Uwagi | H162: Комментарии | I162: Komentáře
A163: Dessin | B163: Dessin | C163: Drawing | D163: Tekening | E163: Zeichnung | F163: Rajz | G163: Rysunek | H163: Чертёж | I163: Nákres
A164: Config | B164: Insérer | C164: Insert | D164: Invoegen | E164: Einfügen | F164: Beilleszt | G164: Wprowadź | H164: Вставить | I164: Vložit
A165: Objet | B165: Objet | C165: Item | D165: Object | E165: Objekt | F165: Tétel | G165: Przedmiot | H165: Элемент | I165: Položka
A166: Ajouter | B166: Ajouter champ PV | C166: Add new layout | D166: Extra PV-veld | E166: Anbauen | F166: Új elrendezés hozzáadása | G166: Dodaj nowy układ | H166: Добавить новую раскладку | I166: Přidat nové rozvržení
A167: Deplacement | B167: Déplacement du champs PV | C167: PV array moving | D167: Verplaats het PV-veld | E167: Bewegung | F167: PV elrendezés mozgatása | G167: Ruchomy układ modułów PV | H167: Подвижная схема PV-модулей | I167: Pohyblivé schéma FV modulů
A168: Message | B168: Pour les abergements hauts des delais supplementaires de production sont a prevoir. Il est possible de les remplacer par du Flexalu | C168: Additional time has to be considered for the production of the top center flashing. It is possible to replace it with Flexalu | D168: Voor de bovenste afdekplaten is extra produktietijd nodig. Het is mogelijk ze te vervangen door Flexalu | E168: Für die Herstellung der oberen Blechabdeckung muss zusätzliche Zeit berücksichtigt werden. Es ist möglich, sie durch Flexalu (Dichtungsband) zu ersetzen. | F168: A felső burkolat legyártása több időt vesz igénybe. Kiváltható FLEXALU alkalmazásával | G168: Należy wziąć pod uwagę dodatkowy czas montażu na wykonanie górnej obróbki blacharskiej. Istnieje możliwość użycia taśmy hydroizolacyjnej. | H168: Необходимо учитывать дополнительное время сборки верхней центральной планки. Существует возможность использования гидроизоляционной ленты FLEXALU. | I168: Je třeba vzít v úvahu dodatečnou dobu montáže pro provedení horní středové lišty. Existuje možnost použití hydroizolační pásky FLEXALU.
A169: Message_toit | B169: Valeurs en dehors du toit | C169: Out of the roof | D169: Waarden buiten het dak | E169: Vom Dach aus | F169: Tetőn kívül | G169: Wartości poza dachem | H169: За пределами крыши | I169: Mimo střechu
A170: Calcul | B170: Calcul des pièces | C170: Calculate parts | D170: Bereken de onderdelen | E170: Berechnung | F170: Alkatrészek kiszámítása | G170: Oblicz części | H170: Расчет деталей | I170: Vypočítat díly
A171: Aucune_plaque | B171: Aucune plaque trouvée | C171: No GSE frame found | D171: Geen GSE montageplaat gevonden | E171: Keine GSE-Wanne gefunden | F171: Nem található megfelelő GSE keret | G171: Nie znaleziono ramy GSE | H171: GSE рама не найдена | I171: Nebyl nalezen žádný rám GSE
A172: Choisir_plaque | B172: Choisir plaque | C172: Select GSE frame | D172: Selecteer de GSE montageplaat | E172: Auswählen GSE-Wanne | F172: Válasszd ki a GSE keretet | G172: Wybierz ramę GSE | H172: Выбирете GSE раму | I172: Vyberte rám GSE
A173: EcranToiture | B173: Ecran de sous toiture | C173: Roofing Underlay | D173: Dakfolie | E173: Unterspannbahn | F173: Tető szigetelés | G173: Podkład dachowy | H173: Утепление крыши | I173: Izolace střechy
A174: projet | B174: projet | C174: project | D174: project | E174: projekt | F174: projekt | G174: projekt | H174: проект | I174: projekt
A175: info_rampant | B175: Si vous ne connaissez pas la longueur de rampant, saisissez l’inclinaison et la largeur du toit pour la déterminer. | C175: If you don’t know the roof width (R), enter the roof slope (α) and the house width (W) to determine it. | D175: Als u de dakbreedte (R) niet weet, voer dan de dakhelling (α) en de huisbreedte (W) in om deze te bepalen | E175: Wenn Sie die Dachfläche nicht kennen, geben Sie dessen Neigung und die Breite des Hauses ein, um diese zu bestimmen. | F175: Ha nem tudja a tető szélességét('R), adja meg a tető lejtését(α) és a ház szélességét (W) a meghatározásához. | G175: Jeśli nie znasz szerokości dachu (R), wprowadź kąt nachylenie dachu (α) i szerokość budynku (W), aby ją zdefiniować. | H175: Если вы не знаете ширину крыши (R), введите уклон крыши (α) и ширину дома (W), чтобы определить ее. | I175: Pokud neznáte šířku střechy (R), zadejte její sklon (α) a šířku budovy (W).
A176: inserer | B176: Insérer un champ prédéfini | C176: Set up a predefined PV array | D176: Geef een voorgedefiniëerd PV-veld op | E176: Einfügen einer vordefinierten PV-Anordnung | F176: Előre meghatározott PV elrendezés megadása | G176: Skonfiguruj wstępnie zdefiniowaną macierz modułów PV | H176: Настроить стандартную раскладку PV-модулей | I176: Přizpůsobit standardní rozložení FV modulů
A177: ligne | B177: Lignes | C177: Lines | D177: Rijen | E177: Zeilen | F177: Sorok | G177: Linie | H177: Ряды | I177: Řádky
A178: colonne | B178: Colonnes | C178: Columns | D178: Kolommen | E178: Spalten | F178: Oszlopok | G178: Kolumny | H178: Столбцы | I178: Sloupce
A179: Dessiner | B179: Dessiner le champ PV | C179: Draw the PV array | D179: Teken het PV-veld | E179: Zeichnen der PV-Anordnung | F179: PV elrendezés megrajzolása | G179: Narysuj tablicę macierz modułów PV | H179: Создать раскладку PV-модулей | I179: Vytvořit rozložení FV modulů
A180: liste | B180: Liste de matériel | C180: Bill of material | D180: Materiaallijst | E180: Stückliste | F180: Anyagszámla | G180: Zestawienie materiałów | H180: Смета материалов | I180: Bill of material
A181: legende1 | B181: Abergement de faîtage | C181: Top Flashing | D181: Bovenste afdekplaat | E181: Eckverblechung | F181: Felső burkolat | G181: Obróbka do szczytowej krawędzi dachu | H181: Верхний отлив | I181: Horní okapnice
A182: legende2 | B182: Abergement latéral | C182: Lateral Flashing | D182: Zij afdekplaat | E182: Seitliche Verblechung | F182: Oldalsó burkolat | G182: Obróbka do bocznej krawędzi dachu | H182: Торцевая планка | I182: Koncová lišta
A183: legende3 | B183: Bande d'étanchéité FLEXALU | C183: FLEXALU Waterproofing Strip | D183: FLEXALU waterafdichtingsstrip | E183: FLEXALU Dichtungband | F183: FLEXALU vízzáró szalag | G183: Taśma hydroizolacyjna | H183: Гидроизоляционная лента FLEXALU | I183: Hydroizolační pás FLEXALU
A184: Haut2 | B184: Hauteur (m) | C184: Height (m) | D184: Hoogte (m) | E184: Höhe (m) | F184: Magasság (m) | G184: Wysokość (m) | H184: Высота (м) | I184: Výška (m)
A185: Larg2 | B185: Largeur (m) | C185: Width (m) | D185: Breedte (m) | E185: Breite (m) | F185: Szélesség (m) | G185: Szerokość (m) | H185: Ширина (м) | I185: Šířka (m)
A186: Larg3 | B186: Largeur (L) | C186: Width (L) | D186: Breedte (L) | E186: Breite (L) | F186: Szélesség (L) | G186: Szerokość (L) | H186: Ширина (L) | I186: Šířka (L)
A187: Messtoit | B187: Veuillez saisir les dimensions du toit avant d’accéder à la partie Calepinage. | C187: Please enter the roof dimensions before accessing the Layout section. | D187: Voer de dakafmetingen in voordat u naar het Lay-out gedeelte gaat. | E187: Please enter the roof dimensions before accessing the Layout section. | F187: Kérem adja meg a tető méreteit mielőtt tovább lép az elrendezés szekcióba. | G187: Wprowadź wymiary dachu przed przejściem do sekcji Układ. | H187: Пожалуйста, введите размеры крыши, прежде чем переходить к разделу «Раскладка». | I187: Před vstupem do sekce Rozvržení zadejte rozměry střechy.
A188: Produit | B188: Produit | C188: Product | D188: Producten | E188: Produkt | F188: Termékek | G188: Produkt | H188: Продукт | I188: Výrobky
A189: Reset | B189: Reset | C189: Reset | D189: Reset | E189: Reset | F189: Visszaállítás | G189: Resetowanie | H189: Сбросить | I189: Resetovat
A190: Position X | B190: Position X | C190: Positon X | D190: Positie X | E190: Positon X | F190: Pozíció X | G190: Pozycja X | H190: Положение X | I190: Pozice X
A191: Position Y | B191: Position Y | C191: Position Y | D191: Positie Y | E191: Position Y | F191: Pozíció Y | G191: Pozycja Y | H191: Положение Y | I191: Pozice Y
A192: Messtaille | B192: Les dimensions du toit ne permettent pas d’installer une ligne et/ou colonne de module photovoltaïque avec le système GSE In-Roof. Veuillez modifier les dimensions de la toiture pour passer à l’onglet Calepinage. | C192: The roof dimensions do not allow the installation of one row and/or column of photovoltaic modules with the GSE In-Roof system. Please change the roof dimensions to be able to continue to the Layout tab. | D192: De afmetingen van het dak laten de installatie van één rij en/of kolom van zonnepanelen niet toe met het GSE In-Roof systeem. Wijzig de dakafmetingen om naar het tabblad “opstelling” te gaan. | E192: Die Abmessungen des Daches lassen die Installation einer Reihe und/oder Säule von Photovoltaikmodulen mit dem GSE-In-Roof-System nicht zu. Bitte ändern Sie die Dachabmessungen in der Registerkarte Lattenplan. | F192: A tetőméretek nem teszik lehetővé a fotovoltaikus modulok sorának és/vagy oszlopának telepítését a GSE In-Roof rendszerrel. Kérjük, módosítsa a tető méreteit az Elrendezés lapon. | G192: Wymiary dachu nie pozwalają na montaż rzędu i/lub kolumny modułów fotowoltaicznych w systemie GSE In-Roof. Proszę zmienić wymiary dachu w zakładce Układ. | H192: Размеры крыши не позволяют установить горизонтальный ряд и/или вертикальный ряд фотоэлектрических модулей с системой GSE IN-ROOF. Измените размеры крыши и перейдите на вкладку Макет. | I192: Rozměry střechy neumožňují instalaci řady a / nebo sloupku fotovoltaických modulů se systémem GSE In-Roof. Změňte rozměry střechy a přejděte na kartu Rozvržení.
A193: Sansprix | B193: Se renseigner auprès d’un distributeur | C193: Check with a distributor | D193: Check with a distributor | E193: Check with a distributor | F193: Check with a distributor | G193: Check with a distributor | H193: Check with a distributor | I193: Check with a distributor
A194: mess_velux | B194: Cliquer sur un module PV pour générer une fenêtre de toit | C194: Click on a PV module to generate a roof window | D194: Click on a PV module to generate a roof window | E194: Click on a PV module to generate a roof window | F194: Click on a PV module to generate a roof window | G194: Click on a PV module to generate a roof window | H194: Click on a PV module to generate a roof window | I194: Click on a PV module to generate a roof window
A195: legende4 | B195: Bande d’étanchéité Flexalu pour fenêtre de toit | C195: Flexalu Waterproofing strip for the roof window | D195: Flexalu Waterproofing strip for the roof window | E195: Flexalu Waterproofing strip for the roof window | F195: Flexalu Waterproofing strip for the roof window | G195: Flexalu Waterproofing strip for the roof window | H195: Flexalu Waterproofing strip for the roof window | I195: Flexalu Waterproofing strip for the roof window
A196: legende5 | B196: Abergement Velux GSEi | C196: GSEi Velux Flashing | D196: GSEi Velux Flashing | E196: GSEi Velux Flashing | F196: GSEi Velux Flashing | G196: GSEi Velux Flashing | H196: GSEi Velux Flashing | I196: GSEi Velux Flashing
A197: Choisir_velux | B197: Choisir VELUX | C197: Select VELUX | D197: Selecteer de VELUX | E197: Auswählen VELUX | F197: Válasszd ki a VELUX | G197: Wybierz VELUX | H197: Выбирете VELUX | I197: Vyberte VELUX

Sheet Home

Sheet Listes (hidden)
A1: Epaisseur Module PV | C1: Pans | D1: Module | E1: Hauteur (mm) | F1: Largeur (mm) | G1: Epaisseur (mm) | V1: Type couverture | W1: Oui/non | X1: Raccord haut | Y1: Raccord bas | Z1: Couleur | AA1: Langue numéro | AB1: couleur etrier | AC1: Message velux | AD1: liste_velux | AE1: index_velux
A2: 30 | C2: 1 | D2: AUO SunPrimo PM060PW1 | E2: 1640 | F2: 992 | G2: 40 | H2: 250 | I2: 255 | J2: 260 | K2: 265 | L2: 270 | M2: 275 | N2: 280 | O2: 285 | P2: 290 | Q2: 295 | R2: 300 | S2: 305 | T2: 310 | V2: =VLOOKUP("TuileM",BD!$A$1:$P$200,Listes!$AA$2+1,0) -> Tuile mécanique | W2: =VLOOKUP("Yes",BD!$A$1:$P$200,Listes!$AA$2+1,0) -> Oui | X2: =VLOOKUP("None1",BD!$A$1:$P$200,Listes!$AA$2+1,0) -> Aucun | Y2: =VLOOKUP("None1",BD!$A$1:$P$200,Listes!$AA$2+1,0) -> Aucun | Z2: =UPPER(trad("Noir")) -> NOIR | AA2: =MATCH(s_langue,BD!$B$1:$P$1,0) -> 1 | AB2: NOIR | AC2: =VLOOKUP("mess_velux",BD!$A$1:$P$200,Listes!$AA$2+1,0) -> Cliquer sur un module PV pour générer une fenêtre de toit | AD2: MK06 | AE2: 4
A3: 31 | C3: 2 | D3: AUO SunVivo PM060MX2 | E3: 1640 | F3: 992 | G3: 40 | H3: 250 | I3: 255 | J3: 260 | K3: 265 | L3: 270 | M3: 275 | N3: 280 | O3: 285 | P3: 290 | Q3: 295 | R3: 300 | S3: 305 | T3: 310 | V3: =VLOOKUP("Ardoise",BD!$A$1:$P$200,Listes!$AA$2+1,0) -> Ardoise | W3: =VLOOKUP("No",BD!$A$1:$P$200,Listes!$AA$2+1,0) -> Non | X3: =VLOOKUP("Aberfait",BD!$A$1:$P$200,Listes!$AA$2+1,0) -> Abergement | Y3: FLEXALU | AD3: MK08 | AE3: 6
A4: 32 | D4: AUO SunForte PM096B00 | E4: 1559 | F4: 1046 | G4: 46 | H4: 325 | I4: 327 | J4: 330 | K4: 333 | L4: 335 | M4: 0 | N4: 0 | O4: 0 | P4: 0 | Q4: 0 | R4: 0 | S4: 0 | T4: 0 | V4: =VLOOKUP("TuileC",BD!$A$1:$P$200,Listes!$AA$2+1,0) -> Tuile à fort galbe | X4: FLEXALU
A5: 33 | D5: BISOL BMU | E5: 1649 | F5: 991 | G5: 35 | H5: 250 | I5: 255 | J5: 260 | K5: 265 | L5: 270 | M5: 275 | N5: 280 | O5: 285 | P5: 0 | Q5: 0 | R5: 0 | S5: 0 | T5: 0 | V5: =VLOOKUP("Tuile",BD!$A$1:$P$200,Listes!$AA$2+1,0) -> Tuile plate
A6: 34 | D6: BISOL BMO | E6: 1649 | F6: 991 | G6: 35 | H6: 280 | I6: 285 | J6: 290 | K6: 295 | L6: 300 | M6: 305 | N6: 0 | O6: 0 | P6: 0 | Q6: 0 | R6: 0 | S6: 0 | T6: 0 | V6: =VLOOKUP("PlaqueN",BD!$A$1:$P$200,Listes!$AA$2+1,0) -> Plaque nervurée
A7: 35 | D7: SolarWorld Sunmodule Plus SW poly | E7: 1675 | F7: 1001 | G7: 33 | H7: 250 | I7: 255 | J7: 260 | K7: 265 | L7: 270 | M7: 275 | N7: 0 | O7: 0 | P7: 0 | Q7: 0 | R7: 0 | S7: 0 | T7: 0 | V7: =VLOOKUP("PlaqueO",BD!$A$1:$P$200,Listes!$AA$2+1,0) -> Plaque ondulée
A8: 36 | D8: SolarWorld Sunmodule Plus SW mono | E8: 1675 | F8: 1001 | G8: 33 | H8: 280 | I8: 290 | J8: 300 | K8: 0 | L8: 0 | M8: 0 | N8: 0 | O8: 0 | P8: 0 | Q8: 0 | R8: 0 | S8: 0 | T8: 0
A9: 37 | D9: Soluxtec Das Modul Multi Serie FR 60 | E9: 1645 | F9: 985 | G9: 35 | H9: 250 | I9: 255 | J9: 260 | K9: 265 | L9: 0 | M9: 0 | N9: 0 | O9: 0 | P9: 0 | Q9: 0 | R9: 0 | S9: 0 | T9: 0
A10: 38 | D10: Soluxtec Das Modul Mono Serie FR 60 | E10: 1645 | F10: 985 | G10: 35 | H10: 275 | I10: 280 | J10: 285 | K10: 290 | L10: 295 | M10: 300 | N10: 0 | O10: 0 | P10: 0 | Q10: 0 | R10: 0 | S10: 0 | T10: 0
A11: 39 | D11: SunPower SPR-E20/X21/X22 | E11: 1559 | F11: 1046 | G11: 46 | H11: 327 | I11: 345 | J11: 350 | K11: 360 | L11: 0 | M11: 0 | N11: 0 | O11: 0 | P11: 0 | Q11: 0 | R11: 0 | S11: 0 | T11: 0
A12: 40 | D12: Trina TSM-PD05 | E12: 1650 | F12: 992 | G12: 35 | H12: 255 | I12: 260 | J12: 265 | K12: 270 | L12: 0 | M12: 0 | N12: 0 | O12: 0 | P12: 0 | Q12: 0 | R12: 0 | S12: 0 | T12: 0
A13: 41 | D13: Trina TSM-DD05A | E13: 1650 | F13: 992 | G13: 35 | H13: 270 | I13: 275 | J13: 280 | K13: 285 | L13: 290 | M13: 0 | N13: 0 | O13: 0 | P13: 0 | Q13: 0 | R13: 0 | S13: 0 | T13: 0
A14: 42 | D14: Viessmann Vitovolt 300 P | E14: 1640 | F14: 992 | G14: 40 | H14: 250 | I14: 255 | J14: 260 | K14: 265 | L14: 270 | M14: 0 | N14: 0 | O14: 0 | P14: 0 | Q14: 0 | R14: 0 | S14: 0 | T14: 0
A15: 43 | D15: Viessmann Vitovolt 300 P | E15: 1640 | F15: 992 | G15: 40 | H15: 275 | I15: 280 | J15: 285 | K15: 290 | L15: 295 | M15: 300 | N15: 305 | O15: 310 | P15: 0 | Q15: 0 | R15: 0 | S15: 0 | T15: 0
A16: 44 | D16: SOLUXTEC DAS MODUL Mono FS | E16: 1665 | F16: 1005 | G16: 35 | H16: 315 | I16: 320 | J16: 325 | K16: 330 | L16: 0 | M16: 0 | N16: 0 | O16: 0 | P16: 0 | Q16: 0 | R16: 0 | S16: 0 | T16: 0
A17: 45 | D17: SUNPOWER Maxeon 2 | E17: 1690 | F17: 1046 | G17: 40 | H17: 340 | I17: 345 | J17: 350 | K17: 355 | L17: 360 | M17: 0 | N17: 0 | O17: 0 | P17: 0 | Q17: 0 | R17: 0 | S17: 0 | T17: 0
A18: 46 | D18: SUNPOWER Maxeon 3 | E18: 1690 | F18: 1046 | G18: 40 | H18: 370 | I18: 375 | J18: 380 | K18: 385 | L18: 390 | M18: 395 | N18: 400 | O18: 0 | P18: 0 | Q18: 0 | R18: 0 | S18: 0 | T18: 0
A19: 47 | D19: TRINASOLAR TSM-DE06M(II) | E19: 1690 | F19: 996 | G19: 35 | H19: 325 | I19: 330 | J19: 335 | K19: 340 | L19: 0 | M19: 0 | N19: 0 | O19: 0 | P19: 0 | Q19: 0 | R19: 0 | S19: 0 | T19: 0
A20: 48 | D20: TRINASOLAR TSM-DD06M.05(II) | E20: 1690 | F20: 996 | G20: 35 | H20: 310 | I20: 315 | J20: 320 | K20: 325 | L20: 330 | M20: 335 | N20: 0 | O20: 0 | P20: 0 | Q20: 0 | R20: 0 | S20: 0 | T20: 0
A21: 49 | D21: TRINASOLAR TSM-PE06H | E21: 1690 | F21: 996 | G21: 35 | H21: 285 | I21: 290 | J21: 295 | K21: 300 | L21: 0 | M21: 0 | N21: 0 | O21: 0 | P21: 0 | Q21: 0 | R21: 0 | S21: 0 | T21: 0
A22: 50 | D22: LG NeON’2 N1C | E22: 1686 | F22: 1016 | G22: 40 | H22: 330 | I22: 335 | J22: 340 | K22: 345 | L22: 350 | M22: 355 | N22: 360 | O22: 0 | P22: 0 | Q22: 0 | R22: 0 | S22: 0 | T22: 0
D23: LG NeON’2 N1K | E23: 1686 | F23: 1016 | G23: 40 | H23: 325 | I23: 330 | J23: 335 | K23: 340 | L23: 0 | M23: 0 | N23: 0 | O23: 0 | P23: 0 | Q23: 0 | R23: 0 | S23: 0 | T23: 0
D24: LG NeON’2 N1T | E24: 1686 | F24: 1016 | G24: 40 | H24: 335 | I24: 340 | J24: 345 | K24: 0 | L24: 0 | M24: 0 | N24: 0 | O24: 0 | P24: 0 | Q24: 0 | R24: 0 | S24: 0 | T24: 0
D25: LG NeON’R Q1C | E25: 1700 | F25: 1016 | G25: 40 | H25: 360 | I25: 365 | J25: 370 | K25: 375 | L25: 380 | M25: 0 | N25: 0 | O25: 0 | P25: 0 | Q25: 0 | R25: 0 | S25: 0 | T25: 0
D26: LG NeON’R Q1K | E26: 1700 | F26: 1016 | G26: 40 | H26: 335 | I26: 340 | J26: 345 | K26: 350 | L26: 355 | M26: 360 | N26: 365 | O26: 370 | P26: 0 | Q26: 0 | R26: 0 | S26: 0 | T26: 0
D27: JA SOLAR JAP60S09/SC | E27: 1657 | F27: 996 | G27: 35 | H27: 270 | I27: 275 | J27: 280 | K27: 285 | L27: 290 | M27: 0 | N27: 0 | O27: 0 | P27: 0 | Q27: 0 | R27: 0 | S27: 0 | T27: 0
D28: JA SOLAR JAM60S09/PR | E28: 1657 | F28: 996 | G28: 35 | H28: 310 | I28: 315 | J28: 320 | K28: 325 | L28: 330 | M28: 0 | N28: 0 | O28: 0 | P28: 0 | Q28: 0 | R28: 0 | S28: 0 | T28: 0
D29: JA SOLAR JAM60S12/PR | E29: 1657 | F29: 996 | G29: 35 | H29: 305 | I29: 310 | J29: 315 | K29: 320 | L29: 325 | M29: 0 | N29: 0 | O29: 0 | P29: 0 | Q29: 0 | R29: 0 | S29: 0 | T29: 0
D30: CSUNxxx-60M 1640x990x35 | E30: 1640 | F30: 990 | G30: 35 | H30: 295 | I30: 300 | J30: 305 | K30: 310 | L30: 315 | M30: 0 | N30: 0 | O30: 0 | P30: 0 | Q30: 0 | R30: 0 | S30: 0 | T30: 0
D31: CSUNxxx-60M 1658x996x35 | E31: 1658 | F31: 996 | G31: 35 | H31: 315 | I31: 320 | J31: 325 | K31: 330 | L31: 0 | M31: 0 | N31: 0 | O31: 0 | P31: 0 | Q31: 0 | R31: 0 | S31: 0 | T31: 0
D32: CSUNxxx-120M | E32: 1684 | F32: 1002 | G32: 35 | H32: 310 | I32: 315 | J32: 320 | K32: 325 | L32: 330 | M32: 335 | N32: 340 | O32: 0 | P32: 0 | Q32: 0 | R32: 0 | S32: 0 | T32: 0
D33: PERLIGHT PLM-XXXMB-60 | E33: 1640 | F33: 992 | G33: 35 | H33: 270 | I33: 275 | J33: 280 | K33: 285 | L33: 290 | M33: 295 | N33: 300 | O33: 305 | P33: 310 | Q33: 0 | R33: 0 | S33: 0 | T33: 0
D34: Autres | E34: 0 | F34: 0 | G34: 0 | H34: 0 | I34: 0 | J34: 0 | K34: 0 | L34: 0 | M34: 0 | N34: 0 | O34: 0 | P34: 0 | Q34: 0 | R34: 0 | S34: 0 | T34: 0

Sheet Accueil
C3: =VLOOKUP("HomeT1",BD!$A$1:$P$200,Listes!$AA$2+1,0) -> BIENVENUE DANS L'OUTIL DE DIMENSIONNEMENT ET COMMANDE
C4: =VLOOKUP("HomeT2",BD!$A$1:$P$200,Listes!$AA$2+1,0) -> DU GSE INTEGRATION IN-ROOF SYSTEM
M6: Français
D7: =VLOOKUP("HomeT3",BD!$A$1:$P$200,Listes!$AA$2+1,0) -> Vous trouverez à travers cette application l'outil qui vous permettra de calculer et de dimensionner vos commandes
C43: =VLOOKUP("Produit",BD!$A$1:$P$200,Listes!$AA$2+1,0) -> Produit | D43: GSE IN-ROOF
H44: GSE Intégration
H45: 5 - 9 rue Morand - 93400 Saint Ouen
H46: Tel : +33(0)1.49.48.14.51 - contact@gseintegration.fr - www.gseintegration.com

Sheet Projet (hidden)
AC1: Po 1710 / 995 | AD1: 1710 | AE1: 995 | AF1: H16
J2: =VLOOKUP("RefCmpPV",BD!$A$1:$P$200,Listes!$AA$2+1,0) -> Référence du projet | AC2: Po 1710 / 1000 | AD2: 1710 | AE2: 1000 | AF2: H16
AA3: Pan | AB3: 1 | AC3: Dpo 1650 / 995 | AD3: 1650 | AE3: 995 | AF3: H16 | CB3: Intermodule
AA4: Hauteur ref : | AB4: 1650 | AI4: Référence | AJ4: Tolérances dimensionnelles | AQ4: Dimensions de référence de la plaque GSE | BC4: 30 | BD4: 31 | BE4: 32 | BF4: 33 | BG4: 34 | BH4: 35 | BI4: 36 | BJ4: 37 | BK4: 38 | BL4: 39 | BM4: 40 | BN4: 41 | BO4: 42 | BP4: 43 | BQ4: 44 | BR4: 45 | BS4: 46 | BT4: 47 | BU4: 48 | BV4: 49 | BW4: 50 | CB4: 30 | CC4: 31 | CD4: 32 | CE4: 33 | CF4: 34 | CG4: 35 | CH4: 36 | CI4: 37 | CJ4: 38 | CK4: 39 | CL4: 40 | CM4: 41 | CN4: 42 | CO4: 43 | CP4: 44 | CQ4: 45 | CR4: 46 | CS4: 47 | CT4: 48 | CU4: 49 | CV4: 50
AA5: Largueur ref : | AB5: 995 | AH5: Version | AI5: PLAQUE | AJ5: HAUTEUR MINIMUM | AK5: HAUTEUR MAXIMUM | AL5: LARGEUR MINIMUM | AM5: LARGEUR MAXIMUM | AN5: EPAISSEUR MIN | AO5: Demi cellule | AP5: Renfort | AQ5: Hauteur ref | AR5: Larg ref | AS5: Orientation | AT5: Pas ondes | AU5: Débord ondes | AV5: Ajust_haut | AW5: Haut plaque | AX5: Ajustement de la graduation | AY5: Flexalu
AA6: Lignes : | AB6: 9 | AH6: 2012 | AI6: Po 1575 / 1046 | AJ6: 1525 | AK6: 1675 | AL6: 1041 | AM6: 1046 | AN6: 35 | AQ6: 1575 | AR6: 1046 | AS6: PORTRAIT | AT6: 36.5 | AU6: 30 | AV6: 1 | AW6: 160 | BH6: H16 | BI6: H16 | BJ6: H16 | BK6: H19 | BL6: H19 | BM6: H21 | BN6: H21 | BO6: H23 | BP6: H23 | BQ6: H23 | BR6: H26 | BS6: H26 | BT6: H27 | BU6: H27 | BW6: H31 | BZ6: 2012 | CA6: Po 1575 / 1046 | CG6: H14 | CH6: H14 | CI6: H14 | CJ6: H16 | CK6: H16 | CL6: H16 | CM6: H19 | CN6: H19 | CO6: H21 | CP6: H21 | CQ6: H23 | CR6: H23 | CS6: H23 | CT6: H26 | CU6: H26 | CV6: H27
C7: =VLOOKUP("DimToit",BD!$A$1:$P$200,Listes!$AA$2+1,0) -> Caractéristiques du toit | J7: =VLOOKUP("DimMod",BD!$A$1:$P$200,Listes!$AA$2+1,0) -> Caractéristiques du module | Q7: =VLOOKUP("FeatCmpPV",BD!$A$1:$P$200,Listes!$AA$2+1,0) -> Composants du kit | AA7: Colonnes : | AB7: 18 | AH7: 2012 | AI7: Po 1575 / 1053 | AJ7: 1525 | AK7: 1675 | AL7: 1048 | AM7: 1053 | AN7: 35 | AQ7: 1575 | AR7: 1053 | AS7: PORTRAIT | AT7: 36.5 | AU7: 30 | AV7: 1 | AW7: 160 | BH7: H16 | BI7: H16 | BJ7: H16 | BK7: H19 | BL7: H19 | BM7: H21 | BN7: H21 | BO7: H23 | BP7: H23 | BQ7: H23 | BR7: H26 | BS7: H26 | BT7: H27 | BU7: H27 | BW7: H31 | BZ7: 2012 | CA7: Po 1575 / 1053 | CG7: H14 | CH7: H14 | CI7: H14 | CJ7: H16 | CK7: H16 | CL7: H16 | CM7: H19 | CN7: H19 | CO7: H21 | CP7: H21 | CQ7: H23 | CR7: H23 | CS7: H23 | CT7: H26 | CU7: H26 | CV7: H27
AA8: Ajustement : | AB8: 30 | AH8: 2012 | AI8: Po 1575 / 1082 | AJ8: 1525 | AK8: 1675 | AL8: 1077 | AM8: 1082 | AN8: 35 | AQ8: 1575 | AR8: 1082 | AS8: PORTRAIT | AT8: 36.5 | AU8: 30 | AV8: 1 | AW8: 160 | BH8: H16 | BI8: H16 | BJ8: H16 | BK8: H19 | BL8: H19 | BM8: H21 | BN8: H21 | BO8: H23 | BP8: H23 | BQ8: H23 | BR8: H26 | BS8: H26 | BT8: H27 | BU8: H27 | BW8: H31 | BZ8: 2012 | CA8: Po 1575 / 1082 | CG8: H14 | CH8: H14 | CI8: H14 | CJ8: H16 | CK8: H16 | CL8: H16 | CM8: H19 | CN8: H19 | CO8: H21 | CP8: H21 | CQ8: H23 | CR8: H23 | CS8: H23 | CT8: H26 | CU8: H26 | CV8: H27
C9: =VLOOKUP("Pan1",BD!$A$1:$P$200,Listes!$AA$2+1,0) -> Simple pan | E9: =VLOOKUP("Pan2",BD!$A$1:$P$200,Listes!$AA$2+1,0) -> Double pan | I9: FALSE | J9: =VLOOKUP("Conforme",BD!$A$1:$P$200,Listes!$AA$2+1,0) -> Conforme à Avis Technique (France) | Q9: =VLOOKUP("Abergement",BD!$A$1:$P$200,Listes!$AA$2+1,0)&" :" -> Abergements : | AA9: Intermodule : | AB9: 10 | AH9: 2012 | AI9: Po 1580 / 808 | AJ9: 1530 | AK9: 1680 | AL9: 803 | AM9: 808 | AN9: 35 | AQ9: 1580 | AR9: 808 | AS9: PORTRAIT | AT9: 36.5 | AU9: 30 | AV9: 1 | AW9: 160 | AX9: non | AY9: non | BH9: H16 | BI9: H16 | BJ9: H16 | BK9: H19 | BL9: H19 | BM9: H21 | BN9: H21 | BO9: H23 | BP9: H23 | BQ9: H23 | BR9: H26 | BS9: H26 | BT9: H27 | BU9: H27 | BW9: H31 | BZ9: 2012 | CA9: Po 1580 / 808 | CG9: H14 | CH9: H14 | CI9: H14 | CJ9: H16 | CK9: H16 | CL9: H16 | CM9: H19 | CN9: H19 | CO9: H21 | CP9: H21 | CQ9: H23 | CR9: H23 | CS9: H23 | CT9: H26 | CU9: H26 | CV9: H27
AA10: Hauteur : | AB10: 15.61 | AH10: 2012 | AI10: Po 1640 / 992 | AJ10: 1590 | AK10: 1740 | AL10: 987 | AM10: 992 | AN10: 35 | AQ10: 1640 | AR10: 992 | AS10: PORTRAIT | AT10: 36.5 | AU10: 30 | AV10: 1 | AW10: 160 | AX10: si > 20mm | AY10: Oui, 1200mm de large | BH10: H16 | BI10: H16 | BJ10: H16 | BK10: H19 | BL10: H19 | BM10: H21 | BN10: H21 | BO10: H23 | BP10: H23 | BQ10: H23 | BR10: H26 | BS10: H26 | BT10: H27 | BU10: H27 | BW10: H31 | BZ10: 2012 | CA10: Po 1640 / 992 | CG10: H14 | CH10: H14 | CI10: H14 | CJ10: H16 | CK10: H16 | CL10: H16 | CM10: H19 | CN10: H19 | CO10: H21 | CP10: H21 | CQ10: H23 | CR10: H23 | CS10: H23 | CT10: H26 | CU10: H26 | CV10: H27
J11: =VLOOKUP("Avis",BD!$A$1:$P$200,Listes!$AA$2+1,0) -> Module sous Avis Technique | P11: 2 | Q11: =VLOOKUP("KITUNI",BD!$A$1:$P$200,Listes!$AA$2+1,0) -> Kit Universel | R11: =VLOOKUP("KITATEC",BD!$A$1:$P$200,Listes!$AA$2+1,0) -> Kit spécifique | AA11: Longueur : | AB11: 18.663 | AH11: 2012 | AI11: Po 1640 / 1001 | AJ11: 1590 | AK11: 1740 | AL11: 996 | AM11: 1001 | AN11: 35 | AQ11: 1640 | AR11: 1001 | AS11: PORTRAIT | AT11: 36.5 | AU11: 30 | AV11: 1 | AW11: 160 | AX11: si > 20mm | AY11: Oui, 1200mm de large | BH11: H16 | BI11: H16 | BJ11: H16 | BK11: H19 | BL11: H19 | BM11: H21 | BN11: H21 | BO11: H23 | BP11: H23 | BQ11: H23 | BR11: H26 | BS11: H26 | BT11: H27 | BU11: H27 | BW11: H31 | BZ11: 2012 | CA11: Po 1640 / 1001 | CG11: H14 | CH11: H14 | CI11: H14 | CJ11: H16 | CK11: H16 | CL11: H16 | CM11: H19 | CN11: H19 | CO11: H21 | CP11: H21 | CQ11: H23 | CR11: H23 | CS11: H23 | CT11: H26 | CU11: H26 | CV11: H27
Z12: =VLOOKUP(v_plaque,$AI:$CV,MATCH(v_epaisseur,$AI$4:$CV$4,0),0) ->  | AA12: simple Etrier double | AB12: =VLOOKUP(v_plaque,$AI:$CV,MATCH(v_epaisseur,$AI$4:$CV$4,0)+IF(v_intermodule=TRUE,25,0),0) ->  | AH12: 2012 | AI12: Po 1640 / 1001 P33 | AJ12: 1590 | AK12: 1740 | AL12: 996 | AM12: 1001 | AN12: 32 | AQ12: 1640 | AR12: 1001 | AS12: PORTRAIT | AT12: 36.5 | AU12: 30 | AV12: 1 | AW12: 160 | AX12: si > 20mm | AY12: Oui, 1200mm de large | BE12: H16 | BF12: H16 | BG12: H16 | BH12: H19 | BI12: H19 | BJ12: H21 | BK12: H21 | BL12: H23 | BM12: H23 | BN12: H23 | BO12: H26 | BP12: H26 | BQ12: H27 | BR12: H27 | BT12: H31 | BU12: H31 | BV12: H31 | BZ12: 2012 | CA12: Po 1640 / 1001 P33 | CD12: H14 | CE12: H14 | CF12: H14 | CG12: H16 | CH12: H16 | CI12: H16 | CJ12: H19 | CK12: H19 | CL12: H21 | CM12: H21 | CN12: H23 | CO12: H23 | CP12: H23 | CQ12: H26 | CR12: H26 | CS12: H27 | CT12: H27 | CV12: H31
J13: Autres | Q13: =VLOOKUP("ColorAber",BD!$A$1:$P$200,Listes!$AA$2+1,0)&" :" -> Couleur : | R13: NOIR | AA13: Nb etriers | AB13: =IF(flex_etrier=1,4,6) -> 4 | AH13: 2012 | AI13: Po 1685 / 1016 | AJ13: 1635 | AK13: 1755 | AL13: 1011 | AM13: 1016 | AN13: 35 | AQ13: 1685 | AR13: 1016 | AS13: PORTRAIT | AT13: 36.5 | AU13: 30 | AV13: 1 | AW13: 160 | AX13: Toutes les valeurs | AY13: Oui, 1200mm de large | BH13: H16 | BI13: H16 | BJ13: H16 | BK13: H19 | BL13: H19 | BM13: H21 | BN13: H21 | BO13: H23 | BP13: H23 | BQ13: H23 | BR13: H26 | BS13: H26 | BT13: H27 | BU13: H27 | BV13: H27 | BW13: H31 | BZ13: 2012 | CA13: Po 1685 / 1016 | CG13: H14 | CH13: H14 | CI13: H14 | CJ13: H16 | CK13: H16 | CL13: H16 | CM13: H19 | CN13: H19 | CO13: H21 | CP13: H21 | CQ13: H23 | CR13: H23 | CS13: H23 | CT13: H26 | CU13: H26 | CV13: H27
Z14: 36.5 | AA14: Pas ondes | AB14: 40 | AH14: 2020 | AI14: Po 1710 / 995 | AJ14: 1660 | AK14: 1780 | AL14: 990 | AM14: 995 | AN14: 30 | AO14: Oui | AP14: Oui | AQ14: 1710 | AR14: 995 | AS14: PORTRAIT | AT14: 36.5 | AU14: 30 | AV14: 1 | AW14: 130 | AX14: Toutes les valeurs | AY14: Oui, 1200mm de large | BC14: H16 | BD14: H16 | BE14: H16 | BF14: H19 | BG14: H19 | BH14: H21 | BI14: H21 | BJ14: H23 | BK14: H23 | BL14: H23 | BM14: H26 | BN14: H26 | BO14: H27 | BP14: H27 | BR14: H31 | BS14: H31 | BT14: H31 | BZ14: 2020 | CA14: Po 1710 / 995 | CB14: H14 | CC14: H14 | CD14: H14 | CE14: H16 | CF14: H16 | CG14: H16 | CH14: H19 | CI14: H19 | CJ14: H21 | CK14: H21 | CL14: H23 | CM14: H23 | CN14: H23 | CO14: H26 | CP14: H26 | CQ14: H27 | CR14: H27 | CT14: H31 | CU14: H31 | CV14: H31
J15: =VLOOKUP("Dimension",BD!$A$1:$P$200,Listes!$AA$2+1,0)&" :" -> Dimensions : | AA15: Débord ondes | AB15: 33 | AH15: 2020 | AI15: Po 1710 / 1000 | AJ15: 1660 | AK15: 1780 | AL15: 995 | AM15: 1000 | AN15: 30 | AO15: Oui | AP15: Oui | AQ15: 1710 | AR15: 1000 | AS15: PORTRAIT | AT15: 36.5 | AU15: 30 | AV15: 1 | AW15: 130 | AX15: Toutes les valeurs | AY15: Oui, 1200mm de large | BC15: H16 | BD15: H16 | BE15: H16 | BF15: H19 | BG15: H19 | BH15: H21 | BI15: H21 | BJ15: H23 | BK15: H23 | BL15: H23 | BM15: H26 | BN15: H26 | BO15: H27 | BP15: H27 | BR15: H31 | BS15: H31 | BT15: H31 | BZ15: 2020 | CA15: Po 1710 / 1000 | CB15: H14 | CC15: H14 | CD15: H14 | CE15: H16 | CF15: H16 | CG15: H16 | CH15: H19 | CI15: H19 | CJ15: H21 | CK15: H21 | CL15: H23 | CM15: H23 | CN15: H23 | CO15: H26 | CP15: H26 | CQ15: H27 | CR15: H27 | CT15: H31 | CU15: H31 | CV15: H31
Z16: ajustement/ajuste_haut | AA16: Ajust_haut | AB16: 0.5 | AH16: 2020 | AI16: Po 1710 / 1005 | AJ16: 1660 | AK16: 1780 | AL16: 1000 | AM16: 1005 | AN16: 30 | AO16: Oui | AP16: Oui | AQ16: 1710 | AR16: 1005 | AS16: PORTRAIT | AT16: 36.5 | AU16: 30 | AV16: 1 | AW16: 130 | AX16: Toutes les valeurs | AY16: Oui, 1200mm de large | BC16: H16 | BD16: H16 | BE16: H16 | BF16: H19 | BG16: H19 | BH16: H21 | BI16: H21 | BJ16: H23 | BK16: H23 | BL16: H23 | BM16: H26 | BN16: H26 | BO16: H27 | BP16: H27 | BR16: H31 | BS16: H31 | BT16: H31 | BZ16: 2020 | CA16: Po 1710 / 1005 | CB16: H14 | CC16: H14 | CD16: H14 | CE16: H16 | CF16: H16 | CG16: H16 | CH16: H19 | CI16: H19 | CJ16: H21 | CK16: H21 | CL16: H23 | CM16: H23 | CN16: H23 | CO16: H26 | CP16: H26 | CQ16: H27 | CR16: H27 | CT16: H31 | CU16: H31 | CV16: H31
J17: =VLOOKUP("Haut",BD!$A$1:$P$200,Listes!$AA$2+1,0)&" :" -> Hauteur (H) : | L17: mm | Q17: =VLOOKUP("AberLat",BD!$A$1:$P$200,Listes!$AA$2+1,0)&" :" -> Raccord latéral : | R17: Abergement | Z17: 160 | AA17: Haut plaque | AB17: 160 | AH17: 2020 | AI17: Po 1710 / 1010 | AJ17: 1660 | AK17: 1780 | AL17: 1005 | AM17: 1010 | AN17: 30 | AO17: Oui | AP17: Oui | AQ17: 1710 | AR17: 1010 | AS17: PORTRAIT | AT17: 36.5 | AU17: 30 | AV17: 1 | AW17: 130 | AX17: Toutes les valeurs | AY17: Oui, 1200mm de large | BC17: H16 | BD17: H16 | BE17: H16 | BF17: H19 | BG17: H19 | BH17: H21 | BI17: H21 | BJ17: H23 | BK17: H23 | BL17: H23 | BM17: H26 | BN17: H26 | BO17: H27 | BP17: H27 | BR17: H31 | BS17: H31 | BT17: H31 | BZ17: 2020 | CA17: Po 1710 / 1010 | CB17: H14 | CC17: H14 | CD17: H14 | CE17: H16 | CF17: H16 | CG17: H16 | CH17: H19 | CI17: H19 | CJ17: H21 | CK17: H21 | CL17: H23 | CM17: H23 | CN17: H23 | CO17: H26 | CP17: H26 | CQ17: H27 | CR17: H27 | CT17: H31 | CU17: H31 | CV17: H31
AA18: Flex Velux | AB18: 330 | AH18: 2020 | AI18: Po 1710 / 1020 | AJ18: 1660 | AK18: 1780 | AL18: 1015 | AM18: 1020 | AN18: 30 | AO18: Oui | AP18: Oui | AQ18: 1710 | AR18: 1020 | AS18: PORTRAIT | AT18: 36.5 | AU18: 30 | AV18: 1 | AW18: 130 | AX18: Toutes les valeurs | AY18: Oui, 1200mm de large | BC18: H16 | BD18: H16 | BE18: H16 | BF18: H19 | BG18: H19 | BH18: H21 | BI18: H21 | BJ18: H23 | BK18: H23 | BL18: H23 | BM18: H26 | BN18: H26 | BO18: H27 | BP18: H27 | BR18: H31 | BS18: H31 | BT18: H31 | BZ18: 2020 | CA18: Po 1710 / 1020 | CB18: H14 | CC18: H14 | CD18: H14 | CE18: H16 | CF18: H16 | CG18: H16 | CH18: H19 | CI18: H19 | CJ18: H21 | CK18: H21 | CL18: H23 | CM18: H23 | CN18: H23 | CO18: H26 | CP18: H26 | CQ18: H27 | CR18: H27 | CT18: H31 | CU18: H31 | CV18: H31
J19: =VLOOKUP("Larg3",BD!$A$1:$P$200,Listes!$AA$2+1,0)&" :" -> Largeur (L) : | L19: mm | Q19: =VLOOKUP("RacFait",BD!$A$1:$P$200,Listes!$AA$2+1,0)&" :" -> Raccord haut : | R19: Abergement | AA19: au | AB19: av | AH19: 2020 | AI19: Po 1710 / 1025 | AJ19: 1660 | AK19: 1780 | AL19: 1020 | AM19: 1025 | AN19: 30 | AO19: Oui | AP19: Oui | AQ19: 1710 | AR19: 1025 | AS19: PORTRAIT | AT19: 36.5 | AU19: 30 | AV19: 1 | AW19: 130 | AX19: Toutes les valeurs | AY19: Oui, 1200mm de large | BC19: H16 | BD19: H16 | BE19: H16 | BF19: H19 | BG19: H19 | BH19: H21 | BI19: H21 | BJ19: H23 | BK19: H23 | BL19: H23 | BM19: H26 | BN19: H26 | BO19: H27 | BP19: H27 | BR19: H31 | BS19: H31 | BT19: H31 | BZ19: 2020 | CA19: Po 1710 / 1025 | CB19: H14 | CC19: H14 | CD19: H14 | CE19: H16 | CF19: H16 | CG19: H16 | CH19: H19 | CI19: H19 | CJ19: H21 | CK19: H21 | CL19: H23 | CM19: H23 | CN19: H23 | CO19: H26 | CP19: H26 | CQ19: H27 | CR19: H27 | CT19: H31 | CU19: H31 | CV19: H31
AH20: 2020 | AI20: Po 1710 / 1030 | AJ20: 1660 | AK20: 1780 | AL20: 1025 | AM20: 1030 | AN20: 30 | AO20: Oui | AP20: Oui | AQ20: 1710 | AR20: 1030 | AS20: PORTRAIT | AT20: 36.5 | AU20: 30 | AV20: 1 | AW20: 130 | AX20: Toutes les valeurs | AY20: Oui, 1200mm de large | BC20: H16 | BD20: H16 | BE20: H16 | BF20: H19 | BG20: H19 | BH20: H21 | BI20: H21 | BJ20: H23 | BK20: H23 | BL20: H23 | BM20: H26 | BN20: H26 | BO20: H27 | BP20: H27 | BR20: H31 | BS20: H31 | BT20: H31 | BZ20: 2020 | CA20: Po 1710 / 1030 | CB20: H14 | CC20: H14 | CD20: H14 | CE20: H16 | CF20: H16 | CG20: H16 | CH20: H19 | CI20: H19 | CJ20: H21 | CK20: H21 | CL20: H23 | CM20: H23 | CN20: H23 | CO20: H26 | CP20: H26 | CQ20: H27 | CR20: H27 | CT20: H31 | CU20: H31 | CV20: H31
J21: =VLOOKUP("Epai",BD!$A$1:$P$200,Listes!$AA$2+1,0)&" :" -> Epaisseur (E) : | L21: mm | Q21: =VLOOKUP("RacEgout",BD!$A$1:$P$200,Listes!$AA$2+1,0)&" :" -> Raccord bas : | R21: FLEXALU | AH21: 2020 | AI21: Po 1710 / 1040 | AJ21: 1660 | AK21: 1780 | AL21: 1035 | AM21: 1040 | AN21: 30 | AO21: Oui | AP21: Oui | AQ21: 1710 | AR21: 1040 | AS21: PORTRAIT | AT21: 36.5 | AU21: 30 | AV21: 1 | AW21: 130 | AX21: Toutes les valeurs | AY21: Oui, 1200mm de large | BC21: H16 | BD21: H16 | BE21: H16 | BF21: H19 | BG21: H19 | BH21: H21 | BI21: H21 | BJ21: H23 | BK21: H23 | BL21: H23 | BM21: H26 | BN21: H26 | BO21: H27 | BP21: H27 | BR21: H31 | BS21: H31 | BT21: H31 | BZ21: 2020 | CA21: Po 1710 / 1040 | CB21: H14 | CC21: H14 | CD21: H14 | CE21: H16 | CF21: H16 | CG21: H16 | CH21: H19 | CI21: H19 | CJ21: H21 | CK21: H21 | CL21: H23 | CM21: H23 | CN21: H23 | CO21: H26 | CP21: H26 | CQ21: H27 | CR21: H27 | CT21: H31 | CU21: H31 | CV21: H31
C22: =VLOOKUP("Long",BD!$A$1:$P$200,Listes!$AA$2+1,0)&" :" -> Longueur (L) : | E22: m | AH22: 2020 | AI22: Po 1710 / 1045 | AJ22: 1660 | AK22: 1780 | AL22: 1040 | AM22: 1045 | AN22: 30 | AO22: Oui | AP22: Oui | AQ22: 1710 | AR22: 1045 | AS22: PORTRAIT | AT22: 36.5 | AU22: 30 | AV22: 1 | AW22: 130 | AX22: Toutes les valeurs | AY22: Oui, 1200mm de large | BC22: H16 | BD22: H16 | BE22: H16 | BF22: H19 | BG22: H19 | BH22: H21 | BI22: H21 | BJ22: H23 | BK22: H23 | BL22: H23 | BM22: H26 | BN22: H26 | BO22: H27 | BP22: H27 | BR22: H31 | BS22: H31 | BT22: H31 | BZ22: 2020 | CA22: Po 1710 / 1045 | CB22: H14 | CC22: H14 | CD22: H14 | CE22: H16 | CF22: H16 | CG22: H16 | CH22: H19 | CI22: H19 | CJ22: H21 | CK22: H21 | CL22: H23 | CM22: H23 | CN22: H23 | CO22: H26 | CP22: H26 | CQ22: H27 | CR22: H27 | CT22: H31 | CU22: H31 | CV22: H31
AH23: 2020 | AI23: Po 1710 / 1050 | AJ23: 1660 | AK23: 1780 | AL23: 1045 | AM23: 1050 | AN23: 30 | AO23: Oui | AP23: Oui | AQ23: 1710 | AR23: 1050 | AS23: PORTRAIT | AT23: 36.5 | AU23: 30 | AV23: 1 | AW23: 130 | AX23: Toutes les valeurs | AY23: Oui, 1200mm de large | BC23: H16 | BD23: H16 | BE23: H16 | BF23: H19 | BG23: H19 | BH23: H21 | BI23: H21 | BJ23: H23 | BK23: H23 | BL23: H23 | BM23: H26 | BN23: H26 | BO23: H27 | BP23: H27 | BR23: H31 | BS23: H31 | BT23: H31 | BZ23: 2020 | CA23: Po 1710 / 1050 | CB23: H14 | CC23: H14 | CD23: H14 | CE23: H16 | CF23: H16 | CG23: H16 | CH23: H19 | CI23: H19 | CJ23: H21 | CK23: H21 | CL23: H23 | CM23: H23 | CN23: H23 | CO23: H26 | CP23: H26 | CQ23: H27 | CR23: H27 | CT23: H31 | CU23: H31 | CV23: H31
C24: =VLOOKUP("InclT",BD!$A$1:$P$200,Listes!$AA$2+1,0)&" :" -> Inclinaison (α) : | E24: ° | G24: % | AH24: 2020 | AI24: Po 1710 / 1055 | AJ24: 1660 | AK24: 1780 | AL24: 1050 | AM24: 1055 | AN24: 30 | AO24: Oui | AP24: Oui | AQ24: 1710 | AR24: 1055 | AS24: PORTRAIT | AT24: 36.5 | AU24: 30 | AV24: 1 | AW24: 130 | AX24: Toutes les valeurs | AY24: Oui, 1200mm de large | BC24: H16 | BD24: H16 | BE24: H16 | BF24: H19 | BG24: H19 | BH24: H21 | BI24: H21 | BJ24: H23 | BK24: H23 | BL24: H23 | BM24: H26 | BN24: H26 | BO24: H27 | BP24: H27 | BR24: H31 | BS24: H31 | BT24: H31 | BZ24: 2020 | CA24: Po 1710 / 1055 | CB24: H14 | CC24: H14 | CD24: H14 | CE24: H16 | CF24: H16 | CG24: H16 | CH24: H19 | CI24: H19 | CJ24: H21 | CK24: H21 | CL24: H23 | CM24: H23 | CN24: H23 | CO24: H26 | CP24: H26 | CQ24: H27 | CR24: H27 | CT24: H31 | CU24: H31 | CV24: H31
Q25: =VLOOKUP("Colorflex",BD!$A$1:$P$200,Listes!$AA$2+1,0)&" :" -> Couleur FLEXALU : | R25: =VLOOKUP("Noir",BD!$A$1:$P$200,Listes!$AA$2+1,0) -> Noir | T25: =VLOOKUP("Rouge",BD!$A$1:$P$200,Listes!$AA$2+1,0) -> Rouge | U25: 1 | AH25: 2020 | AI25: Po 1710 / 1060 | AJ25: 1660 | AK25: 1780 | AL25: 1055 | AM25: 1060 | AN25: 30 | AO25: Oui | AP25: Oui | AQ25: 1710 | AR25: 1060 | AS25: PORTRAIT | AT25: 36.5 | AU25: 30 | AV25: 1 | AW25: 130 | AX25: Toutes les valeurs | AY25: Oui, 1200mm de large | BC25: H16 | BD25: H16 | BE25: H16 | BF25: H19 | BG25: H19 | BH25: H21 | BI25: H21 | BJ25: H23 | BK25: H23 | BL25: H23 | BM25: H26 | BN25: H26 | BO25: H27 | BP25: H27 | BR25: H31 | BS25: H31 | BT25: H31 | BZ25: 2020 | CA25: Po 1710 / 1060 | CB25: H14 | CC25: H14 | CD25: H14 | CE25: H16 | CF25: H16 | CG25: H16 | CH25: H19 | CI25: H19 | CJ25: H21 | CK25: H21 | CL25: H23 | CM25: H23 | CN25: H23 | CO25: H26 | CP25: H26 | CQ25: H27 | CR25: H27 | CT25: H31 | CU25: H31 | CV25: H31
C26: =VLOOKUP("Ramp",BD!$A$1:$P$200,Listes!$AA$2+1,0)&" :" -> Rampant (R) : | E26: m | AH26: 2022 | AI26: Dpo 1650 / 995 | AJ26: 1570 | AK26: 1800 | AL26: 990 | AM26: 995 | AN26: 30 | AO26: Oui | AQ26: 1650 | AR26: 995 | AS26: PORTRAIT | AT26: 40 | AU26: 33 | AV26: 0.5 | AW26: 160 | BC26: H16 | BD26: H16 | BE26: H16 | BF26: H19 | BG26: H19 | BH26: H21 | BI26: H21 | BJ26: H23 | BK26: H23 | BL26: H23 | BM26: H26 | BN26: H26 | BO26: H27 | BP26: H27 | BR26: H31 | BS26: H31 | BT26: H31 | BZ26: 2022 | CA26: Dpo 1650 / 995 | CB26: H14 | CC26: H14 | CD26: H14 | CE26: H16 | CF26: H16 | CG26: H16 | CH26: H19 | CI26: H19 | CJ26: H21 | CK26: H21 | CL26: H23 | CM26: H23 | CN26: H23 | CO26: H26 | CP26: H26 | CQ26: H27 | CR26: H27 | CT26: H31 | CU26: H31 | CV26: H31
B27: 1 | J27: =VLOOKUP("PowerMod",BD!$A$1:$P$200,Listes!$AA$2+1,0)&" :" -> Puissance : | L27: Wc | Q27: =VLOOKUP("Largeurflex",BD!$A$1:$P$200,Listes!$AA$2+1,0)&" :" -> Largeur FLEXALU : | R27: 330 mm | T27: 500 mm | U27: 2 | AH27: 2022 | AI27: Dpo 1650 / 1070 | AJ27: 1570 | AK27: 1800 | AL27: 1065 | AM27: 1070 | AN27: 30 | AO27: Oui | AQ27: 1650 | AR27: 1070 | AS27: PORTRAIT | AT27: 40 | AU27: 33 | AV27: 0.5 | AW27: 160 | BC27: H16 | BD27: H16 | BE27: H16 | BF27: H19 | BG27: H19 | BH27: H21 | BI27: H21 | BJ27: H23 | BK27: H23 | BL27: H23 | BM27: H26 | BN27: H26 | BO27: H27 | BP27: H27 | BR27: H31 | BS27: H31 | BT27: H31 | BZ27: 2022 | CA27: Dpo 1650 / 1070 | CB27: H14 | CC27: H14 | CD27: H14 | CE27: H16 | CF27: H16 | CG27: H16 | CH27: H19 | CI27: H19 | CJ27: H21 | CK27: H21 | CL27: H23 | CM27: H23 | CN27: H23 | CO27: H26 | CP27: H26 | CQ27: H27 | CR27: H27 | CT27: H31 | CU27: H31 | CV27: H31
C28: =VLOOKUP("Larg",BD!$A$1:$P$200,Listes!$AA$2+1,0)&" :" -> Largeur (W) : | E28: m | AH28: 2022 | AI28: Dpo 1650 / 1100 | AJ28: 1570 | AK28: 1800 | AL28: 1095 | AM28: 1100 | AN28: 30 | AO28: Oui | AQ28: 1650 | AR28: 1100 | AS28: PORTRAIT | AT28: 40 | AU28: 33 | AV28: 0.5 | AW28: 160 | BC28: H16 | BD28: H16 | BE28: H16 | BF28: H19 | BG28: H19 | BH28: H21 | BI28: H21 | BJ28: H23 | BK28: H23 | BL28: H23 | BM28: H26 | BN28: H26 | BO28: H27 | BP28: H27 | BR28: H31 | BS28: H31 | BT28: H31 | BZ28: 2022 | CA28: Dpo 1650 / 1100 | CB28: H14 | CC28: H14 | CD28: H14 | CE28: H16 | CF28: H16 | CG28: H16 | CH28: H19 | CI28: H19 | CJ28: H21 | CK28: H21 | CL28: H23 | CM28: H23 | CN28: H23 | CO28: H26 | CP28: H26 | CQ28: H27 | CR28: H27 | CT28: H31 | CU28: H31 | CV28: H31
J29: =VLOOKUP("Techno",BD!$A$1:$P$200,Listes!$AA$2+1,0)&" :" -> Technologie : | Q29: Mittlere Blechabdeckung | R29: FALSE | AH29: 2022 | AI29: Dpo 1650 / 1135 | AJ29: 1570 | AK29: 1800 | AL29: 1130 | AM29: 1135 | AN29: 30 | AO29: Oui | AQ29: 1650 | AR29: 1135 | AS29: PORTRAIT | AT29: 40 | AU29: 33 | AV29: 0.5 | AW29: 160 | BC29: H16 | BD29: H16 | BE29: H16 | BF29: H19 | BG29: H19 | BH29: H21 | BI29: H21 | BJ29: H23 | BK29: H23 | BL29: H23 | BM29: H26 | BN29: H26 | BO29: H27 | BP29: H27 | BR29: H31 | BS29: H31 | BT29: H31 | BZ29: 2022 | CA29: Dpo 1650 / 1135 | CB29: H14 | CC29: H14 | CD29: H14 | CE29: H16 | CF29: H16 | CG29: H16 | CH29: H19 | CI29: H19 | CJ29: H21 | CK29: H21 | CL29: H23 | CM29: H23 | CN29: H23 | CO29: H26 | CP29: H26 | CQ29: H27 | CR29: H27 | CT29: H31 | CU29: H31 | CV29: H31
C30: =VLOOKUP("TypeCov",BD!$A$1:$P$200,Listes!$AA$2+1,0)&" :" -> Type de couverture : | D30: Tuile mécanique | AH30: 2022 | AI30: Dpo 1650 / 1140 | AJ30: 1570 | AK30: 1800 | AL30: 1135 | AM30: 1140 | AN30: 30 | AO30: Oui | AQ30: 1650 | AR30: 1140 | AS30: PORTRAIT | AT30: 40 | AU30: 33 | AV30: 0.5 | AW30: 160 | BC30: H16 | BD30: H16 | BE30: H16 | BF30: H19 | BG30: H19 | BH30: H21 | BI30: H21 | BJ30: H23 | BK30: H23 | BL30: H23 | BM30: H26 | BN30: H26 | BO30: H27 | BP30: H27 | BR30: H31 | BS30: H31 | BT30: H31 | BZ30: 2022 | CA30: Dpo 1650 / 1140 | CB30: H14 | CC30: H14 | CD30: H14 | CE30: H16 | CF30: H16 | CG30: H16 | CH30: H19 | CI30: H19 | CJ30: H21 | CK30: H21 | CL30: H23 | CM30: H23 | CN30: H23 | CO30: H26 | CP30: H26 | CQ30: H27 | CR30: H27 | CT30: H31 | CU30: H31 | CV30: H31
J31: =VLOOKUP("Jonction",BD!$A$1:$P$200,Listes!$AA$2+1,0) -> Boite de jonction splittée | N31: FALSE | Q31: =VLOOKUP("NbrEtrier",BD!$A$1:$P$200,Listes!$AA$2+1,0)&" :" -> Nombre d'étriers : | R31: 4 | T31: 6 | U31: 1 | AH31: 2022 | AI31: Dpo 1650 / 1145 | AJ31: 1570 | AK31: 1800 | AL31: 1140 | AM31: 1145 | AN31: 30 | AO31: Oui | AQ31: 1650 | AR31: 1145 | AS31: PORTRAIT | AT31: 40 | AU31: 33 | AV31: 0.5 | AW31: 160 | BC31: H16 | BD31: H16 | BE31: H16 | BF31: H19 | BG31: H19 | BH31: H21 | BI31: H21 | BJ31: H23 | BK31: H23 | BL31: H23 | BM31: H26 | BN31: H26 | BO31: H27 | BP31: H27 | BR31: H31 | BS31: H31 | BT31: H31 | BZ31: 2022 | CA31: Dpo 1650 / 1145 | CB31: H14 | CC31: H14 | CD31: H14 | CE31: H16 | CF31: H16 | CG31: H16 | CH31: H19 | CI31: H19 | CJ31: H21 | CK31: H21 | CL31: H23 | CM31: H23 | CN31: H23 | CO31: H26 | CP31: H26 | CQ31: H27 | CR31: H27 | CT31: H31 | CU31: H31 | CV31: H31
J32: =VLOOKUP("Renfort",BD!$A$1:$P$200,Listes!$AA$2+1,0) -> Barre(s) de renfort | N32: FALSE | AH32: 2022 | AI32: Dpo 1650 / 1160 | AJ32: 1570 | AK32: 1800 | AL32: 1155 | AM32: 1160 | AN32: 30 | AO32: Oui | AQ32: 1650 | AR32: 1160 | AS32: PORTRAIT | AT32: 40 | AU32: 33 | AV32: 0.5 | AW32: 160 | BC32: H16 | BD32: H16 | BE32: H16 | BF32: H19 | BG32: H19 | BH32: H21 | BI32: H21 | BJ32: H23 | BK32: H23 | BL32: H23 | BM32: H26 | BN32: H26 | BO32: H27 | BP32: H27 | BR32: H31 | BS32: H31 | BT32: H31 | BZ32: 2022 | CA32: Dpo 1650 / 1160 | CB32: H14 | CC32: H14 | CD32: H14 | CE32: H16 | CF32: H16 | CG32: H16 | CH32: H19 | CI32: H19 | CJ32: H21 | CK32: H21 | CL32: H23 | CM32: H23 | CN32: H23 | CO32: H26 | CP32: H26 | CQ32: H27 | CR32: H27 | CT32: H31 | CU32: H31 | CV32: H31
AH33: 2022 | AI33: Dpo 1840 / 995 | AJ33: 1760 | AK33: 1990 | AL33: 990 | AM33: 995 | AN33: 30 | AO33: Oui | AQ33: 1840 | AR33: 995 | AS33: PORTRAIT | AT33: 40 | AU33: 33 | AV33: 0.5 | AW33: 160 | BC33: H16 | BD33: H16 | BE33: H16 | BF33: H19 | BG33: H19 | BH33: H21 | BI33: H21 | BJ33: H23 | BK33: H23 | BL33: H23 | BM33: H26 | BN33: H26 | BO33: H27 | BP33: H27 | BR33: H31 | BS33: H31 | BT33: H31 | BZ33: 2022 | CA33: Dpo 1840 / 995 | CB33: H14 | CC33: H14 | CD33: H14 | CE33: H16 | CF33: H16 | CG33: H16 | CH33: H19 | CI33: H19 | CJ33: H21 | CK33: H21 | CL33: H23 | CM33: H23 | CN33: H23 | CO33: H26 | CP33: H26 | CQ33: H27 | CR33: H27 | CT33: H31 | CU33: H31 | CV33: H31
I34: 1 | J34: =VLOOKUP("Portrait",BD!$A$1:$P$200,Listes!$AA$2+1,0) -> Portrait | L34: =VLOOKUP("Paysage",BD!$A$1:$P$200,Listes!$AA$2+1,0) -> Paysage | Q34: =VLOOKUP("EcranToiture",BD!$A$1:$P$200,Listes!$AA$2+1,0)&" :" -> Ecran de sous toiture : | AH34: 2022 | AI34: Dpo 1840 / 1020 | AJ34: 1760 | AK34: 1990 | AL34: 1015 | AM34: 1020 | AN34: 30 | AO34: Oui | AQ34: 1840 | AR34: 1020 | AS34: PORTRAIT | AT34: 40 | AU34: 33 | AV34: 0.5 | AW34: 160 | BC34: H16 | BD34: H16 | BE34: H16 | BF34: H19 | BG34: H19 | BH34: H21 | BI34: H21 | BJ34: H23 | BK34: H23 | BL34: H23 | BM34: H26 | BN34: H26 | BO34: H27 | BP34: H27 | BR34: H31 | BS34: H31 | BT34: H31 | BZ34: 2022 | CA34: Dpo 1840 / 1020 | CB34: H14 | CC34: H14 | CD34: H14 | CE34: H16 | CF34: H16 | CG34: H16 | CH34: H19 | CI34: H19 | CJ34: H21 | CK34: H21 | CL34: H23 | CM34: H23 | CN34: H23 | CO34: H26 | CP34: H26 | CQ34: H27 | CR34: H27 | CT34: H31 | CU34: H31 | CV34: H31
S35: FALSE | AH35: 2022 | AI35: Dpo 1840 / 1030 | AJ35: 1760 | AK35: 1990 | AL35: 1025 | AM35: 1030 | AN35: 30 | AO35: Oui | AQ35: 1840 | AR35: 1030 | AS35: PORTRAIT | AT35: 40 | AU35: 33 | AV35: 0.5 | AW35: 160 | BC35: H16 | BD35: H16 | BE35: H16 | BF35: H19 | BG35: H19 | BH35: H21 | BI35: H21 | BJ35: H23 | BK35: H23 | BL35: H23 | BM35: H26 | BN35: H26 | BO35: H27 | BP35: H27 | BR35: H31 | BS35: H31 | BT35: H31 | BZ35: 2022 | CA35: Dpo 1840 / 1030 | CB35: H14 | CC35: H14 | CD35: H14 | CE35: H16 | CF35: H16 | CG35: H16 | CH35: H19 | CI35: H19 | CJ35: H21 | CK35: H21 | CL35: H23 | CM35: H23 | CN35: H23 | CO35: H26 | CP35: H26 | CQ35: H27 | CR35: H27 | CT35: H31 | CU35: H31 | CV35: H31
J36: =VLOOKUP("CorPlakGSE",BD!$A$1:$P$200,Listes!$AA$2+1,0)&" :" -> Plaque GSE correspondante : | P36: FALSE | Q36: VELUX : | AH36: 2022 | AI36: Dpo 1840 / 1040 | AJ36: 1760 | AK36: 1990 | AL36: 1035 | AM36: 1040 | AN36: 30 | AO36: Oui | AQ36: 1840 | AR36: 1040 | AS36: PORTRAIT | AT36: 40 | AU36: 33 | AV36: 0.5 | AW36: 160 | BC36: H16 | BD36: H16 | BE36: H16 | BF36: H19 | BG36: H19 | BH36: H21 | BI36: H21 | BJ36: H23 | BK36: H23 | BL36: H23 | BM36: H26 | BN36: H26 | BO36: H27 | BP36: H27 | BR36: H31 | BS36: H31 | BT36: H31 | BZ36: 2022 | CA36: Dpo 1840 / 1040 | CB36: H14 | CC36: H14 | CD36: H14 | CE36: H16 | CF36: H16 | CG36: H16 | CH36: H19 | CI36: H19 | CJ36: H21 | CK36: H21 | CL36: H23 | CM36: H23 | CN36: H23 | CO36: H26 | CP36: H26 | CQ36: H27 | CR36: H27 | CT36: H31 | CU36: H31 | CV36: H31
AH37: 2022 | AI37: Dpo 1840 / 1045 | AJ37: 1760 | AK37: 1990 | AL37: 1040 | AM37: 1045 | AN37: 30 | AO37: Oui | AQ37: 1840 | AR37: 1045 | AS37: PORTRAIT | AT37: 40 | AU37: 33 | AV37: 0.5 | AW37: 160 | BC37: H16 | BD37: H16 | BE37: H16 | BF37: H19 | BG37: H19 | BH37: H21 | BI37: H21 | BJ37: H23 | BK37: H23 | BL37: H23 | BM37: H26 | BN37: H26 | BO37: H27 | BP37: H27 | BR37: H31 | BS37: H31 | BT37: H31 | BZ37: 2022 | CA37: Dpo 1840 / 1045 | CB37: H14 | CC37: H14 | CD37: H14 | CE37: H16 | CF37: H16 | CG37: H16 | CH37: H19 | CI37: H19 | CJ37: H21 | CK37: H21 | CL37: H23 | CM37: H23 | CN37: H23 | CO37: H26 | CP37: H26 | CQ37: H27 | CR37: H27 | CT37: H31 | CU37: H31 | CV37: H31
Q38: Choisir VELUX | AH38: 2022 | AI38: Dpo 1840 / 1050 | AJ38: 1760 | AK38: 1990 | AL38: 1045 | AM38: 1050 | AN38: 30 | AO38: Oui | AQ38: 1840 | AR38: 1050 | AS38: PORTRAIT | AT38: 40 | AU38: 33 | AV38: 0.5 | AW38: 160 | BC38: H16 | BD38: H16 | BE38: H16 | BF38: H19 | BG38: H19 | BH38: H21 | BI38: H21 | BJ38: H23 | BK38: H23 | BL38: H23 | BM38: H26 | BN38: H26 | BO38: H27 | BP38: H27 | BR38: H31 | BS38: H31 | BT38: H31 | BZ38: 2022 | CA38: Dpo 1840 / 1050 | CB38: H14 | CC38: H14 | CD38: H14 | CE38: H16 | CF38: H16 | CG38: H16 | CH38: H19 | CI38: H19 | CJ38: H21 | CK38: H21 | CL38: H23 | CM38: H23 | CN38: H23 | CO38: H26 | CP38: H26 | CQ38: H27 | CR38: H27 | CT38: H31 | CU38: H31 | CV38: H31
AH39: 2022 | AI39: Dpo 1840 / 1070 | AJ39: 1760 | AK39: 1990 | AL39: 1065 | AM39: 1070 | AN39: 30 | AO39: Oui | AQ39: 1840 | AR39: 1070 | AS39: PORTRAIT | AT39: 40 | AU39: 33 | AV39: 0.5 | AW39: 160 | BC39: H16 | BD39: H16 | BE39: H16 | BF39: H19 | BG39: H19 | BH39: H21 | BI39: H21 | BJ39: H23 | BK39: H23 | BL39: H23 | BM39: H26 | BN39: H26 | BO39: H27 | BP39: H27 | BR39: H31 | BS39: H31 | BT39: H31 | BZ39: 2022 | CA39: Dpo 1840 / 1070 | CB39: H14 | CC39: H14 | CD39: H14 | CE39: H16 | CF39: H16 | CG39: H16 | CH39: H19 | CI39: H19 | CJ39: H21 | CK39: H21 | CL39: H23 | CM39: H23 | CN39: H23 | CO39: H26 | CP39: H26 | CQ39: H27 | CR39: H27 | CT39: H31 | CU39: H31 | CV39: H31
AH40: 2022 | AI40: Dpo 1840 / 1090 | AJ40: 1760 | AK40: 1990 | AL40: 1085 | AM40: 1090 | AN40: 30 | AO40: Oui | AQ40: 1840 | AR40: 1090 | AS40: PORTRAIT | AT40: 40 | AU40: 33 | AV40: 0.5 | AW40: 160 | BC40: H16 | BD40: H16 | BE40: H16 | BF40: H19 | BG40: H19 | BH40: H21 | BI40: H21 | BJ40: H23 | BK40: H23 | BL40: H23 | BM40: H26 | BN40: H26 | BO40: H27 | BP40: H27 | BR40: H31 | BS40: H31 | BT40: H31 | BZ40: 2022 | CA40: Dpo 1840 / 1090 | CB40: H14 | CC40: H14 | CD40: H14 | CE40: H16 | CF40: H16 | CG40: H16 | CH40: H19 | CI40: H19 | CJ40: H21 | CK40: H21 | CL40: H23 | CM40: H23 | CN40: H23 | CO40: H26 | CP40: H26 | CQ40: H27 | CR40: H27 | CT40: H31 | CU40: H31 | CV40: H31
AH41: 2022 | AI41: Dpo 1840 / 1100 | AJ41: 1760 | AK41: 1990 | AL41: 1095 | AM41: 1100 | AN41: 30 | AO41: Oui | AQ41: 1840 | AR41: 1100 | AS41: PORTRAIT | AT41: 40 | AU41: 33 | AV41: 0.5 | AW41: 160 | BC41: H16 | BD41: H16 | BE41: H16 | BF41: H19 | BG41: H19 | BH41: H21 | BI41: H21 | BJ41: H23 | BK41: H23 | BL41: H23 | BM41: H26 | BN41: H26 | BO41: H27 | BP41: H27 | BR41: H31 | BS41: H31 | BT41: H31 | BZ41: 2022 | CA41: Dpo 1840 / 1100 | CB41: H14 | CC41: H14 | CD41: H14 | CE41: H16 | CF41: H16 | CG41: H16 | CH41: H19 | CI41: H19 | CJ41: H21 | CK41: H21 | CL41: H23 | CM41: H23 | CN41: H23 | CO41: H26 | CP41: H26 | CQ41: H27 | CR41: H27 | CT41: H31 | CU41: H31 | CV41: H31
AH42: 2022 | AI42: Dpo 1840 / 1135 | AJ42: 1760 | AK42: 1990 | AL42: 1130 | AM42: 1135 | AN42: 30 | AO42: Oui | AQ42: 1840 | AR42: 1135 | AS42: PORTRAIT | AT42: 40 | AU42: 33 | AV42: 0.5 | AW42: 160 | BC42: H16 | BD42: H16 | BE42: H16 | BF42: H19 | BG42: H19 | BH42: H21 | BI42: H21 | BJ42: H23 | BK42: H23 | BL42: H23 | BM42: H26 | BN42: H26 | BO42: H27 | BP42: H27 | BR42: H31 | BS42: H31 | BT42: H31 | BZ42: 2022 | CA42: Dpo 1840 / 1135 | CB42: H14 | CC42: H14 | CD42: H14 | CE42: H16 | CF42: H16 | CG42: H16 | CH42: H19 | CI42: H19 | CJ42: H21 | CK42: H21 | CL42: H23 | CM42: H23 | CN42: H23 | CO42: H26 | CP42: H26 | CQ42: H27 | CR42: H27 | CT42: H31 | CU42: H31 | CV42: H31
AH43: 2022 | AI43: Dpo 2030 / 995 | AJ43: 1950 | AK43: 2180 | AL43: 990 | AM43: 995 | AN43: 30 | AO43: Oui | AQ43: 2030 | AR43: 995 | AT43: 40 | AU43: 33 | AV43: 0.5 | AW43: 160 | BC43: H16 | BD43: H16 | BE43: H16 | BF43: H19 | BG43: H19 | BH43: H21 | BI43: H21 | BJ43: H23 | BK43: H23 | BL43: H23 | BM43: H26 | BN43: H26 | BO43: H27 | BP43: H27 | BR43: H31 | BS43: H31 | BT43: H31 | BZ43: 2022 | CA43: Dpo 2030 / 995 | CB43: H14 | CC43: H14 | CD43: H14 | CE43: H16 | CF43: H16 | CG43: H16 | CH43: H19 | CI43: H19 | CJ43: H21 | CK43: H21 | CL43: H23 | CM43: H23 | CN43: H23 | CO43: H26 | CP43: H26 | CQ43: H27 | CR43: H27 | CT43: H31 | CU43: H31 | CV43: H31
AH44: 2022 | AI44: Dpo 2030 / 1050 | AJ44: 1950 | AK44: 2180 | AL44: 1045 | AM44: 1050 | AN44: 30 | AO44: Oui | AQ44: 2030 | AR44: 1050 | AT44: 40 | AU44: 33 | AV44: 0.5 | AW44: 160 | BC44: H16 | BD44: H16 | BE44: H16 | BF44: H19 | BG44: H19 | BH44: H21 | BI44: H21 | BJ44: H23 | BK44: H23 | BL44: H23 | BM44: H26 | BN44: H26 | BO44: H27 | BP44: H27 | BR44: H31 | BS44: H31 | BT44: H31 | BZ44: 2022 | CA44: Dpo 2030 / 1050 | CB44: H14 | CC44: H14 | CD44: H14 | CE44: H16 | CF44: H16 | CG44: H16 | CH44: H19 | CI44: H19 | CJ44: H21 | CK44: H21 | CL44: H23 | CM44: H23 | CN44: H23 | CO44: H26 | CP44: H26 | CQ44: H27 | CR44: H27 | CT44: H31 | CU44: H31 | CV44: H31
AH45: 2022 | AI45: Dpo 2030 / 1055 | AJ45: 1950 | AK45: 2180 | AL45: 1050 | AM45: 1055 | AN45: 30 | AO45: Oui | AQ45: 2030 | AR45: 1055 | AT45: 40 | AU45: 33 | AV45: 0.5 | AW45: 160 | BC45: H16 | BD45: H16 | BE45: H16 | BF45: H19 | BG45: H19 | BH45: H21 | BI45: H21 | BJ45: H23 | BK45: H23 | BL45: H23 | BM45: H26 | BN45: H26 | BO45: H27 | BP45: H27 | BR45: H31 | BS45: H31 | BT45: H31 | BZ45: 2022 | CA45: Dpo 2030 / 1055 | CB45: H14 | CC45: H14 | CD45: H14 | CE45: H16 | CF45: H16 | CG45: H16 | CH45: H19 | CI45: H19 | CJ45: H21 | CK45: H21 | CL45: H23 | CM45: H23 | CN45: H23 | CO45: H26 | CP45: H26 | CQ45: H27 | CR45: H27 | CT45: H31 | CU45: H31 | CV45: H31
AH46: 2022 | AI46: Dpo 2030 / 1135 | AJ46: 1950 | AK46: 2180 | AL46: 1130 | AM46: 1135 | AN46: 30 | AO46: Oui | AQ46: 2030 | AR46: 1135 | AT46: 40 | AU46: 33 | AV46: 0.5 | AW46: 160 | BC46: H16 | BD46: H16 | BE46: H16 | BF46: H19 | BG46: H19 | BH46: H21 | BI46: H21 | BJ46: H23 | BK46: H23 | BL46: H23 | BM46: H26 | BN46: H26 | BO46: H27 | BP46: H27 | BR46: H31 | BS46: H31 | BT46: H31 | BZ46: 2022 | CA46: Dpo 2030 / 1135 | CB46: H14 | CC46: H14 | CD46: H14 | CE46: H16 | CF46: H16 | CG46: H16 | CH46: H19 | CI46: H19 | CJ46: H21 | CK46: H21 | CL46: H23 | CM46: H23 | CN46: H23 | CO46: H26 | CP46: H26 | CQ46: H27 | CR46: H27 | CT46: H31 | CU46: H31 | CV46: H31
AH47: 2022 | AI47: Dpo 2030 / 1305 | AJ47: 1950 | AK47: 2180 | AL47: 1300 | AM47: 1305 | AN47: 30 | AO47: Oui | AQ47: 2030 | AR47: 1305 | AT47: 40 | AU47: 33 | AV47: 0.5 | AW47: 160 | BC47: H16 | BD47: H16 | BE47: H16 | BF47: H19 | BG47: H19 | BH47: H21 | BI47: H21 | BJ47: H23 | BK47: H23 | BL47: H23 | BM47: H26 | BN47: H26 | BO47: H27 | BP47: H27 | BR47: H31 | BS47: H31 | BT47: H31 | BZ47: 2022 | CA47: Dpo 2030 / 1305 | CB47: H14 | CC47: H14 | CD47: H14 | CE47: H16 | CF47: H16 | CG47: H16 | CH47: H19 | CI47: H19 | CJ47: H21 | CK47: H21 | CL47: H23 | CM47: H23 | CN47: H23 | CO47: H26 | CP47: H26 | CQ47: H27 | CR47: H27 | CT47: H31 | CU47: H31 | CV47: H31
AH48: 2012 | AI48: Pa 1559 / 1046 | AJ48: 1032 | AK48: 1182 | AL48: 1554 | AM48: 1559 | AN48: 35 | AQ48: 1082 | AR48: 1559 | AS48: PAYSAGE | AT48: 36.5 | AU48: 30 | AV48: 1 | AW48: 160 | BH48: H16 | BI48: H16 | BJ48: H16 | BK48: H19 | BL48: H19 | BM48: H21 | BN48: H21 | BO48: H23 | BP48: H23 | BQ48: H23 | BR48: H26 | BS48: H26 | BT48: H27 | BU48: H27 | BW48: H31 | BZ48: 2012 | CA48: Pa 1559 / 1046 | CG48: H14 | CH48: H14 | CI48: H14 | CJ48: H16 | CK48: H16 | CL48: H16 | CM48: H19 | CN48: H19 | CO48: H21 | CP48: H21 | CQ48: H23 | CR48: H23 | CS48: H23 | CT48: H26 | CU48: H26 | CV48: H27
AH49: 2012 | AI49: Pa 1575 / 1082 | AJ49: 1032 | AK49: 1182 | AL49: 1570 | AM49: 1575 | AN49: 35 | AQ49: 1082 | AR49: 1575 | AS49: PAYSAGE | AT49: 36.5 | AU49: 30 | AV49: 1 | AW49: 160 | BH49: H16 | BI49: H16 | BJ49: H16 | BK49: H19 | BL49: H19 | BM49: H21 | BN49: H21 | BO49: H23 | BP49: H23 | BQ49: H23 | BR49: H26 | BS49: H26 | BT49: H27 | BU49: H27 | BW49: H31 | BZ49: 2012 | CA49: Pa 1575 / 1082 | CG49: H14 | CH49: H14 | CI49: H14 | CJ49: H16 | CK49: H16 | CL49: H16 | CM49: H19 | CN49: H19 | CO49: H21 | CP49: H21 | CQ49: H23 | CR49: H23 | CS49: H23 | CT49: H26 | CU49: H26 | CV49: H27
AH50: 2012 | AI50: Pa 1580 / 808 | AJ50: 758 | AK50: 908 | AL50: 1575 | AM50: 1580 | AN50: 35 | AQ50: 808 | AR50: 1580 | AS50: PAYSAGE | AT50: 36.5 | AU50: 30 | AV50: 1 | AW50: 160 | BH50: H16 | BI50: H16 | BJ50: H16 | BK50: H19 | BL50: H19 | BM50: H21 | BN50: H21 | BO50: H23 | BP50: H23 | BQ50: H23 | BR50: H26 | BS50: H26 | BT50: H27 | BU50: H27 | BW50: H31 | BZ50: 2012 | CA50: Pa 1580 / 808 | CG50: H14 | CH50: H14 | CI50: H14 | CJ50: H16 | CK50: H16 | CL50: H16 | CM50: H19 | CN50: H19 | CO50: H21 | CP50: H21 | CQ50: H23 | CR50: H23 | CS50: H23 | CT50: H26 | CU50: H26 | CV50: H27
AH51: 2012 | AI51: Pa 1640 / 992 | AJ51: 942 | AK51: 1092 | AL51: 1635 | AM51: 1640 | AN51: 35 | AQ51: 992 | AR51: 1640 | AS51: PAYSAGE | AT51: 36.5 | AU51: 30 | AV51: 1 | AW51: 160 | BH51: H16 | BI51: H16 | BJ51: H16 | BK51: H19 | BL51: H19 | BM51: H21 | BN51: H21 | BO51: H23 | BP51: H23 | BQ51: H23 | BR51: H26 | BS51: H26 | BT51: H27 | BU51: H27 | BW51: H31 | BZ51: 2012 | CA51: Pa 1640 / 992 | CG51: H14 | CH51: H14 | CI51: H14 | CJ51: H16 | CK51: H16 | CL51: H16 | CM51: H19 | CN51: H19 | CO51: H21 | CP51: H21 | CQ51: H23 | CR51: H23 | CS51: H23 | CT51: H26 | CU51: H26 | CV51: H27
AH52: 2012 | AI52: Pa 1650 / 992 | AJ52: 942 | AK52: 1092 | AL52: 1645 | AM52: 1650 | AN52: 35 | AQ52: 992 | AR52: 1650 | AS52: PAYSAGE | AT52: 36.5 | AU52: 30 | AV52: 1 | AW52: 160 | BH52: H16 | BI52: H16 | BJ52: H16 | BK52: H19 | BL52: H19 | BM52: H21 | BN52: H21 | BO52: H23 | BP52: H23 | BQ52: H23 | BR52: H26 | BS52: H26 | BT52: H27 | BU52: H27 | BW52: H31 | BZ52: 2012 | CA52: Pa 1650 / 992 | CG52: H14 | CH52: H14 | CI52: H14 | CJ52: H16 | CK52: H16 | CL52: H16 | CM52: H19 | CN52: H19 | CO52: H21 | CP52: H21 | CQ52: H23 | CR52: H23 | CS52: H23 | CT52: H26 | CU52: H26 | CV52: H27
AH53: 2012 | AI53: Pa 1660 / 992 | AJ53: 942 | AK53: 1092 | AL53: 1655 | AM53: 1660 | AN53: 35 | AQ53: 992 | AR53: 1660 | AS53: PAYSAGE | AT53: 36.5 | AU53: 30 | AV53: 1 | AW53: 160 | BH53: H16 | BI53: H16 | BJ53: H16 | BK53: H19 | BL53: H19 | BM53: H21 | BN53: H21 | BO53: H23 | BP53: H23 | BQ53: H23 | BR53: H26 | BS53: H26 | BT53: H27 | BU53: H27 | BW53: H31 | BZ53: 2012 | CA53: Pa 1660 / 992 | CG53: H14 | CH53: H14 | CI53: H14 | CJ53: H16 | CK53: H16 | CL53: H16 | CM53: H19 | CN53: H19 | CO53: H21 | CP53: H21 | CQ53: H23 | CR53: H23 | CS53: H23 | CT53: H26 | CU53: H26 | CV53: H27
AH54: 2012 | AI54: Pa 1670 / 992 | AJ54: 942 | AK54: 1092 | AL54: 1665 | AM54: 1670 | AN54: 35 | AQ54: 992 | AR54: 1670 | AS54: PAYSAGE | AT54: 36.5 | AU54: 30 | AV54: 1 | AW54: 160 | BH54: H16 | BI54: H16 | BJ54: H16 | BK54: H19 | BL54: H19 | BM54: H21 | BN54: H21 | BO54: H23 | BP54: H23 | BQ54: H23 | BR54: H26 | BS54: H26 | BT54: H27 | BU54: H27 | BW54: H31 | BZ54: 2012 | CA54: Pa 1670 / 992 | CG54: H14 | CH54: H14 | CI54: H14 | CJ54: H16 | CK54: H16 | CL54: H16 | CM54: H19 | CN54: H19 | CO54: H21 | CP54: H21 | CQ54: H23 | CR54: H23 | CS54: H23 | CT54: H26 | CU54: H26 | CV54: H27
AH55: 2012 | AI55: Pa 1675 / 992 P33 | AJ55: 942 | AK55: 1092 | AL55: 1670 | AM55: 1675 | AN55: 35 | AQ55: 992 | AR55: 1675 | AS55: PAYSAGE | AT55: 36.5 | AU55: 30 | AV55: 1 | AW55: 160 | BE55: H16 | BF55: H16 | BG55: H16 | BH55: H19 | BI55: H19 | BJ55: H21 | BK55: H21 | BL55: H23 | BM55: H23 | BN55: H23 | BO55: H26 | BP55: H26 | BQ55: H27 | BR55: H27 | BT55: H31 | BU55: H31 | BV55: H31 | BZ55: 2012 | CA55: Pa 1675 / 992 P33 | CG55: H14 | CH55: H14 | CI55: H14 | CJ55: H16 | CK55: H16 | CL55: H16 | CM55: H19 | CN55: H19 | CO55: H21 | CP55: H21 | CQ55: H23 | CR55: H23 | CS55: H23 | CT55: H26 | CU55: H26 | CV55: H27
AH56: 2012 | AI56: Pa 1680 / 992 | AJ56: 942 | AK56: 1092 | AL56: 1675 | AM56: 1680 | AN56: 35 | AQ56: 992 | AR56: 1680 | AS56: PAYSAGE | AT56: 36.5 | AU56: 30 | AV56: 1 | AW56: 160 | BH56: H16 | BI56: H16 | BJ56: H16 | BK56: H19 | BL56: H19 | BM56: H21 | BN56: H21 | BO56: H23 | BP56: H23 | BQ56: H23 | BR56: H26 | BS56: H26 | BT56: H27 | BU56: H27 | BW56: H31 | BZ56: 2012 | CA56: Pa 1680 / 992 | CG56: H14 | CH56: H14 | CI56: H14 | CJ56: H16 | CK56: H16 | CL56: H16 | CM56: H19 | CN56: H19 | CO56: H21 | CP56: H21 | CQ56: H23 | CR56: H23 | CS56: H23 | CT56: H26 | CU56: H26 | CV56: H27
AH57: 2012 | AI57: Pa 1686 / 992 | AJ57: 942 | AK57: 1092 | AL57: 1681 | AM57: 1686 | AN57: 35 | AQ57: 992 | AR57: 1686 | AS57: PAYSAGE | AT57: 36.5 | AU57: 30 | AV57: 1 | AW57: 160 | BH57: H16 | BI57: H16 | BJ57: H16 | BK57: H19 | BL57: H19 | BM57: H21 | BN57: H21 | BO57: H23 | BP57: H23 | BQ57: H23 | BR57: H26 | BS57: H26 | BT57: H27 | BU57: H27 | BW57: H31 | BZ57: 2012 | CA57: Pa 1686 / 992 | CG57: H14 | CH57: H14 | CI57: H14 | CJ57: H16 | CK57: H16 | CL57: H16 | CM57: H19 | CN57: H19 | CO57: H21 | CP57: H21 | CQ57: H23 | CR57: H23 | CS57: H23 | CT57: H26 | CU57: H26 | CV57: H27
AH58: 2012 | AI58: Pa 1700 / 992 | AJ58: 942 | AK58: 1092 | AL58: 1695 | AM58: 1700 | AN58: 35 | AQ58: 992 | AR58: 1700 | AS58: PAYSAGE | AT58: 36.5 | AU58: 30 | AV58: 1 | AW58: 160 | BH58: H16 | BI58: H16 | BJ58: H16 | BK58: H19 | BL58: H19 | BM58: H21 | BN58: H21 | BO58: H23 | BP58: H23 | BQ58: H23 | BR58: H26 | BS58: H26 | BT58: H27 | BU58: H27 | BW58: H31 | BZ58: 2012 | CA58: Pa 1700 / 992 | CG58: H14 | CH58: H14 | CI58: H14 | CJ58: H16 | CK58: H16 | CL58: H16 | CM58: H19 | CN58: H19 | CO58: H21 | CP58: H21 | CQ58: H23 | CR58: H23 | CS58: H23 | CT58: H26 | CU58: H26 | CV58: H27
AH59: 2020 | AI59: Pa 1665 / 1020 | AJ59: 970 | AK59: 1120 | AL59: 1660 | AM59: 1665 | AN59: 30 | AO59: Oui | AQ59: 1020 | AR59: 1665 | AS59: PAYSAGE | AT59: 36.5 | AU59: 30 | AV59: 1 | AW59: 160 | BC59: H16 | BD59: H16 | BE59: H16 | BF59: H19 | BG59: H19 | BH59: H21 | BI59: H21 | BJ59: H23 | BK59: H23 | BL59: H23 | BM59: H26 | BN59: H26 | BO59: H27 | BP59: H27 | BR59: H31 | BS59: H31 | BT59: H31 | BZ59: 2020 | CA59: Pa 1665 / 1020 | CB59: H14 | CC59: H14 | CD59: H14 | CE59: H16 | CF59: H16 | CG59: H16 | CH59: H19 | CI59: H19 | CJ59: H21 | CK59: H21 | CL59: H23 | CM59: H23 | CN59: H23 | CO59: H26 | CP59: H26 | CQ59: H27 | CR59: H27 | CT59: H31 | CU59: H31 | CV59: H31
AH60: 2020 | AI60: Pa 1675 / 1020 | AJ60: 970 | AK60: 1120 | AL60: 1670 | AM60: 1675 | AN60: 30 | AO60: Oui | AQ60: 1020 | AR60: 1675 | AS60: PAYSAGE | AT60: 36.5 | AU60: 30 | AV60: 1 | AW60: 160 | BC60: H16 | BD60: H16 | BE60: H16 | BF60: H19 | BG60: H19 | BH60: H21 | BI60: H21 | BJ60: H23 | BK60: H23 | BL60: H23 | BM60: H26 | BN60: H26 | BO60: H27 | BP60: H27 | BR60: H31 | BS60: H31 | BT60: H31 | BZ60: 2020 | CA60: Pa 1675 / 1020 | CB60: H14 | CC60: H14 | CD60: H14 | CE60: H16 | CF60: H16 | CG60: H16 | CH60: H19 | CI60: H19 | CJ60: H21 | CK60: H21 | CL60: H23 | CM60: H23 | CN60: H23 | CO60: H26 | CP60: H26 | CQ60: H27 | CR60: H27 | CT60: H31 | CU60: H31 | CV60: H31
AH61: 2020 | AI61: Pa 1680 / 1020 | AJ61: 970 | AK61: 1120 | AL61: 1675 | AM61: 1680 | AN61: 30 | AO61: Oui | AQ61: 1020 | AR61: 1680 | AS61: PAYSAGE | AT61: 36.5 | AU61: 30 | AV61: 1 | AW61: 160 | BC61: H16 | BD61: H16 | BE61: H16 | BF61: H19 | BG61: H19 | BH61: H21 | BI61: H21 | BJ61: H23 | BK61: H23 | BL61: H23 | BM61: H26 | BN61: H26 | BO61: H27 | BP61: H27 | BR61: H31 | BS61: H31 | BT61: H31 | BZ61: 2020 | CA61: Pa 1680 / 1020 | CB61: H14 | CC61: H14 | CD61: H14 | CE61: H16 | CF61: H16 | CG61: H16 | CH61: H19 | CI61: H19 | CJ61: H21 | CK61: H21 | CL61: H23 | CM61: H23 | CN61: H23 | CO61: H26 | CP61: H26 | CQ61: H27 | CR61: H27 | CT61: H31 | CU61: H31 | CV61: H31
AH62: 2020 | AI62: Pa 1685 / 1020 | AJ62: 970 | AK62: 1120 | AL62: 1680 | AM62: 1685 | AN62: 30 | AO62: Oui | AQ62: 1020 | AR62: 1685 | AS62: PAYSAGE | AT62: 36.5 | AU62: 30 | AV62: 1 | AW62: 160 | BC62: H16 | BD62: H16 | BE62: H16 | BF62: H19 | BG62: H19 | BH62: H21 | BI62: H21 | BJ62: H23 | BK62: H23 | BL62: H23 | BM62: H26 | BN62: H26 | BO62: H27 | BP62: H27 | BR62: H31 | BS62: H31 | BT62: H31 | BZ62: 2020 | CA62: Pa 1685 / 1020 | CB62: H14 | CC62: H14 | CD62: H14 | CE62: H16 | CF62: H16 | CG62: H16 | CH62: H19 | CI62: H19 | CJ62: H21 | CK62: H21 | CL62: H23 | CM62: H23 | CN62: H23 | CO62: H26 | CP62: H26 | CQ62: H27 | CR62: H27 | CT62: H31 | CU62: H31 | CV62: H31
AH63: 2020 | AI63: Pa 1690 / 1020 | AJ63: 970 | AK63: 1120 | AL63: 1685 | AM63: 1690 | AN63: 30 | AO63: Oui | AQ63: 1020 | AR63: 1690 | AS63: PAYSAGE | AT63: 36.5 | AU63: 30 | AV63: 1 | AW63: 160 | BC63: H16 | BD63: H16 | BE63: H16 | BF63: H19 | BG63: H19 | BH63: H21 | BI63: H21 | BJ63: H23 | BK63: H23 | BL63: H23 | BM63: H26 | BN63: H26 | BO63: H27 | BP63: H27 | BR63: H31 | BS63: H31 | BT63: H31 | BZ63: 2020 | CA63: Pa 1690 / 1020 | CB63: H14 | CC63: H14 | CD63: H14 | CE63: H16 | CF63: H16 | CG63: H16 | CH63: H19 | CI63: H19 | CJ63: H21 | CK63: H21 | CL63: H23 | CM63: H23 | CN63: H23 | CO63: H26 | CP63: H26 | CQ63: H27 | CR63: H27 | CT63: H31 | CU63: H31 | CV63: H31
AH64: 2020 | AI64: Pa 1695 / 1020 | AJ64: 970 | AK64: 1120 | AL64: 1690 | AM64: 1695 | AN64: 30 | AO64: Oui | AQ64: 1020 | AR64: 1695 | AS64: PAYSAGE | AT64: 36.5 | AU64: 30 | AV64: 1 | AW64: 160 | BC64: H16 | BD64: H16 | BE64: H16 | BF64: H19 | BG64: H19 | BH64: H21 | BI64: H21 | BJ64: H23 | BK64: H23 | BL64: H23 | BM64: H26 | BN64: H26 | BO64: H27 | BP64: H27 | BR64: H31 | BS64: H31 | BT64: H31 | BZ64: 2020 | CA64: Pa 1695 / 1020 | CB64: H14 | CC64: H14 | CD64: H14 | CE64: H16 | CF64: H16 | CG64: H16 | CH64: H19 | CI64: H19 | CJ64: H21 | CK64: H21 | CL64: H23 | CM64: H23 | CN64: H23 | CO64: H26 | CP64: H26 | CQ64: H27 | CR64: H27 | CT64: H31 | CU64: H31 | CV64: H31
AH65: 2020 | AI65: Pa 1700 / 1020 | AJ65: 970 | AK65: 1120 | AL65: 1695 | AM65: 1700 | AN65: 30 | AO65: Oui | AQ65: 1020 | AR65: 1700 | AS65: PAYSAGE | AT65: 36.5 | AU65: 30 | AV65: 1 | AW65: 160 | BC65: H16 | BD65: H16 | BE65: H16 | BF65: H19 | BG65: H19 | BH65: H21 | BI65: H21 | BJ65: H23 | BK65: H23 | BL65: H23 | BM65: H26 | BN65: H26 | BO65: H27 | BP65: H27 | BR65: H31 | BS65: H31 | BT65: H31 | BZ65: 2020 | CA65: Pa 1700 / 1020 | CB65: H14 | CC65: H14 | CD65: H14 | CE65: H16 | CF65: H16 | CG65: H16 | CH65: H19 | CI65: H19 | CJ65: H21 | CK65: H21 | CL65: H23 | CM65: H23 | CN65: H23 | CO65: H26 | CP65: H26 | CQ65: H27 | CR65: H27 | CT65: H31 | CU65: H31 | CV65: H31
AH66: 2020 | AI66: Pa 1705 / 1020 | AJ66: 970 | AK66: 1120 | AL66: 1700 | AM66: 1705 | AN66: 30 | AO66: Oui | AQ66: 1020 | AR66: 1705 | AS66: PAYSAGE | AT66: 36.5 | AU66: 30 | AV66: 1 | AW66: 160 | BC66: H16 | BD66: H16 | BE66: H16 | BF66: H19 | BG66: H19 | BH66: H21 | BI66: H21 | BJ66: H23 | BK66: H23 | BL66: H23 | BM66: H26 | BN66: H26 | BO66: H27 | BP66: H27 | BR66: H31 | BS66: H31 | BT66: H31 | BZ66: 2020 | CA66: Pa 1705 / 1020 | CB66: H14 | CC66: H14 | CD66: H14 | CE66: H16 | CF66: H16 | CG66: H16 | CH66: H19 | CI66: H19 | CJ66: H21 | CK66: H21 | CL66: H23 | CM66: H23 | CN66: H23 | CO66: H26 | CP66: H26 | CQ66: H27 | CR66: H27 | CT66: H31 | CU66: H31 | CV66: H31
AH67: 2020 | AI67: Pa 1720 / 1020 | AJ67: 970 | AK67: 1120 | AL67: 1715 | AM67: 1720 | AN67: 30 | AO67: Oui | AQ67: 1020 | AR67: 1720 | AS67: PAYSAGE | AT67: 36.5 | AU67: 30 | AV67: 1 | AW67: 160 | BC67: H16 | BD67: H16 | BE67: H16 | BF67: H19 | BG67: H19 | BH67: H21 | BI67: H21 | BJ67: H23 | BK67: H23 | BL67: H23 | BM67: H26 | BN67: H26 | BO67: H27 | BP67: H27 | BR67: H31 | BS67: H31 | BT67: H31 | BZ67: 2020 | CA67: Pa 1720 / 1020 | CB67: H14 | CC67: H14 | CD67: H14 | CE67: H16 | CF67: H16 | CG67: H16 | CH67: H19 | CI67: H19 | CJ67: H21 | CK67: H21 | CL67: H23 | CM67: H23 | CN67: H23 | CO67: H26 | CP67: H26 | CQ67: H27 | CR67: H27 | CT67: H31 | CU67: H31 | CV67: H31
AH68: 2020 | AI68: Pa 1740 / 1020 | AJ68: 970 | AK68: 1120 | AL68: 1735 | AM68: 1740 | AN68: 30 | AO68: Oui | AQ68: 1020 | AR68: 1740 | AS68: PAYSAGE | AT68: 36.5 | AU68: 30 | AV68: 1 | AW68: 160 | BC68: H16 | BD68: H16 | BE68: H16 | BF68: H19 | BG68: H19 | BH68: H21 | BI68: H21 | BJ68: H23 | BK68: H23 | BL68: H23 | BM68: H26 | BN68: H26 | BO68: H27 | BP68: H27 | BR68: H31 | BS68: H31 | BT68: H31 | BZ68: 2020 | CA68: Pa 1740 / 1020 | CB68: H14 | CC68: H14 | CD68: H14 | CE68: H16 | CF68: H16 | CG68: H16 | CH68: H19 | CI68: H19 | CJ68: H21 | CK68: H21 | CL68: H23 | CM68: H23 | CN68: H23 | CO68: H26 | CP68: H26 | CQ68: H27 | CR68: H27 | CT68: H31 | CU68: H31 | CV68: H31

Sheet Calepinage (hidden)
AL1: =": "&VLOOKUP("legende4",BD!$A$1:$P$200,Listes!$AA$2+1,0)&CHAR(10)&CHAR(10)&": "&VLOOKUP("legende5",BD!$A$1:$P$200,Listes!$AA$2+1,0)&CHAR(10)&CHAR(10)&": "&VLOOKUP("legende1",BD!$A$1:$P$200,Listes!$AA$2+1,0)&CHAR(10)&CHAR(10)&": "&VLOOKUP("legende2",BD!$A$1:$P$200,Listes!$AA$2+1,0)&CHAR(10)&CHAR(10)&": "&VLOOKUP("legende3",BD!$A$1:$P$200,Listes!$AA$2+1,0) -> : Bande d’étanchéité Flexalu pour fenêtre de toit : Abergement Velux GSEi : Abergement de faîtage : Abergement latéral : Bande d'étanchéité FLEXALU
B2: =VLOOKUP("liste",BD!$A$1:$P$200,Listes!$AA$2+1,0) -> Liste de matériel | I2: =VLOOKUP("dessiner",BD!$A$1:$P$200,Listes!$AA$2+1,0) -> Dessiner le champ PV
G4: =VLOOKUP("inserer",BD!$A$1:$P$200,Listes!$AA$2+1,0) -> Insérer un champ prédéfini | M4: =VLOOKUP("ligne",BD!$A$1:$P$200,Listes!$AA$2+1,0)&" :" -> Lignes : | Q4: 3
M5: =VLOOKUP("colonne",BD!$A$1:$P$200,Listes!$AA$2+1,0)&" :" -> Colonnes : | Q5: 5
B6: KIT GSE INTEGRATION
B7: =B302 -> DEMI_Po 1650 / 1100 | C7: =C302 -> 30
B8: =IFERROR(INDEX($B$301:$Z$400,MATCH(ROW(A8)-6,$Z$301:$Z$400,0),1),"") -> Abergement Latéral Universel Noir 1290mm New Design 2022 | C8: =IFERROR(INDEX($B$301:$Z$400,MATCH(ROW(A8)-6,$Z$301:$Z$400,0),2),"") -> 10
B9: Abergement Angle Haut Droit Universel Noir | C9: 1
B10: Abergement Angle Haut Gauche Universel Noir | C10: 1
B11: Abergement Haut Central Universel Noir L 1500mm | C11: 4
B12: Crochet de Fixation d'Abergement In Roof | C12: 35
B13: Abergement Haut Cornière Laquée Noire L1400mm (pour la fixation des abergements centraux) | C13: 4
B14: Rivets Pop 4x8 (pour la fixation des cornières) | C14: 16
B15: Abergement Haut Jonction Universel Noir L 375mm | C15: 3
B16: Vis GSE Integration 6.3mmx60mm Noir | C16: 126
B17: Etrier Double H16 - Acier Inox - Noir - In Roof | C17: 24
B18: Etrier Simple H16 - Acier Inox - Noir - In Roof | C18: 12
B19: Cale Gauche de Renfort pour Etriers Simple In Roof | C19: 6
B20: Cale Droite de Renfort pour Etriers Simple In Roof | C20: 6
B21: Cale EPDM Pour Vis In Roof (25x21 EP. 5mm) | C21: 36
B22: Joint pré-contraint - 20 x 40 mm (Rouleau de 5.5 m) | C22: 4
B23: Flexalu Rouge Terre Cuite 500mm L5m Butyle 20/100 | C23: 2
B36: =IFERROR(INDEX($B$301:$Z$333,MATCH(ROW(A36)-6,$Z$301:$Z$333,0),1),"") ->  | C36: =IFERROR(INDEX($B$301:$Z$333,MATCH(ROW(A36)-6,$Z$301:$Z$333,0),2),"") -> 
B301: KIT GSE INTEGRATION | D301: 1 | E301: 2 | F301: 3 | G301: 4 | H301: 5 | I301: 6 | J301: 7 | K301: 8 | L301: 9 | M301: 10
A302: =SUM(C302:M302) -> 30 | B302: DEMI_Po 1650 / 1100 | C302: 30 | O302: DPORT | Z302: 1
A303: =SUM(C303:M303) -> 10 | B303: Abergement Latéral Universel Noir 1290mm New Design 2022 | C303: 10 | O303: ART104644 | Z303: =IF(B303<>"",Z302+1,Z302) -> 2
A304: 0 | C304: 0 | Z304: =IF(B304<>"",Z303+1,Z303) -> 2
A305: 0 | C305: 0 | Z305: 2
A306: 0 | C306: 0 | Z306: 2
A307: 1 | B307: Abergement Angle Haut Droit Universel Noir | C307: 1 | O307: COINDNOIR2014_15 | Z307: 3
A308: 1 | B308: Abergement Angle Haut Gauche Universel Noir | C308: 1 | O308: COINGNOIR2014_15 | Z308: 4
A309: 0 | C309: 0 | Z309: 4
A310: 0 | C310: 0 | Z310: 4
A311: 4 | B311: Abergement Haut Central Universel Noir L 1500mm | C311: 4 | O311: AFCUNL1500 | Z311: 5
A312: 35 | B312: Crochet de Fixation d'Abergement In Roof | C312: 35 | O312: CROCHET | Z312: 6
A313: 0 | C313: 0 | Z313: 6
A314: 4 | B314: Abergement Haut Cornière Laquée Noire L1400mm (pour la fixation des abergements centraux) | C314: 4 | O314: CORNIERELAQUEB | Z314: 7
A315: 16 | B315: Rivets Pop 4x8 (pour la fixation des cornières) | C315: 16 | O315: RIVETPOP | Z315: 8
A316: 3 | B316: Abergement Haut Jonction Universel Noir L 375mm | C316: 3 | O316: AFJUNL375 | Z316: 9
A317: 0 | C317: 0 | Z317: 9
A318: 0 | C318: 0 | Z318: 9
A319: 0 | C319: 0 | Z319: 9
A320: 126 | B320: Vis GSE Integration 6.3mmx60mm Noir | C320: 126 | O320: VIS2014N | Z320: 10
A321: 24 | B321: Etrier Double H16 - Acier Inox - Noir - In Roof | C321: 24 | O321: EDH162014N (ASV09-35V) | Z321: 11
A322: 12 | B322: Etrier Simple H16 - Acier Inox - Noir - In Roof | C322: 12 | O322: ESH162014N (ASV08-35V) | Z322: 12
A323: 6 | B323: Cale Gauche de Renfort pour Etriers Simple In Roof | C323: 6 | O323: CALE_GAUCHE | Z323: 13
A324: 6 | B324: Cale Droite de Renfort pour Etriers Simple In Roof | C324: 6 | O324: CALE_DROIT | Z324: 14
A325: 36 | B325: Cale EPDM Pour Vis In Roof (25x21 EP. 5mm) | C325: 36 | O325: CALE_EPDM_CELL | Z325: 15
A326: 4 | B326: Joint pré-contraint - 20 x 40 mm (Rouleau de 5.5 m) | C326: 4 | O326: JOINT_PRE_CONTRAIN | Z326: 16
A327: 2 | B327: Flexalu Rouge Terre Cuite 500mm L5m Butyle 20/100 | C327: 2 | O327: BANDE_FLEXALU-500 | Z327: 17
A328: 0 | C328: 0 | Z328: 17
A329: 0 | C329: 0 | Z329: 17
A330: 0 | C330: 0 | Z330: 17
A331: 0 | C331: 0 | Z331: 17
A332: 0 | C332: 0 | Z332: 17
A333: 0 | Z333: 17
A334: 0 | Z334: 17
C336: 0

Sheet Dessin (hidden)
E6: A
E7: 0
M8: 1 m | O8: 2 m | Q8: 3 m | S8: 4 m | U8: 5 m | W8: 6 m | Y8: 7 m | AA8: 8 m | AC8: 9 m | AE8: 10 m | AG8: 11 m | AI8: 12 m | AK8: 13 m | AM8: 14 m | AO8: 15 m | AQ8: 16 m | AS8: 17 m | AU8: 18 m | AW8: 19 m | AY8: 20 m | BA8: 21 m | BC8: 22 m | BE8: 23 m | BG8: 24 m | BI8: 25 m | BK8: 26 m | BM8: 27 m | BO8: 28 m | BQ8: 29 m | BS8: 30 m | BU8: 31 m | BW8: 32 m | BY8: 33 m | CA8: 34 m | CC8: 35 m | CE8: 36 m | CG8: 37 m | CI8: 38 m | CK8: 39 m | CM8: 40 m | CO8: 41 m | CQ8: 42 m | CS8: 43 m | CU8: 44 m | CW8: 45 m | CY8: 46 m | DA8: 47 m | DC8: 48 m | DE8: 49 m | DG8: 50 m | DI8: 51 m | DK8: 52 m | DM8: 53 m | DO8: 54 m | DQ8: 55 m | DS8: 56 m | DU8: 57 m | DW8: 58 m | DY8: 59 m | EA8: 60 m | EC8: 61 m | EE8: 62 m | EG8: 63 m | EI8: 64 m | EK8: 65 m | EM8: 66 m | EO8: 67 m | EQ8: 68 m | ES8: 69 m | EU8: 70 m | EW8: 71 m | EY8: 72 m | FA8: 73 m | FC8: 74 m | FE8: 75 m | FG8: 76 m | FI8: 77 m | FK8: 78 m | FM8: 79 m | FO8: 80 m | FQ8: 81 m | FS8: 82 m | FU8: 83 m | FW8: 84 m | FY8: 85 m | GA8: 86 m | GC8: 87 m | GE8: 88 m | GG8: 89 m | GI8: 90 m | GK8: 91 m | GM8: 92 m | GO8: 93 m | GQ8: 94 m | GS8: 95 m | GU8: 96 m | GW8: 97 m | GY8: 98 m | HA8: 99 m | HC8: 100 m
C9: B | H9: D | K9: 0 1 m 2 m 3 m 4 m 5 m 6 m 7 m 8 m 9 m 10 m 11 m 12 m 13 m 14 m 15 m 16 m 17 m 18 m 19 m 20 m 21 m 22 m 23 m 24 m 25 m 26 m 27 m 28 m 29 m 30 m 31 m 32 m 33 m 34 m 35 m 36 m 37 m 38 m 39 m 40 m 41 m 42 m 43 m 44 m 45 m 46 m 47 m 48 m 49 m 50 m 51 m 52 m 53 m 54 m 55 m 56 m 57 m 58 m 59 m 60 m 61 m 62 m 63 m 64 m 65 m 66 m 67 m 68 m 69 m 70 m 71 m 72 m 73 m 74 m 75 m 76 m 77 m 78 m 79 m 80 m 81 m 82 m 83 m 84 m 85 m 86 m 87 m 88 m 89 m 90 m 91 m 92 m 93 m 94 m 95 m 96 m 97 m 98 m 99 m 100 m
C10: 0 | H10: 14300 | K10: 1
K11: 2
E12: C | K12: =K11+1 -> 3
E13: 10000 | K13: =K12+1 -> 4
B14: =VLOOKUP("Deplacement",BD!$A$1:$P$200,Listes!$AA$2+1,0) -> Déplacement du champs PV | K14: 5
K15: 6
K16: 7
K17: 8
K18: 9
K19: 10
K20: 11
K21: 12
K22: 13
K23: 14
K24: 15
K25: 16
K26: 17
K27: 18
K28: 19
K29: 20
K30: 21
K31: 22
K32: 23
K33: 24
K34: 25
K35: 26
K36: 27
K37: 28
K38: 29
K39: 30
K40: 31
K41: 32
K42: 33
K43: 34
K44: 35
K45: 36
K46: 37
K47: 38
K48: 39
K49: 40
K50: 41
K51: 42
K52: 43
K53: 44
K54: 45
K55: 46
K56: 47
K57: 48
K58: 49
K59: 50
K60: 51
K61: 52
K62: 53
K63: 54
K64: 55
K65: 56
K66: 57
K67: 58
K68: 59
K69: 60
K70: 61
K71: 62
K72: 63
K73: 64
K74: 65
K75: 66
K76: 67
K77: =K76+1 -> 68
K78: 69
K79: 70
K80: 71
K81: 72
K82: 73
K83: 74
K84: 75
K85: 76
K86: 77
K87: 78
K88: 79
K89: 80
K90: 81
K91: 82
K92: 83
K93: 84
K94: 85
K95: 86
K96: 87
K97: 88
K98: 89
K99: 90
K100: 91
K101: 92
K102: 93
K103: 94
K104: 95
K105: 96
K106: 97
K107: 98
K108: 99
K109: 100

Sheet Bon de commande (hidden)
C3: =TODAY() -> 2023-01-04 | D3: =UPPER(VLOOKUP("Adr",BD!$A$1:$P$200,Listes!$AA$2+1,0)) -> ADRESSE / CONTACT | F3: =UPPER(VLOOKUP("DateExp",BD!$A$1:$P$200,Listes!$AA$2+1,0)) -> DATE DE LIVRAISON SOUHAITÉE
F5: =UPPER(VLOOKUP("Comment",BD!$A$1:$P$200,Listes!$AA$2+1,0)) -> COMMENTAIRES
B6: =VLOOKUP(v_plaque,BD!$AN:$AP,2,0) -> 
C8: =IF(ref_projet<>"",ref_projet,"") ->  | J8: 0
C10: =UPPER(VLOOKUP("Ref",BD!$A$1:$P$200,Listes!$AA$2+1,0)) -> RÉFÉRENCES | F10: =UPPER(VLOOKUP("NbrPiece",BD!$A$1:$P$200,Listes!$AA$2+1,0)) -> NOMBRE DE PIÈCES | G10: =UPPER(VLOOKUP("PUHT",BD!$A$1:$P$200,Listes!$AA$2+1,0)) -> P.U. (HT) | H10: =UPPER(VLOOKUP("PUREM",BD!$A$1:$P$200,Listes!$AA$2+1,0)) -> P.U. REMISÉ | I10: =UPPER(VLOOKUP("Total",BD!$A$1:$P$200,Listes!$AA$2+1,0)) -> TOTAL
B11: PPAYS | C11: =IF(VLOOKUP(v_plaque,BD!$AN:$AP,2,0)=0,"",VLOOKUP(v_plaque,BD!$AN:$AP,2,0)) ->  | E11: =IFERROR(INDEX(Calepinage!$B$301:$O$401,MATCH('Bon de commande'!B11,Calepinage!$O$301:$O$401,0),1),"") ->  | F11: =IFERROR(INDEX(Calepinage!$A$301:$O$401,MATCH('Bon de commande'!B11,Calepinage!$O$301:$O$401,0),1),0) -> 0 | G11: =IFERROR(VLOOKUP(C11,BD!$AO:$AP,2,0),0) -> 0 | H11: =G11*(1-$J$8) -> 0 | I11: =IFERROR(F11*H11,0) -> 0
B12: PPORT | C12: =IF(VLOOKUP(v_plaque,BD!$AN:$AP,2,0)=0,"",VLOOKUP(v_plaque,BD!$AN:$AP,2,0)) ->  | E12: =IFERROR(INDEX(Calepinage!$B$301:$O$401,MATCH('Bon de commande'!B12,Calepinage!$O$301:$O$401,0),1),"") ->  | F12: =IFERROR(INDEX(Calepinage!$A$301:$O$401,MATCH('Bon de commande'!B12,Calepinage!$O$301:$O$401,0),1),0) -> 0 | G12: =IFERROR(VLOOKUP(C12,BD!$AO:$AP,2,0),0) -> 0 | H12: =G12*(1-$J$8) -> 0 | I12: =IFERROR(F12*H12,0) -> 0
B13: DPORT | C13: =IF(VLOOKUP(v_plaque,BD!$AN:$AP,2,0)=0,"",VLOOKUP(v_plaque,BD!$AN:$AP,2,0)) ->  | E13: =IFERROR(INDEX(Calepinage!$B$301:$O$401,MATCH('Bon de commande'!B13,Calepinage!$O$301:$O$401,0),1),"") -> DEMI_Po 1650 / 1100 | F13: =IFERROR(INDEX(Calepinage!$A$301:$O$401,MATCH('Bon de commande'!B13,Calepinage!$O$301:$O$401,0),1),0) -> 30 | G13: =IFERROR(VLOOKUP(C13,BD!$AO:$AP,2,0),0) -> 0 | H13: 0 | I13: =IFERROR(F13*H13,0) -> 0
B14: COINDALUATEC | C14: ART101379 | E14: =IFERROR(INDEX(Calepinage!$B$301:$O$401,MATCH('Bon de commande'!B14,Calepinage!$O$301:$O$401,0),1),"") ->  | F14: =IFERROR(INDEX(Calepinage!$A$301:$O$401,MATCH('Bon de commande'!B14,Calepinage!$O$301:$O$401,0),1),0) -> 0 | G14: 11.47 | H14: 11.47 | I14: =IFERROR(F14*H14,0) -> 0
B15: COINDNOIRATEC | C15: ART101295 | E15: =IFERROR(INDEX(Calepinage!$B$301:$O$401,MATCH('Bon de commande'!B15,Calepinage!$O$301:$O$401,0),1),"") ->  | F15: =IFERROR(INDEX(Calepinage!$A$301:$O$401,MATCH('Bon de commande'!B15,Calepinage!$O$301:$O$401,0),1),0) -> 0 | G15: 29.36 | H15: 29.36 | I15: =IFERROR(F15*H15,0) -> 0
B16: ANGL_COIN_DROIT_AR | C16: ART100195 | E16: =IFERROR(INDEX(Calepinage!$B$301:$O$401,MATCH('Bon de commande'!B16,Calepinage!$O$301:$O$401,0),1),"") ->  | F16: =IFERROR(INDEX(Calepinage!$A$301:$O$401,MATCH('Bon de commande'!B16,Calepinage!$O$301:$O$401,0),1),0) -> 0 | G16: 22.6 | H16: 22.6 | I16: 0
B17: COINGALUATEC | C17: ART100785 | E17: =IFERROR(INDEX(Calepinage!$B$301:$O$401,MATCH('Bon de commande'!B17,Calepinage!$O$301:$O$401,0),1),"") ->  | F17: =IFERROR(INDEX(Calepinage!$A$301:$O$401,MATCH('Bon de commande'!B17,Calepinage!$O$301:$O$401,0),1),0) -> 0 | G17: 11.47 | H17: 11.47 | I17: 0
B18: COINGNOIRATEC | C18: ART100285 | E18: =IFERROR(INDEX(Calepinage!$B$301:$O$401,MATCH('Bon de commande'!B18,Calepinage!$O$301:$O$401,0),1),"") ->  | F18: =IFERROR(INDEX(Calepinage!$A$301:$O$401,MATCH('Bon de commande'!B18,Calepinage!$O$301:$O$401,0),1),0) -> 0 | G18: 29.36 | H18: 29.36 | I18: 0
B19: ANGL_COIN_GAUCH_AR | C19: ART101291 | E19: =IFERROR(INDEX(Calepinage!$B$301:$O$401,MATCH('Bon de commande'!B19,Calepinage!$O$301:$O$401,0),1),"") ->  | F19: =IFERROR(INDEX(Calepinage!$A$301:$O$401,MATCH('Bon de commande'!B19,Calepinage!$O$301:$O$401,0),1),0) -> 0 | G19: 22.6 | H19: 22.6 | I19: 0
B20: AFSA2013 | C20: ART100695 | E20: =IFERROR(INDEX(Calepinage!$B$301:$O$401,MATCH('Bon de commande'!B20,Calepinage!$O$301:$O$401,0),1),"") ->  | F20: =IFERROR(INDEX(Calepinage!$A$301:$O$401,MATCH('Bon de commande'!B20,Calepinage!$O$301:$O$401,0),1),0) -> 0 | G20: 17 | H20: 17 | I20: 0
B21: AFCUNL1500 | C21: ART101041 | E21: =IFERROR(INDEX(Calepinage!$B$301:$O$401,MATCH('Bon de commande'!B21,Calepinage!$O$301:$O$401,0),1),"") -> Abergement Haut Central Universel Noir L 1500mm | F21: =IFERROR(INDEX(Calepinage!$A$301:$O$401,MATCH('Bon de commande'!B21,Calepinage!$O$301:$O$401,0),1),0) -> 4 | G21: 33.92 | H21: 33.92 | I21: 135.68
B22: ART104007 | C22: ART104007 | E22: =IFERROR(INDEX(Calepinage!$B$301:$O$401,MATCH('Bon de commande'!B22,Calepinage!$O$301:$O$401,0),1),"") ->  | F22: =IFERROR(INDEX(Calepinage!$A$301:$O$401,MATCH('Bon de commande'!B22,Calepinage!$O$301:$O$401,0),1),0) -> 0 | G22: 32.54 | H22: 32.54 | I22: 0
B23: ART104014 | C23: ART104014 | E23: =IFERROR(INDEX(Calepinage!$B$301:$O$401,MATCH('Bon de commande'!B23,Calepinage!$O$301:$O$401,0),1),"") ->  | F23: =IFERROR(INDEX(Calepinage!$A$301:$O$401,MATCH('Bon de commande'!B23,Calepinage!$O$301:$O$401,0),1),0) -> 0 | G23: 32.54 | H23: 32.54 | I23: =IFERROR(F23*H23,0) -> 0
B24: ART103986 | C24: ART103986 | E24: =IFERROR(INDEX(Calepinage!$B$301:$O$401,MATCH('Bon de commande'!B24,Calepinage!$O$301:$O$401,0),1),"") ->  | F24: =IFERROR(INDEX(Calepinage!$A$301:$O$401,MATCH('Bon de commande'!B24,Calepinage!$O$301:$O$401,0),1),0) -> 0 | G24: 32.54 | H24: 32.54 | I24: 0
B25: ART104021 | C25: ART104021 | E25: =IFERROR(INDEX(Calepinage!$B$301:$O$401,MATCH('Bon de commande'!B25,Calepinage!$O$301:$O$401,0),1),"") ->  | F25: =IFERROR(INDEX(Calepinage!$A$301:$O$401,MATCH('Bon de commande'!B25,Calepinage!$O$301:$O$401,0),1),0) -> 0 | G25: 32.54 | H25: 32.54 | I25: 0
B26: ART101622 | C26: ART101622 | E26: =IFERROR(INDEX(Calepinage!$B$301:$O$401,MATCH('Bon de commande'!B26,Calepinage!$O$301:$O$401,0),1),"") ->  | F26: =IFERROR(INDEX(Calepinage!$A$301:$O$401,MATCH('Bon de commande'!B26,Calepinage!$O$301:$O$401,0),1),0) -> 0 | G26: 47.94 | H26: 47.94 | I26: 0
B27: ART104028 | C27: ART104028 | E27: =IFERROR(INDEX(Calepinage!$B$301:$O$401,MATCH('Bon de commande'!B27,Calepinage!$O$301:$O$401,0),1),"") ->  | F27: =IFERROR(INDEX(Calepinage!$A$301:$O$401,MATCH('Bon de commande'!B27,Calepinage!$O$301:$O$401,0),1),0) -> 0 | G27: 47.94 | H27: 47.94 | I27: 0
B28: ART104035 | C28: ART104035 | E28: =IFERROR(INDEX(Calepinage!$B$301:$O$401,MATCH('Bon de commande'!B28,Calepinage!$O$301:$O$401,0),1),"") ->  | F28: =IFERROR(INDEX(Calepinage!$A$301:$O$401,MATCH('Bon de commande'!B28,Calepinage!$O$301:$O$401,0),1),0) -> 0 | G28: 47.94 | H28: 47.94 | I28: 0
B29: ART104042 | C29: ART104042 | E29: =IFERROR(INDEX(Calepinage!$B$301:$O$401,MATCH('Bon de commande'!B29,Calepinage!$O$301:$O$401,0),1),"") ->  | F29: =IFERROR(INDEX(Calepinage!$A$301:$O$401,MATCH('Bon de commande'!B29,Calepinage!$O$301:$O$401,0),1),0) -> 0 | G29: 47.94 | H29: 47.94 | I29: 0
B30: ART104049 | C30: ART104049 | E30: =IFERROR(INDEX(Calepinage!$B$301:$O$401,MATCH('Bon de commande'!B30,Calepinage!$O$301:$O$401,0),1),"") ->  | F30: =IFERROR(INDEX(Calepinage!$A$301:$O$401,MATCH('Bon de commande'!B30,Calepinage!$O$301:$O$401,0),1),0) -> 0 | G30: 47.94 | H30: 47.94 | I30: 0
B31: ART104056 | C31: ART104056 | E31: =IFERROR(INDEX(Calepinage!$B$301:$O$401,MATCH('Bon de commande'!B31,Calepinage!$O$301:$O$401,0),1),"") ->  | F31: =IFERROR(INDEX(Calepinage!$A$301:$O$401,MATCH('Bon de commande'!B31,Calepinage!$O$301:$O$401,0),1),0) -> 0 | G31: 47.94 | H31: 47.94 | I31: 0
B32: ART104063 | C32: ART104063 | E32: =IFERROR(INDEX(Calepinage!$B$301:$O$401,MATCH('Bon de commande'!B32,Calepinage!$O$301:$O$401,0),1),"") ->  | F32: =IFERROR(INDEX(Calepinage!$A$301:$O$401,MATCH('Bon de commande'!B32,Calepinage!$O$301:$O$401,0),1),0) -> 0 | G32: 47.94 | H32: 47.94 | I32: 0
B33: ART104833 | C33: ART104833 | E33: =IFERROR(INDEX(Calepinage!$B$301:$O$401,MATCH('Bon de commande'!B33,Calepinage!$O$301:$O$401,0),1),"") ->  | F33: =IFERROR(INDEX(Calepinage!$A$301:$O$401,MATCH('Bon de commande'!B33,Calepinage!$O$301:$O$401,0),1),0) -> 0 | G33: 47.94 | H33: =G33*(1-$J$8) -> 47.94 | I33: 0
B34: COINDALU2014_15 | C34: ART101340 | E34: =IFERROR(INDEX(Calepinage!$B$301:$O$401,MATCH('Bon de commande'!B34,Calepinage!$O$301:$O$401,0),1),"") ->  | F34: =IFERROR(INDEX(Calepinage!$A$301:$O$401,MATCH('Bon de commande'!B34,Calepinage!$O$301:$O$401,0),1),0) -> 0 | G34: 13.5 | H34: 13.5 | I34: 0
B35: COINDNOIR2014_15 | C35: ART100574 | E35: =IFERROR(INDEX(Calepinage!$B$301:$O$401,MATCH('Bon de commande'!B35,Calepinage!$O$301:$O$401,0),1),"") -> Abergement Angle Haut Droit Universel Noir | F35: =IFERROR(INDEX(Calepinage!$A$301:$O$401,MATCH('Bon de commande'!B35,Calepinage!$O$301:$O$401,0),1),0) -> 1 | G35: 25.66 | H35: 25.66 | I35: 25.66
B36: COINGALU2014_15 | C36: ART100862 | E36: =IFERROR(INDEX(Calepinage!$B$301:$O$401,MATCH('Bon de commande'!B36,Calepinage!$O$301:$O$401,0),1),"") ->  | F36: =IFERROR(INDEX(Calepinage!$A$301:$O$401,MATCH('Bon de commande'!B36,Calepinage!$O$301:$O$401,0),1),0) -> 0 | G36: 13.5 | H36: 13.5 | I36: 0
B37: COINGNOIR2014_15 | C37: ART100945 | E37: =IFERROR(INDEX(Calepinage!$B$301:$O$401,MATCH('Bon de commande'!B37,Calepinage!$O$301:$O$401,0),1),"") -> Abergement Angle Haut Gauche Universel Noir | F37: =IFERROR(INDEX(Calepinage!$A$301:$O$401,MATCH('Bon de commande'!B37,Calepinage!$O$301:$O$401,0),1),0) -> 1 | G37: 25.66 | H37: 25.66 | I37: 25.66
B38: ART104070 | C38: ART104070 | E38: =IFERROR(INDEX(Calepinage!$B$301:$O$401,MATCH('Bon de commande'!B38,Calepinage!$O$301:$O$401,0),1),"") ->  | F38: =IFERROR(INDEX(Calepinage!$A$301:$O$401,MATCH('Bon de commande'!B38,Calepinage!$O$301:$O$401,0),1),0) -> 0 | G38: 47.71 | H38: 47.71 | I38: =IFERROR(F38*H38,0) -> 0
B39: ART104077 | C39: ART104077 | E39: =IFERROR(INDEX(Calepinage!$B$301:$O$401,MATCH('Bon de commande'!B39,Calepinage!$O$301:$O$401,0),1),"") ->  | F39: =IFERROR(INDEX(Calepinage!$A$301:$O$401,MATCH('Bon de commande'!B39,Calepinage!$O$301:$O$401,0),1),0) -> 0 | G39: 47.71 | H39: 47.71 | I39: 0
B40: ART101629 | C40: ART101629 | E40: =IFERROR(INDEX(Calepinage!$B$301:$O$401,MATCH('Bon de commande'!B40,Calepinage!$O$301:$O$401,0),1),"") ->  | F40: =IFERROR(INDEX(Calepinage!$A$301:$O$401,MATCH('Bon de commande'!B40,Calepinage!$O$301:$O$401,0),1),0) -> 0 | G40: 25.32 | H40: 25.32 | I40: 0
B41: ART101618 | C41: ART101618 | E41: =IFERROR(INDEX(Calepinage!$B$301:$O$401,MATCH('Bon de commande'!B41,Calepinage!$O$301:$O$401,0),1),"") ->  | F41: =IFERROR(INDEX(Calepinage!$A$301:$O$401,MATCH('Bon de commande'!B41,Calepinage!$O$301:$O$401,0),1),0) -> 0 | G41: 25.32 | H41: 25.32 | I41: 0
B42: ART101616 | C42: ART101616 | E42: =IFERROR(INDEX(Calepinage!$B$301:$O$401,MATCH('Bon de commande'!B42,Calepinage!$O$301:$O$401,0),1),"") ->  | F42: =IFERROR(INDEX(Calepinage!$A$301:$O$401,MATCH('Bon de commande'!B42,Calepinage!$O$301:$O$401,0),1),0) -> 0 | G42: 12.41 | H42: 12.41 | I42: 0
B43: ART101608 | C43: ART101608 | E43: =IFERROR(INDEX(Calepinage!$B$301:$O$401,MATCH('Bon de commande'!B43,Calepinage!$O$301:$O$401,0),1),"") ->  | F43: =IFERROR(INDEX(Calepinage!$A$301:$O$401,MATCH('Bon de commande'!B43,Calepinage!$O$301:$O$401,0),1),0) -> 0 | G43: 12.41 | H43: 12.41 | I43: 0
B44: AFJA2013 | C44: ART100558 | E44: =IFERROR(INDEX(Calepinage!$B$301:$O$401,MATCH('Bon de commande'!B44,Calepinage!$O$301:$O$401,0),1),"") ->  | F44: =IFERROR(INDEX(Calepinage!$A$301:$O$401,MATCH('Bon de commande'!B44,Calepinage!$O$301:$O$401,0),1),0) -> 0 | G44: 4.5 | H44: 4.5 | I44: 0
B45: AFJUNL375 | C45: ART100039 | E45: =IFERROR(INDEX(Calepinage!$B$301:$O$401,MATCH('Bon de commande'!B45,Calepinage!$O$301:$O$401,0),1),"") -> Abergement Haut Jonction Universel Noir L 375mm | F45: =IFERROR(INDEX(Calepinage!$A$301:$O$401,MATCH('Bon de commande'!B45,Calepinage!$O$301:$O$401,0),1),0) -> 3 | G45: 8.44 | H45: 8.44 | I45: 25.32
B46: ABER_HAUT_ATEC_ALU | C46: ART100441 | E46: =IFERROR(INDEX(Calepinage!$B$301:$O$401,MATCH('Bon de commande'!B46,Calepinage!$O$301:$O$401,0),1),"") ->  | F46: =IFERROR(INDEX(Calepinage!$A$301:$O$401,MATCH('Bon de commande'!B46,Calepinage!$O$301:$O$401,0),1),0) -> 0 | G46: 21.93 | H46: 21.93 | I46: 0
B47: ABER_HAUT_ATEC_NOI | C47: ART100557 | E47: =IFERROR(INDEX(Calepinage!$B$301:$O$401,MATCH('Bon de commande'!B47,Calepinage!$O$301:$O$401,0),1),"") ->  | F47: =IFERROR(INDEX(Calepinage!$A$301:$O$401,MATCH('Bon de commande'!B47,Calepinage!$O$301:$O$401,0),1),0) -> 0 | G47: 53.02 | H47: 53.02 | I47: 0
B48: AB_HAUT_SPEC_ALU | E48: =IFERROR(INDEX(Calepinage!$B$301:$O$401,MATCH('Bon de commande'!B48,Calepinage!$O$301:$O$401,0),1),"") ->  | F48: =IFERROR(INDEX(Calepinage!$A$301:$O$401,MATCH('Bon de commande'!B48,Calepinage!$O$301:$O$401,0),1),0) -> 0 | H48: 0 | I48: 0
B49: AB_HAUT_SPEC_NOIR | E49: =IFERROR(INDEX(Calepinage!$B$301:$O$401,MATCH('Bon de commande'!B49,Calepinage!$O$301:$O$401,0),1),"") ->  | F49: =IFERROR(INDEX(Calepinage!$A$301:$O$401,MATCH('Bon de commande'!B49,Calepinage!$O$301:$O$401,0),1),0) -> 0 | H49: 0 | I49: 0
B50: ABER_HAUT_ATEC_ARD | E50: =IFERROR(INDEX(Calepinage!$B$301:$O$401,MATCH('Bon de commande'!B50,Calepinage!$O$301:$O$401,0),1),"") ->  | F50: =IFERROR(INDEX(Calepinage!$A$301:$O$401,MATCH('Bon de commande'!B50,Calepinage!$O$301:$O$401,0),1),0) -> 0 | H50: 0 | I50: 0
B51: AB_HAUT_1001_VA1 | C51: ART101014 | E51: =IFERROR(INDEX(Calepinage!$B$301:$O$401,MATCH('Bon de commande'!B51,Calepinage!$O$301:$O$401,0),1),"") ->  | F51: =IFERROR(INDEX(Calepinage!$A$301:$O$401,MATCH('Bon de commande'!B51,Calepinage!$O$301:$O$401,0),1),0) -> 0 | G51: 32.54 | H51: 32.54 | I51: =IFERROR(F51*H51,0) -> 0
B52: AB_HAUT_1046_VA1 | C52: ART101567 | E52: =IFERROR(INDEX(Calepinage!$B$301:$O$401,MATCH('Bon de commande'!B52,Calepinage!$O$301:$O$401,0),1),"") ->  | F52: =IFERROR(INDEX(Calepinage!$A$301:$O$401,MATCH('Bon de commande'!B52,Calepinage!$O$301:$O$401,0),1),0) -> 0 | G52: 22.1 | H52: 22.1 | I52: 0
B53: AB_HAUT_992_VA1 | C53: ART100820 | E53: =IFERROR(INDEX(Calepinage!$B$301:$O$401,MATCH('Bon de commande'!B53,Calepinage!$O$301:$O$401,0),1),"") ->  | F53: =IFERROR(INDEX(Calepinage!$A$301:$O$401,MATCH('Bon de commande'!B53,Calepinage!$O$301:$O$401,0),1),0) -> 0 | G53: 22.1 | H53: 22.1 | I53: 0
B54: RACC_ABER_HAUT_ARD | C54: ART100110 | E54: =IFERROR(INDEX(Calepinage!$B$301:$O$401,MATCH('Bon de commande'!B54,Calepinage!$O$301:$O$401,0),1),"") ->  | F54: =IFERROR(INDEX(Calepinage!$A$301:$O$401,MATCH('Bon de commande'!B54,Calepinage!$O$301:$O$401,0),1),0) -> 0 | G54: 4.4 | H54: 4.4 | I54: 0
B55: ALAALUDROITATEC | C55: ART100079 | E55: =IFERROR(INDEX(Calepinage!$B$301:$O$401,MATCH('Bon de commande'!B55,Calepinage!$O$301:$O$401,0),1),"") ->  | F55: =IFERROR(INDEX(Calepinage!$A$301:$O$401,MATCH('Bon de commande'!B55,Calepinage!$O$301:$O$401,0),1),0) -> 0 | G55: 14.79 | H55: 14.79 | I55: 0
B56: ALABLKDROITATEC | C56: ART100973 | E56: =IFERROR(INDEX(Calepinage!$B$301:$O$401,MATCH('Bon de commande'!B56,Calepinage!$O$301:$O$401,0),1),"") ->  | F56: =IFERROR(INDEX(Calepinage!$A$301:$O$401,MATCH('Bon de commande'!B56,Calepinage!$O$301:$O$401,0),1),0) -> 0 | G56: 35.75 | H56: 35.75 | I56: 0
B57: ABER_LAT_DROIT_ARD | C57: ART100429 | E57: =IFERROR(INDEX(Calepinage!$B$301:$O$401,MATCH('Bon de commande'!B57,Calepinage!$O$301:$O$401,0),1),"") ->  | F57: =IFERROR(INDEX(Calepinage!$A$301:$O$401,MATCH('Bon de commande'!B57,Calepinage!$O$301:$O$401,0),1),0) -> 0 | G57: 13.6 | H57: 13.6 | I57: 0
B58: ALAALUGAUCHEATEC | C58: ART100057 | E58: =IFERROR(INDEX(Calepinage!$B$301:$O$401,MATCH('Bon de commande'!B58,Calepinage!$O$301:$O$401,0),1),"") ->  | F58: =IFERROR(INDEX(Calepinage!$A$301:$O$401,MATCH('Bon de commande'!B58,Calepinage!$O$301:$O$401,0),1),0) -> 0 | G58: 14.79 | H58: 14.79 | I58: 0
B59: ALABLKGAUCHEATEC | C59: ART101030 | E59: =IFERROR(INDEX(Calepinage!$B$301:$O$401,MATCH('Bon de commande'!B59,Calepinage!$O$301:$O$401,0),1),"") ->  | F59: =IFERROR(INDEX(Calepinage!$A$301:$O$401,MATCH('Bon de commande'!B59,Calepinage!$O$301:$O$401,0),1),0) -> 0 | G59: 35.75 | H59: 35.75 | I59: 0
B60: ABER_LAT_GAUCH_AR | C60: ART100568 | E60: =IFERROR(INDEX(Calepinage!$B$301:$O$401,MATCH('Bon de commande'!B60,Calepinage!$O$301:$O$401,0),1),"") ->  | F60: =IFERROR(INDEX(Calepinage!$A$301:$O$401,MATCH('Bon de commande'!B60,Calepinage!$O$301:$O$401,0),1),0) -> 0 | G60: 13.6 | H60: 13.6 | I60: 0
B61: ALUAP30TUILBRUTRE3 | C61: ART100703 | E61: =IFERROR(INDEX(Calepinage!$B$301:$O$401,MATCH('Bon de commande'!B61,Calepinage!$O$301:$O$401,0),1),"") ->  | F61: =IFERROR(INDEX(Calepinage!$A$301:$O$401,MATCH('Bon de commande'!B61,Calepinage!$O$301:$O$401,0),1),0) -> 0 | G61: 10.9 | H61: 10.9 | I61: 0
B62: ALUNP30TUILNOIRRE3 | C62: ART100927 | E62: =IFERROR(INDEX(Calepinage!$B$301:$O$401,MATCH('Bon de commande'!B62,Calepinage!$O$301:$O$401,0),1),"") ->  | F62: =IFERROR(INDEX(Calepinage!$A$301:$O$401,MATCH('Bon de commande'!B62,Calepinage!$O$301:$O$401,0),1),0) -> 0 | G62: 15.78 | H62: 15.78 | I62: 0
B63: ALUA | C63: ART100673 | E63: =IFERROR(INDEX(Calepinage!$B$301:$O$401,MATCH('Bon de commande'!B63,Calepinage!$O$301:$O$401,0),1),"") ->  | F63: =IFERROR(INDEX(Calepinage!$A$301:$O$401,MATCH('Bon de commande'!B63,Calepinage!$O$301:$O$401,0),1),0) -> 0 | G63: 9.4 | H63: 9.4 | I63: 0
B64: ALUN | C64: ART100494 | E64: =IFERROR(INDEX(Calepinage!$B$301:$O$401,MATCH('Bon de commande'!B64,Calepinage!$O$301:$O$401,0),1),"") ->  | F64: =IFERROR(INDEX(Calepinage!$A$301:$O$401,MATCH('Bon de commande'!B64,Calepinage!$O$301:$O$401,0),1),0) -> 0 | G64: 13.9 | H64: 13.9 | I64: 0
B65: ART101620 | C65: ART101620 | E65: =IFERROR(INDEX(Calepinage!$B$301:$O$401,MATCH('Bon de commande'!B65,Calepinage!$O$301:$O$401,0),1),"") ->  | F65: =IFERROR(INDEX(Calepinage!$A$301:$O$401,MATCH('Bon de commande'!B65,Calepinage!$O$301:$O$401,0),1),0) -> 0 | G65: 27.9 | H65: 27.9 | I65: 0
B66: ART101609 | C66: ART101609 | E66: =IFERROR(INDEX(Calepinage!$B$301:$O$401,MATCH('Bon de commande'!B66,Calepinage!$O$301:$O$401,0),1),"") ->  | F66: =IFERROR(INDEX(Calepinage!$A$301:$O$401,MATCH('Bon de commande'!B66,Calepinage!$O$301:$O$401,0),1),0) -> 0 | G66: 27.9 | H66: 27.9 | I66: 0
B67: ART104644 | C67: ART104644 | E67: =IFERROR(INDEX(Calepinage!$B$301:$O$401,MATCH('Bon de commande'!B67,Calepinage!$O$301:$O$401,0),1),"") -> Abergement Latéral Universel Noir 1290mm New Design 2022 | F67: =IFERROR(INDEX(Calepinage!$A$301:$O$401,MATCH('Bon de commande'!B67,Calepinage!$O$301:$O$401,0),1),0) -> 10 | G67: 18.9 | H67: 18.9 | I67: 189
B68: CORNIERELAQUEB | C68: ART101409 | E68: =IFERROR(INDEX(Calepinage!$B$301:$O$401,MATCH('Bon de commande'!B68,Calepinage!$O$301:$O$401,0),1),"") -> Abergement Haut Cornière Laquée Noire L1400mm (pour la fixation des abergements centraux) | F68: =IFERROR(INDEX(Calepinage!$A$301:$O$401,MATCH('Bon de commande'!B68,Calepinage!$O$301:$O$401,0),1),0) -> 4 | G68: 6.4 | H68: 6.4 | I68: 25.6
B69: CORNIERE | C69: ART100867 | E69: =IFERROR(INDEX(Calepinage!$B$301:$O$401,MATCH('Bon de commande'!B69,Calepinage!$O$301:$O$401,0),1),"") ->  | F69: =IFERROR(INDEX(Calepinage!$A$301:$O$401,MATCH('Bon de commande'!B69,Calepinage!$O$301:$O$401,0),1),0) -> 0 | G69: 3.5 | H69: 3.5 | I69: 0
B70: CROCHET | C70: ART100633 | E70: =IFERROR(INDEX(Calepinage!$B$301:$O$401,MATCH('Bon de commande'!B70,Calepinage!$O$301:$O$401,0),1),"") -> Crochet de Fixation d'Abergement In Roof | F70: =IFERROR(INDEX(Calepinage!$A$301:$O$401,MATCH('Bon de commande'!B70,Calepinage!$O$301:$O$401,0),1),0) -> 35 | G70: 0.98 | H70: 0.98 | I70: 34.3
B71: ART104105 | C71: ART104105 | E71: =IFERROR(INDEX(Calepinage!$B$301:$O$401,MATCH('Bon de commande'!B71,Calepinage!$O$301:$O$401,0),1),"") ->  | F71: =IFERROR(INDEX(Calepinage!$A$301:$O$401,MATCH('Bon de commande'!B71,Calepinage!$O$301:$O$401,0),1),0) -> 0 | G71: 5.52 | H71: 5.52 | I71: 0
B72: ART101625 | C72: ART101625 | E72: =IFERROR(INDEX(Calepinage!$B$301:$O$401,MATCH('Bon de commande'!B72,Calepinage!$O$301:$O$401,0),1),"") ->  | F72: =IFERROR(INDEX(Calepinage!$A$301:$O$401,MATCH('Bon de commande'!B72,Calepinage!$O$301:$O$401,0),1),0) -> 0 | G72: 24.19 | H72: 24.19 | I72: 0
B73: ART101617 | C73: ART101617 | E73: =IFERROR(INDEX(Calepinage!$B$301:$O$401,MATCH('Bon de commande'!B73,Calepinage!$O$301:$O$401,0),1),"") ->  | F73: =IFERROR(INDEX(Calepinage!$A$301:$O$401,MATCH('Bon de commande'!B73,Calepinage!$O$301:$O$401,0),1),0) -> 0 | G73: 24.19 | H73: 24.19 | I73: 0
B74: EDH162014ALU (ASV09-35G) | C74: ART100045 | E74: =IFERROR(INDEX(Calepinage!$B$301:$O$401,MATCH('Bon de commande'!B74,Calepinage!$O$301:$O$401,0),1),"") ->  | F74: =IFERROR(INDEX(Calepinage!$A$301:$O$401,MATCH('Bon de commande'!B74,Calepinage!$O$301:$O$401,0),1),0) -> 0 | G74: 1.18 | H74: 1.18 | I74: 0
B75: EDH162014N (ASV09-35V) | C75: ART100482 | E75: =IFERROR(INDEX(Calepinage!$B$301:$O$401,MATCH('Bon de commande'!B75,Calepinage!$O$301:$O$401,0),1),"") -> Etrier Double H16 - Acier Inox - Noir - In Roof | F75: =IFERROR(INDEX(Calepinage!$A$301:$O$401,MATCH('Bon de commande'!B75,Calepinage!$O$301:$O$401,0),1),0) -> 24 | G75: 1.82 | H75: 1.82 | I75: 43.68
B76: ART104084 | C76: ART104084 | E76: =IFERROR(INDEX(Calepinage!$B$301:$O$401,MATCH('Bon de commande'!B76,Calepinage!$O$301:$O$401,0),1),"") ->  | F76: =IFERROR(INDEX(Calepinage!$A$301:$O$401,MATCH('Bon de commande'!B76,Calepinage!$O$301:$O$401,0),1),0) -> 0 | G76: 6.95 | H76: =G76*(1-$J$8) -> 6.95 | I76: 0
B77: ART105575 | C77: ART105575 | E77: =IFERROR(INDEX(Calepinage!$B$301:$O$401,MATCH('Bon de commande'!B77,Calepinage!$O$301:$O$401,0),1),"") ->  | F77: =IFERROR(INDEX(Calepinage!$A$301:$O$401,MATCH('Bon de commande'!B77,Calepinage!$O$301:$O$401,0),1),0) -> 0 | G77: 1.82 | H77: 1.82 | I77: 0
B78: EDH192014ALU (ASV-38G) | C78: ART100171 | E78: =IFERROR(INDEX(Calepinage!$B$301:$O$401,MATCH('Bon de commande'!B78,Calepinage!$O$301:$O$401,0),1),"") ->  | F78: =IFERROR(INDEX(Calepinage!$A$301:$O$401,MATCH('Bon de commande'!B78,Calepinage!$O$301:$O$401,0),1),0) -> 0 | G78: 1.18 | H78: 1.18 | I78: 0
B79: EDH192014N (ASV-38V) | C79: ART100548 | E79: =IFERROR(INDEX(Calepinage!$B$301:$O$401,MATCH('Bon de commande'!B79,Calepinage!$O$301:$O$401,0),1),"") ->  | F79: =IFERROR(INDEX(Calepinage!$A$301:$O$401,MATCH('Bon de commande'!B79,Calepinage!$O$301:$O$401,0),1),0) -> 0 | G79: 1.82 | H79: 1.82 | I79: 0
B80: EDH212014ALU (ASV09-40G) | C80: ART100597 | E80: =IFERROR(INDEX(Calepinage!$B$301:$O$401,MATCH('Bon de commande'!B80,Calepinage!$O$301:$O$401,0),1),"") ->  | F80: =IFERROR(INDEX(Calepinage!$A$301:$O$401,MATCH('Bon de commande'!B80,Calepinage!$O$301:$O$401,0),1),0) -> 0 | G80: 1.18 | H80: 1.18 | I80: 0
B81: EDH212014N (ASV09-40V) | C81: ART100744 | E81: =IFERROR(INDEX(Calepinage!$B$301:$O$401,MATCH('Bon de commande'!B81,Calepinage!$O$301:$O$401,0),1),"") ->  | F81: =IFERROR(INDEX(Calepinage!$A$301:$O$401,MATCH('Bon de commande'!B81,Calepinage!$O$301:$O$401,0),1),0) -> 0 | G81: 1.82 | H81: 1.82 | I81: 0
B82: EDH232014ALU (ASV09-42G) | C82: ART101192 | E82: =IFERROR(INDEX(Calepinage!$B$301:$O$401,MATCH('Bon de commande'!B82,Calepinage!$O$301:$O$401,0),1),"") ->  | F82: =IFERROR(INDEX(Calepinage!$A$301:$O$401,MATCH('Bon de commande'!B82,Calepinage!$O$301:$O$401,0),1),0) -> 0 | G82: 1.18 | H82: 1.18 | I82: 0
B83: EDH232014N (ASV9-42V) | C83: ART100658 | E83: =IFERROR(INDEX(Calepinage!$B$301:$O$401,MATCH('Bon de commande'!B83,Calepinage!$O$301:$O$401,0),1),"") ->  | F83: =IFERROR(INDEX(Calepinage!$A$301:$O$401,MATCH('Bon de commande'!B83,Calepinage!$O$301:$O$401,0),1),0) -> 0 | G83: 1.82 | H83: 1.82 | I83: 0
B84: EDH262014ALU (ASV09-46G) | C84: ART102202 | E84: =IFERROR(INDEX(Calepinage!$B$301:$O$401,MATCH('Bon de commande'!B84,Calepinage!$O$301:$O$401,0),1),"") ->  | F84: =IFERROR(INDEX(Calepinage!$A$301:$O$401,MATCH('Bon de commande'!B84,Calepinage!$O$301:$O$401,0),1),0) -> 0 | G84: 1.18 | H84: 1.18 | I84: 0
B85: EDH262014N (ASV09-46V) | C85: ART102335 | E85: =IFERROR(INDEX(Calepinage!$B$301:$O$401,MATCH('Bon de commande'!B85,Calepinage!$O$301:$O$401,0),1),"") ->  | F85: =IFERROR(INDEX(Calepinage!$A$301:$O$401,MATCH('Bon de commande'!B85,Calepinage!$O$301:$O$401,0),1),0) -> 0 | G85: 1.82 | H85: 1.82 | I85: 0
B86: EDH272014ALU (ASV09-46G) | C86: ART100006 | E86: =IFERROR(INDEX(Calepinage!$B$301:$O$401,MATCH('Bon de commande'!B86,Calepinage!$O$301:$O$401,0),1),"") ->  | F86: =IFERROR(INDEX(Calepinage!$A$301:$O$401,MATCH('Bon de commande'!B86,Calepinage!$O$301:$O$401,0),1),0) -> 0 | G86: 1.18 | H86: 1.18 | I86: 0
B87: EDH272014N (ASV09-46V) | C87: ART100242 | E87: =IFERROR(INDEX(Calepinage!$B$301:$O$401,MATCH('Bon de commande'!B87,Calepinage!$O$301:$O$401,0),1),"") ->  | F87: =IFERROR(INDEX(Calepinage!$A$301:$O$401,MATCH('Bon de commande'!B87,Calepinage!$O$301:$O$401,0),1),0) -> 0 | G87: 1.82 | H87: 1.82 | I87: 0
B88: EDH312014ALU (ASV09-50G) | C88: ART101326 | E88: =IFERROR(INDEX(Calepinage!$B$301:$O$401,MATCH('Bon de commande'!B88,Calepinage!$O$301:$O$401,0),1),"") ->  | F88: =IFERROR(INDEX(Calepinage!$A$301:$O$401,MATCH('Bon de commande'!B88,Calepinage!$O$301:$O$401,0),1),0) -> 0 | G88: 1.18 | H88: 1.18 | I88: 0
B89: EDH312014N (ASV09-50V) | C89: ART101288 | E89: =IFERROR(INDEX(Calepinage!$B$301:$O$401,MATCH('Bon de commande'!B89,Calepinage!$O$301:$O$401,0),1),"") ->  | F89: =IFERROR(INDEX(Calepinage!$A$301:$O$401,MATCH('Bon de commande'!B89,Calepinage!$O$301:$O$401,0),1),0) -> 0 | G89: 1.82 | H89: 1.82 | I89: 0
B90: ESH162014ALU (ASV08-35G) | C90: ART100376 | E90: =IFERROR(INDEX(Calepinage!$B$301:$O$401,MATCH('Bon de commande'!B90,Calepinage!$O$301:$O$401,0),1),"") ->  | F90: =IFERROR(INDEX(Calepinage!$A$301:$O$401,MATCH('Bon de commande'!B90,Calepinage!$O$301:$O$401,0),1),0) -> 0 | G90: 1.02 | H90: 1.02 | I90: 0
B91: ESH162014N (ASV08-35V) | C91: ART100814 | E91: =IFERROR(INDEX(Calepinage!$B$301:$O$401,MATCH('Bon de commande'!B91,Calepinage!$O$301:$O$401,0),1),"") -> Etrier Simple H16 - Acier Inox - Noir - In Roof | F91: =IFERROR(INDEX(Calepinage!$A$301:$O$401,MATCH('Bon de commande'!B91,Calepinage!$O$301:$O$401,0),1),0) -> 12 | G91: 1.57 | H91: 1.57 | I91: 18.84
B92: ESH162014ALU | C92: ART100376 | E92: =IFERROR(INDEX(Calepinage!$B$301:$O$401,MATCH('Bon de commande'!B92,Calepinage!$O$301:$O$401,0),1),"") ->  | F92: =IFERROR(INDEX(Calepinage!$A$301:$O$401,MATCH('Bon de commande'!B92,Calepinage!$O$301:$O$401,0),1),0) -> 0 | G92: 1.02 | H92: 1.02 | I92: 0
B93: ESH162014N | C93: ART100814 | E93: =IFERROR(INDEX(Calepinage!$B$301:$O$401,MATCH('Bon de commande'!B93,Calepinage!$O$301:$O$401,0),1),"") ->  | F93: =IFERROR(INDEX(Calepinage!$A$301:$O$401,MATCH('Bon de commande'!B93,Calepinage!$O$301:$O$401,0),1),0) -> 0 | G93: 1.57 | H93: 1.57 | I93: 0
B94: ESH192014ALU (ASV08-38G) | C94: ART101152 | E94: =IFERROR(INDEX(Calepinage!$B$301:$O$401,MATCH('Bon de commande'!B94,Calepinage!$O$301:$O$401,0),1),"") ->  | F94: =IFERROR(INDEX(Calepinage!$A$301:$O$401,MATCH('Bon de commande'!B94,Calepinage!$O$301:$O$401,0),1),0) -> 0 | G94: 1.02 | H94: 1.02 | I94: 0
B95: ESH192014N (ASV08-38V) | C95: ART101299 | E95: =IFERROR(INDEX(Calepinage!$B$301:$O$401,MATCH('Bon de commande'!B95,Calepinage!$O$301:$O$401,0),1),"") ->  | F95: =IFERROR(INDEX(Calepinage!$A$301:$O$401,MATCH('Bon de commande'!B95,Calepinage!$O$301:$O$401,0),1),0) -> 0 | G95: 1.57 | H95: 1.57 | I95: 0
B96: ESH212014ALU (ASV08-40G) | C96: ART101279 | E96: =IFERROR(INDEX(Calepinage!$B$301:$O$401,MATCH('Bon de commande'!B96,Calepinage!$O$301:$O$401,0),1),"") ->  | F96: =IFERROR(INDEX(Calepinage!$A$301:$O$401,MATCH('Bon de commande'!B96,Calepinage!$O$301:$O$401,0),1),0) -> 0 | G96: 1.02 | H96: 1.02 | I96: 0
B97: ESH212014N (ASV08-40V) | C97: ART100495 | E97: =IFERROR(INDEX(Calepinage!$B$301:$O$401,MATCH('Bon de commande'!B97,Calepinage!$O$301:$O$401,0),1),"") ->  | F97: =IFERROR(INDEX(Calepinage!$A$301:$O$401,MATCH('Bon de commande'!B97,Calepinage!$O$301:$O$401,0),1),0) -> 0 | G97: 1.57 | H97: 1.57 | I97: 0
B98: ESH232014ALU (ASV08-42G) | C98: ART101215 | E98: =IFERROR(INDEX(Calepinage!$B$301:$O$401,MATCH('Bon de commande'!B98,Calepinage!$O$301:$O$401,0),1),"") ->  | F98: =IFERROR(INDEX(Calepinage!$A$301:$O$401,MATCH('Bon de commande'!B98,Calepinage!$O$301:$O$401,0),1),0) -> 0 | G98: 1.02 | H98: 1.02 | I98: 0
B99: ESH232014N (ASV08-42V) | C99: ART101230 | E99: =IFERROR(INDEX(Calepinage!$B$301:$O$401,MATCH('Bon de commande'!B99,Calepinage!$O$301:$O$401,0),1),"") ->  | F99: =IFERROR(INDEX(Calepinage!$A$301:$O$401,MATCH('Bon de commande'!B99,Calepinage!$O$301:$O$401,0),1),0) -> 0 | G99: 1.57 | H99: 1.57 | I99: 0
B100: ESH262014ALU (ASV08-46G) | C100: ART102321 | E100: =IFERROR(INDEX(Calepinage!$B$301:$O$401,MATCH('Bon de commande'!B100,Calepinage!$O$301:$O$401,0),1),"") ->  | F100: =IFERROR(INDEX(Calepinage!$A$301:$O$401,MATCH('Bon de commande'!B100,Calepinage!$O$301:$O$401,0),1),0) -> 0 | G100: 1.02 | H100: 1.02 | I100: 0
B101: ESH262014N (ASV08-46V) | C101: ART102328 | E101: =IFERROR(INDEX(Calepinage!$B$301:$O$401,MATCH('Bon de commande'!B101,Calepinage!$O$301:$O$401,0),1),"") ->  | F101: =IFERROR(INDEX(Calepinage!$A$301:$O$401,MATCH('Bon de commande'!B101,Calepinage!$O$301:$O$401,0),1),0) -> 0 | G101: 1.57 | H101: 1.57 | I101: 0
B102: ESH272014ALU (ASV08-46G) | C102: ART100063 | E102: =IFERROR(INDEX(Calepinage!$B$301:$O$401,MATCH('Bon de commande'!B102,Calepinage!$O$301:$O$401,0),1),"") ->  | F102: =IFERROR(INDEX(Calepinage!$A$301:$O$401,MATCH('Bon de commande'!B102,Calepinage!$O$301:$O$401,0),1),0) -> 0 | G102: 1.02 | H102: 1.02 | I102: 0
B103: ESH272014N (ASV08-46V) | C103: ART100260 | E103: =IFERROR(INDEX(Calepinage!$B$301:$O$401,MATCH('Bon de commande'!B103,Calepinage!$O$301:$O$401,0),1),"") ->  | F103: =IFERROR(INDEX(Calepinage!$A$301:$O$401,MATCH('Bon de commande'!B103,Calepinage!$O$301:$O$401,0),1),0) -> 0 | G103: 1.57 | H103: 1.57 | I103: 0
B104: ESH312014ALU (ASV08-50G) | C104: ART100172 | E104: =IFERROR(INDEX(Calepinage!$B$301:$O$401,MATCH('Bon de commande'!B104,Calepinage!$O$301:$O$401,0),1),"") ->  | F104: =IFERROR(INDEX(Calepinage!$A$301:$O$401,MATCH('Bon de commande'!B104,Calepinage!$O$301:$O$401,0),1),0) -> 0 | G104: 1.02 | H104: 1.02 | I104: =IFERROR(F104*H104,0) -> 0
B105: ESH312014N (ASV08-50V) | C105: ART100381 | E105: =IFERROR(INDEX(Calepinage!$B$301:$O$401,MATCH('Bon de commande'!B105,Calepinage!$O$301:$O$401,0),1),"") ->  | F105: =IFERROR(INDEX(Calepinage!$A$301:$O$401,MATCH('Bon de commande'!B105,Calepinage!$O$301:$O$401,0),1),0) -> 0 | G105: 1.57 | H105: 1.57 | I105: 0
B106: CALE_GAUCHE | C106: ART100212 | E106: =IFERROR(INDEX(Calepinage!$B$301:$O$401,MATCH('Bon de commande'!B106,Calepinage!$O$301:$O$401,0),1),"") -> Cale Gauche de Renfort pour Etriers Simple In Roof | F106: =IFERROR(INDEX(Calepinage!$A$301:$O$401,MATCH('Bon de commande'!B106,Calepinage!$O$301:$O$401,0),1),0) -> 6 | G106: 0.29 | H106: 0.29 | I106: 1.74
B107: CALE_DROIT | C107: ART101501 | E107: =IFERROR(INDEX(Calepinage!$B$301:$O$401,MATCH('Bon de commande'!B107,Calepinage!$O$301:$O$401,0),1),"") -> Cale Droite de Renfort pour Etriers Simple In Roof | F107: =IFERROR(INDEX(Calepinage!$A$301:$O$401,MATCH('Bon de commande'!B107,Calepinage!$O$301:$O$401,0),1),0) -> 6 | G107: 0.29 | H107: 0.29 | I107: 1.74
B108: JOINT_PRE_CONTRAIN | C108: ART101088 | E108: =IFERROR(INDEX(Calepinage!$B$301:$O$401,MATCH('Bon de commande'!B108,Calepinage!$O$301:$O$401,0),1),"") -> Joint pré-contraint - 20 x 40 mm (Rouleau de 5.5 m) | F108: =IFERROR(INDEX(Calepinage!$A$301:$O$401,MATCH('Bon de commande'!B108,Calepinage!$O$301:$O$401,0),1),0) -> 4 | G108: 13.68 | H108: 13.68 | I108: 54.72
B109: CALE_EPDM_CELL | C109: ART101138 | E109: =IFERROR(INDEX(Calepinage!$B$301:$O$401,MATCH('Bon de commande'!B109,Calepinage!$O$301:$O$401,0),1),"") -> Cale EPDM Pour Vis In Roof (25x21 EP. 5mm) | F109: =IFERROR(INDEX(Calepinage!$A$301:$O$401,MATCH('Bon de commande'!B109,Calepinage!$O$301:$O$401,0),1),0) -> 36 | G109: 0.1 | H109: 0.1 | I109: 3.6
B110: JOINT_MOUSS_TRIAN | C110: ART101178 | E110: =IFERROR(INDEX(Calepinage!$B$301:$O$401,MATCH('Bon de commande'!B110,Calepinage!$O$301:$O$401,0),1),"") ->  | F110: =IFERROR(INDEX(Calepinage!$A$301:$O$401,MATCH('Bon de commande'!B110,Calepinage!$O$301:$O$401,0),1),0) -> 0 | G110: 10.38 | H110: 10.38 | I110: 0
B111: ART101178 | C111: ART101178 | E111: =IFERROR(INDEX(Calepinage!$B$301:$O$401,MATCH('Bon de commande'!B111,Calepinage!$O$301:$O$401,0),1),"") ->  | F111: =IFERROR(INDEX(Calepinage!$A$301:$O$401,MATCH('Bon de commande'!B111,Calepinage!$O$301:$O$401,0),1),0) -> 0 | G111: 10.38 | H111: 10.38 | I111: 0
B112: RIVETPOP | C112: ART100389 | E112: =IFERROR(INDEX(Calepinage!$B$301:$O$401,MATCH('Bon de commande'!B112,Calepinage!$O$301:$O$401,0),1),"") -> Rivets Pop 4x8 (pour la fixation des cornières) | F112: =IFERROR(INDEX(Calepinage!$A$301:$O$401,MATCH('Bon de commande'!B112,Calepinage!$O$301:$O$401,0),1),0) -> 16 | G112: 0.08 | H112: 0.08 | I112: 1.28
B113: ART104112 | C113: ART104112 | E113: =IFERROR(INDEX(Calepinage!$B$301:$O$401,MATCH('Bon de commande'!B113,Calepinage!$O$301:$O$401,0),1),"") ->  | F113: =IFERROR(INDEX(Calepinage!$A$301:$O$401,MATCH('Bon de commande'!B113,Calepinage!$O$301:$O$401,0),1),0) -> 0 | G113: 4.49 | H113: 4.49 | I113: 0
B114: ART104119 | C114: ART104119 | E114: =IFERROR(INDEX(Calepinage!$B$301:$O$401,MATCH('Bon de commande'!B114,Calepinage!$O$301:$O$401,0),1),"") ->  | F114: =IFERROR(INDEX(Calepinage!$A$301:$O$401,MATCH('Bon de commande'!B114,Calepinage!$O$301:$O$401,0),1),0) -> 0 | G114: 0.66 | H114: 0.66 | I114: 0
B115: VIS2014A | C115: ART100931 | E115: =IFERROR(INDEX(Calepinage!$B$301:$O$401,MATCH('Bon de commande'!B115,Calepinage!$O$301:$O$401,0),1),"") ->  | F115: =IFERROR(INDEX(Calepinage!$A$301:$O$401,MATCH('Bon de commande'!B115,Calepinage!$O$301:$O$401,0),1),0) -> 0 | G115: 0.26 | H115: 0.26 | I115: 0
B116: VIS2014N | C116: ART101552 | E116: =IFERROR(INDEX(Calepinage!$B$301:$O$401,MATCH('Bon de commande'!B116,Calepinage!$O$301:$O$401,0),1),"") -> Vis GSE Integration 6.3mmx60mm Noir | F116: =IFERROR(INDEX(Calepinage!$A$301:$O$401,MATCH('Bon de commande'!B116,Calepinage!$O$301:$O$401,0),1),0) -> 126 | G116: 0.36 | H116: 0.36 | I116: 45.36
B117: MK08 | C117: MK08 | E117: =IFERROR(INDEX(Calepinage!$B$301:$O$401,MATCH('Bon de commande'!B117,Calepinage!$O$301:$O$401,0),1),"") ->  | F117: =IFERROR(INDEX(Calepinage!$A$301:$O$401,MATCH('Bon de commande'!B117,Calepinage!$O$301:$O$401,0),1),0) -> 0 | G117: =trad("Sansprix") -> Se renseigner auprès d’un distributeur | I117: =IFERROR(F117*H117,0) -> 0
B118: PK08 | C118: PK08 | E118: =IFERROR(INDEX(Calepinage!$B$301:$O$401,MATCH('Bon de commande'!B118,Calepinage!$O$301:$O$401,0),1),"") ->  | F118: =IFERROR(INDEX(Calepinage!$A$301:$O$401,MATCH('Bon de commande'!B118,Calepinage!$O$301:$O$401,0),1),0) -> 0 | G118: Se renseigner auprès d’un distributeur | I118: 0
B119: SK10 | C119: SK10 | E119: =IFERROR(INDEX(Calepinage!$B$301:$O$401,MATCH('Bon de commande'!B119,Calepinage!$O$301:$O$401,0),1),"") ->  | F119: =IFERROR(INDEX(Calepinage!$A$301:$O$401,MATCH('Bon de commande'!B119,Calepinage!$O$301:$O$401,0),1),0) -> 0 | G119: Se renseigner auprès d’un distributeur | I119: 0
B120: MK06 | C120: MK06 | E120: =IFERROR(INDEX(Calepinage!$B$301:$O$401,MATCH('Bon de commande'!B120,Calepinage!$O$301:$O$401,0),1),"") ->  | F120: =IFERROR(INDEX(Calepinage!$A$301:$O$401,MATCH('Bon de commande'!B120,Calepinage!$O$301:$O$401,0),1),0) -> 0 | G120: Se renseigner auprès d’un distributeur | I120: 0
B121: PK10 | C121: PK10 | E121: =IFERROR(INDEX(Calepinage!$B$301:$O$401,MATCH('Bon de commande'!B121,Calepinage!$O$301:$O$401,0),1),"") ->  | F121: =IFERROR(INDEX(Calepinage!$A$301:$O$401,MATCH('Bon de commande'!B121,Calepinage!$O$301:$O$401,0),1),0) -> 0 | G121: Se renseigner auprès d’un distributeur | I121: 0
B122: MK10 | C122: MK10 | E122: =IFERROR(INDEX(Calepinage!$B$301:$O$401,MATCH('Bon de commande'!B122,Calepinage!$O$301:$O$401,0),1),"") ->  | F122: =IFERROR(INDEX(Calepinage!$A$301:$O$401,MATCH('Bon de commande'!B122,Calepinage!$O$301:$O$401,0),1),0) -> 0 | G122: Se renseigner auprès d’un distributeur | I122: =IFERROR(F122*H122,0) -> 0
B123: ART101589 | C123: ART101589 | E123: =IFERROR(INDEX(Calepinage!$B$301:$O$401,MATCH('Bon de commande'!B123,Calepinage!$O$301:$O$401,0),1),"") ->  | F123: =IFERROR(INDEX(Calepinage!$A$301:$O$401,MATCH('Bon de commande'!B123,Calepinage!$O$301:$O$401,0),1),0) -> 0 | G123: 244.83 | H123: =G123*(1-$J$8) -> 244.83 | I123: 0
B124: ART101590 | C124: ART101590 | E124: =IFERROR(INDEX(Calepinage!$B$301:$O$401,MATCH('Bon de commande'!B124,Calepinage!$O$301:$O$401,0),1),"") ->  | F124: =IFERROR(INDEX(Calepinage!$A$301:$O$401,MATCH('Bon de commande'!B124,Calepinage!$O$301:$O$401,0),1),0) -> 0 | G124: 222.56 | H124: =G124*(1-$J$8) -> 222.56 | I124: 0
B125: ART104616 | C125: ART104616 | E125: =IFERROR(INDEX(Calepinage!$B$301:$O$401,MATCH('Bon de commande'!B125,Calepinage!$O$301:$O$401,0),1),"") ->  | F125: =IFERROR(INDEX(Calepinage!$A$301:$O$401,MATCH('Bon de commande'!B125,Calepinage!$O$301:$O$401,0),1),0) -> 0 | G125: 245.09 | H125: =G125*(1-$J$8) -> 245.09 | I125: 0
B126: RMK10 | C126: RMK10 | E126: =IFERROR(INDEX(Calepinage!$B$301:$O$401,MATCH('Bon de commande'!B126,Calepinage!$O$301:$O$401,0),1),"") ->  | F126: =IFERROR(INDEX(Calepinage!$A$301:$O$401,MATCH('Bon de commande'!B126,Calepinage!$O$301:$O$401,0),1),0) -> 0 | G126: Se renseigner auprès d’un distributeur | I126: 0
B127: RPK10 | C127: RPK10 | E127: =IFERROR(INDEX(Calepinage!$B$301:$O$401,MATCH('Bon de commande'!B127,Calepinage!$O$301:$O$401,0),1),"") ->  | F127: =IFERROR(INDEX(Calepinage!$A$301:$O$401,MATCH('Bon de commande'!B127,Calepinage!$O$301:$O$401,0),1),0) -> 0 | G127: Se renseigner auprès d’un distributeur
B128: ART104623 | C128: ART104623 | E128: =IFERROR(INDEX(Calepinage!$B$301:$O$401,MATCH('Bon de commande'!B128,Calepinage!$O$301:$O$401,0),1),"") ->  | F128: =IFERROR(INDEX(Calepinage!$A$301:$O$401,MATCH('Bon de commande'!B128,Calepinage!$O$301:$O$401,0),1),0) -> 0 | G128: 274.65 | H128: =G128*(1-$J$8) -> 274.65 | I128: =IFERROR(F128*H128,0) -> 0
B129: ART103622 | C129: ART103622 | E129: =IFERROR(INDEX(Calepinage!$B$301:$O$401,MATCH('Bon de commande'!B129,Calepinage!$O$301:$O$401,0),1),"") ->  | F129: =IFERROR(INDEX(Calepinage!$A$301:$O$401,MATCH('Bon de commande'!B129,Calepinage!$O$301:$O$401,0),1),0) -> 0 | G129: 37.24 | H129: 37.24 | I129: 0
B130: ART103629 | C130: ART103629 | E130: =IFERROR(INDEX(Calepinage!$B$301:$O$401,MATCH('Bon de commande'!B130,Calepinage!$O$301:$O$401,0),1),"") ->  | F130: =IFERROR(INDEX(Calepinage!$A$301:$O$401,MATCH('Bon de commande'!B130,Calepinage!$O$301:$O$401,0),1),0) -> 0 | G130: 37.24 | H130: 37.24 | I130: 0
B131: ART105512 | C131: ART105512 | E131: =IFERROR(INDEX(Calepinage!$B$301:$O$401,MATCH('Bon de commande'!B131,Calepinage!$O$301:$O$401,0),1),"") ->  | F131: =IFERROR(INDEX(Calepinage!$A$301:$O$401,MATCH('Bon de commande'!B131,Calepinage!$O$301:$O$401,0),1),0) -> 0 | G131: 50 | H131: 50 | I131: =IFERROR(F131*H131,0) -> 0
B132: ART105498 | C132: ART105498 | E132: =IFERROR(INDEX(Calepinage!$B$301:$O$401,MATCH('Bon de commande'!B132,Calepinage!$O$301:$O$401,0),1),"") ->  | F132: =IFERROR(INDEX(Calepinage!$A$301:$O$401,MATCH('Bon de commande'!B132,Calepinage!$O$301:$O$401,0),1),0) -> 0 | G132: 50 | H132: 50 | I132: =IFERROR(F132*H132,0) -> 0
B133: ART105519 | C133: ART105519 | E133: =IFERROR(INDEX(Calepinage!$B$301:$O$401,MATCH('Bon de commande'!B133,Calepinage!$O$301:$O$401,0),1),"") ->  | F133: =IFERROR(INDEX(Calepinage!$A$301:$O$401,MATCH('Bon de commande'!B133,Calepinage!$O$301:$O$401,0),1),0) -> 0 | G133: 36.16 | H133: 36.16 | I133: =IFERROR(F133*H133,0) -> 0
B134: ART105505 | C134: ART105505 | E134: =IFERROR(INDEX(Calepinage!$B$301:$O$401,MATCH('Bon de commande'!B134,Calepinage!$O$301:$O$401,0),1),"") ->  | F134: =IFERROR(INDEX(Calepinage!$A$301:$O$401,MATCH('Bon de commande'!B134,Calepinage!$O$301:$O$401,0),1),0) -> 0 | G134: 36.16 | H134: 36.16 | I134: =IFERROR(F134*H134,0) -> 0
B135: ART105351 | C135: ART105351 | E135: =IFERROR(INDEX(Calepinage!$B$301:$O$401,MATCH('Bon de commande'!B135,Calepinage!$O$301:$O$401,0),1),"") ->  | F135: =IFERROR(INDEX(Calepinage!$A$301:$O$401,MATCH('Bon de commande'!B135,Calepinage!$O$301:$O$401,0),1),0) -> 0 | G135: 14.25 | H135: =G135*(1-$J$8) -> 14.25 | I135: =IFERROR(F135*H135,0) -> 0
B136: ART105554 | C136: ART105554 | E136: =IFERROR(INDEX(Calepinage!$B$301:$O$401,MATCH('Bon de commande'!B136,Calepinage!$O$301:$O$401,0),1),"") ->  | F136: =IFERROR(INDEX(Calepinage!$A$301:$O$401,MATCH('Bon de commande'!B136,Calepinage!$O$301:$O$401,0),1),0) -> 0 | G136: 12.03 | H136: 12.03 | I136: 0
C138: =UPPER(VLOOKUP("Total",BD!$A$1:$P$200,Listes!$AA$2+1,0)) -> TOTAL | I138: =SUM(I11:I116) -> 632.18
B140: TOTAL | C140: =UPPER(VLOOKUP("Option",BD!$A$1:$P$200,Listes!$AA$2+1,0)) -> OPTIONS | F140: =UPPER(VLOOKUP("NbrPiece",BD!$A$1:$P$200,Listes!$AA$2+1,0)) -> NOMBRE DE PIÈCES | G140: =UPPER(VLOOKUP("PUHT",BD!$A$1:$P$200,Listes!$AA$2+1,0)) -> P.U. (HT) | H140: =UPPER(VLOOKUP("PUREM",BD!$A$1:$P$200,Listes!$AA$2+1,0)) -> P.U. REMISÉ | I140: =UPPER(VLOOKUP("Total",BD!$A$1:$P$200,Listes!$AA$2+1,0)) -> TOTAL
C141: =IF(flex_largeur=1,"ART100385",IF(flex_couleur=1,"ART101405","ART101272")) -> ART101405 | D141: =Calepinage!B327 -> Flexalu Rouge Terre Cuite 500mm L5m Butyle 20/100 | F141: =Calepinage!A327 -> 2 | G141: =IF(flex_largeur=1,74.95,114.47) -> 114.47 | H141: 114.47 | I141: =F141*H141 -> 228.94
C142: =IF(flex_velux=330,"ART100385",IF(flex_velux=500,"ART101405","")) -> ART100385 | D142: =Calepinage!B333 -> 0 | F142: =Calepinage!A333 -> 0 | G142: =IF(flex_velux=330,74.95,IF(flex_velux=500,114.47,0)) -> 74.95 | H142: 74.95 | I142: =F142*H142 -> 0
B143: OPTIONS | C143: ART101292 | D143: =IF(Calepinage!B328<>"",Calepinage!B328,"") ->  | F143: =IF(Calepinage!A328>0,Calepinage!A328,0) -> 0 | G143: 193.93 | H143: =G143*(1-$J$8) -> 193.93 | I143: =Calepinage!A328*H143 -> 0
C145: =UPPER(VLOOKUP("Total",BD!$A$1:$P$200,Listes!$AA$2+1,0)) -> TOTAL | I145: =I138+I141+I143 -> 861.12
D147: =UPPER(VLOOKUP("NotePriceOpt",BD!$A$1:$P$200,Listes!$AA$2+1,0)) -> NB : PRIX DISPONIBLE AUPRÈS DE VOTRE INTERLOCUTEUR HABITUEL.
D148: =UPPER(VLOOKUP("WebLink1",BD!$A$1:$P$200,Listes!$AA$2+1,0)) -> POUR PLUS D’INFORMATION SUR LE PRODUIT : WWW.GSEINTEGRATION.COM
